{"text_format":"1","workbook":"xlsx","n_sheets":4,"sheets":["Datos","TD","Menu","INFORME"],"not_rendered":{"charts":0,"images":31,"macros":1,"external_links":0,"defined_names":14,"comments":0,"pivot_tables":3},"unopened":[],"bounds":{"document_bytes":16777216,"sheet_cells":100000,"rows_first":2000,"rows_last":500,"rows_between":2000,"halvings":0,"cell_chars":16384,"cell_head_chars":4096},"cells_cut":0,"cells_raw":0,"read":"whole","date_system":"1900"}

{"sheet":"Datos","index":0,"n_rows":446,"n_cols":36,"rows_kept":446,"cut":false,"hidden":true,"merged":[]}
[]
[]
[]
[]
[]
[]
[]
[]
[null,"ANO",null,"MESES",null,"COD_RED","DESC_RED","RED",null,"COD_RED","COD_MIC","DESC_MICRO","MICROREDES",null,"COD_ESTAB","DESC_ESTAB","COD_RED","COD_MIC","COD_PROV","COD_DIST","REDMIC","CONCATENAR",null,"COD_PROV","DESC_PROV","CONCATENAR",null,"COD_PROV","COD_DIST","DESC_DIST","PROVDIST","CONCATENAR",null,"UE"]
[null,2025,null,"01-Enero",null,"01","CUSCO SUR",{"$f":"CONCATENATE(F10,\" - \",G10)","v":"01 - CUSCO SUR"},null,"00","00","NO PERTENECE A NINGUNA MICRORED                                                                     ",{"$f":"CONCATENATE(J10,K10,\" - \",L10)","v":"0000 - NO PERTENECE A NINGUNA MICRORED                                                                     "},null,"000000000","(All)","07","00",null,null,{"$f":"CONCATENATE(Q10,R10)","v":"0700"},{"$f":"CONCATENATE(O10,\" - \",P10)","v":"000000000 - (All)"},null,"00","(All)",{"$f":"CONCATENATE(X10,\" - \",Y10)","v":"00 - (All)"},null,"01","00","(All)",{"$f":"CONCATENATE(AB10,AC10)","v":"0100"},{"$f":"CONCATENATE(AB10,AC10,\" - \",AD10)","v":"0100 - (All)"},null,"COD_RED","DESC_RED","CONCATENAR"]
[null,null,null,"02-Febrero",null,"02","CUSCO NORTE","02 - CUSCO NORTE",null,"00","99","(All)",{"$f":"CONCATENATE(J11,K11,\" - \",L11)","v":"0099 - (All)"},null,"000002289","HOSPITAL REGIONAL CUSCO","07","00","01","01",{"$f":"CONCATENATE(Q11,R11)","v":"0700"},"000002289 - HOSPITAL REGIONAL CUSCO",null,"01","CUSCO",{"$f":"CONCATENATE(X11,\" - \",Y11)","v":"01 - CUSCO"},null,"01","01","CUSCO",{"$f":"CONCATENATE(AB11,AC11)","v":"0101"},{"$f":"CONCATENATE(AB11,AC11,\" - \",AD11)","v":"0101 - CUSCO"},null,1129,"UE - SALUD CANAS - CANCHIS - ESPINAR",{"$f":"CONCATENATE(AH11,\" - \",AI11)","v":"1129 - UE - SALUD CANAS - CANCHIS - ESPINAR"}]
[null,null,null,"03-Marzo",null,"03","LA CONVENCION","03 - LA CONVENCION",null,"01","00","HOSPITAL","0100 - HOSPITAL",null,"000002305","HOSPITAL ANTONIO LORENA","07","00","01","06",{"$f":"CONCATENATE(Q12,R12)","v":"0700"},"000002305 - HOSPITAL ANTONIO LORENA",null,"02","ACOMAYO",{"$f":"CONCATENATE(X12,\" - \",Y12)","v":"02 - ACOMAYO"},null,"01","02","CCORCA","0102","0102 - CCORCA",null,1130,"UE - HOSPITAL REGIONAL CUSCO",{"$f":"CONCATENATE(AH12,\" - \",AI12)","v":"1130 - UE - HOSPITAL REGIONAL CUSCO"}]
[null,null,null,"04-Abril",null,"04","CANAS-CANCHIS-ESPINAR","04 - CANAS-CANCHIS-ESPINAR",null,"01","03","PARURO                                                                                              ","0103 - PARURO                                                                                              ",null,"999999999","(All)","07","99",null,null,{"$f":"CONCATENATE(Q13,R13)","v":"0799"},"999999999 - (All)",null,"03","ANTA","03 - ANTA",null,"01","03","POROY","0103","0103 - POROY",null,1169,"UE - HOSPITAL ANTONIO LORENA","1169 - UE - HOSPITAL ANTONIO LORENA"]
[null,null,null,"05-Mayo",null,"05","KIMBIRI PICHARI","05 - KIMBIRI PICHARI",null,"01","06","PAUCARTAMBO                                                                                         ","0106 - PAUCARTAMBO                                                                                         ",null,"000025210","TUPAC AMARU","01","00","01","05","0100","000025210 - TUPAC AMARU",null,"04","CALCA","04 - CALCA",null,"01","04","SAN JERONIMO","0104","0104 - SAN JERONIMO",null,1170,"UE - SALUD LA CONVENCION","1170 - UE - SALUD LA CONVENCION"]
[null,null,null,"06-Junio",null,"06","CHUMBIVILCAS","06 - CHUMBIVILCAS",null,"01","12","URCOS                                                                                               ","0112 - URCOS                                                                                               ",null,"000000000","(All)","01","16",null,null,{"$f":"CONCATENATE(Q15,R15)","v":"0116"},"000000000 - (All)",null,"05","CANAS","05 - CANAS",null,"01","05","SAN SEBASTIAN","0105","0105 - SAN SEBASTIAN",null,1322,"UE - SALUD CUSCO SUR","1322 - UE - SALUD CUSCO SUR"]
[null,null,null,"07-Julio",null,"07","HOSPITALES III",{"$f":"CONCATENATE(F16,\" - \",G16)","v":"07 - HOSPITALES III"},null,"01","13","ACOMAYO                                                                                             ","0113 - ACOMAYO                                                                                             ",null,"000002300","SAN JERONIMO                                                                                        ","01","16","01","04","0116","000002300 - SAN JERONIMO                                                                                        ",null,"06","CANCHIS","06 - CANCHIS",null,"01","06","SANTIAGO","0106","0106 - SANTIAGO",null,1347,"UE - SALUD KIMBIRI PICHARI","1347 - UE - SALUD KIMBIRI PICHARI"]
[null,null,null,"08-Agosto",null,"99","(All)",{"$f":"CONCATENATE(F17,\" - \",G17)","v":"99 - (All)"},null,"01","15","OCONGATE                                                                                            ","0115 - OCONGATE                                                                                            ",null,"000002301","SAN SEBASTIAN                                                                                       ","01","16","01","05","0116","000002301 - SAN SEBASTIAN                                                                                       ",null,"07","CHUMBIVILCAS","07 - CHUMBIVILCAS",null,"01","07","SAYLLA","0107","0107 - SAYLLA",null,1348,"UE - SALUD CUSCO NORTE","1348 - UE - SALUD CUSCO NORTE"]
[null,null,null,"09-Setiembre",null,null,null,null,null,"01","16","CUSCO","0116 - CUSCO",null,"000002303","SANTA ROSA                                                                                          ","01","16","01","05","0116","000002303 - SANTA ROSA                                                                                          ",null,"08","ESPINAR","08 - ESPINAR",null,"01","08","WANCHAQ","0108","0108 - WANCHAQ",null,1547,"UE - HOSPITAL ESPINAR","1547 - UE - HOSPITAL ESPINAR"]
[null,null,null,"10-Octubre",null,null,null,null,null,"01","99","(All)","0199 - (All)",null,"000002314","SAYLLA                                                                                              ","01","16","01","07","0116","000002314 - SAYLLA                                                                                              ",null,"09","LA CONVENCION","09 - LA CONVENCION",null,"02","00","(All)","0200","0200 - (All)",null,1625,"UE - HOSPITAL SICUANI","1625 - UE - HOSPITAL SICUANI"]
[null,null,null,"11-Noviembre",null,null,null,null,null,"02","01","BELEMPAMPA                                                                                          ","0201 - BELEMPAMPA                                                                                          ",null,"000002323","RONDOCAN                                                                                            ","01","16","02","06","0116","000002323 - RONDOCAN                                                                                            ",null,"10","PARURO","10 - PARURO",null,"02","01","ACOMAYO","0201","0201 - ACOMAYO",null,1626,"UE - HOSPITAL QUILLABAMBA","1626 - UE - HOSPITAL QUILLABAMBA"]
[null,null,null,"12-Diciembre",null,null,null,null,null,"02","02","WANCHAQ                                                                                             ","0202 - WANCHAQ                                                                                             ",null,"000007699","CONCHACALLE                                                                                         ","01","16","01","04","0116","000007699 - CONCHACALLE                                                                                         ",null,"11","PAUCARTAMBO","11 - PAUCARTAMBO",null,"02","02","ACOPIA","0202","0202 - ACOPIA",null,1666,"UE - SALUD CHUMBIVILCAS","1666 - UE - SALUD CHUMBIVILCAS"]
[null,null,null,null,null,null,null,null,null,"02","03","ANTA                                                                                                ","0203 - ANTA                                                                                                ",null,"000010065","ESSALUD-SAN SEBASTIAN","01","16","01","05","0116","000010065 - ESSALUD-SAN SEBASTIAN",null,"12","QUISPICANCHI","12 - QUISPICANCHI",null,"02","03","ACOS","0203","0203 - ACOS",null,"7777","(All)",{"$f":"CONCATENATE(AH22,\" - \",AI22)","v":"7777 - (All)"}]
[null,null,null,null,null,null,null,null,null,"02","04","LIMATAMBO                                                                                           ","0204 - LIMATAMBO                                                                                           ",null,"000011743","SANIDAD-SANTA ROSA PNP","01","16","01","05","0116","000011743 - SANIDAD-SANTA ROSA PNP",null,"13","URUBAMBA","13 - URUBAMBA",null,"02","04","MOSOC LLACTA","0204","0204 - MOSOC LLACTA"]
[null,null,null,null,null,null,null,null,null,"02","05","PISAC                                                                                               ","0205 - PISAC                                                                                               ",null,"000026181","MENTAL SAN SEBASTIAN","01","16","01","05","0116","000026181 - MENTAL SAN SEBASTIAN",null,null,null,null,null,"02","05","POMACANCHI","0205","0205 - POMACANCHI"]
[null,null,null,null,null,null,null,null,null,"02","06","CALCA                                                                                               ","0206 - CALCA                                                                                               ",null,"000030727","PATRÓN SAN SEBASTIAN","01","16","01","04",{"$f":"CONCATENATE(Q25,R25)","v":"0116"},"000030727 - PATRÓN SAN SEBASTIAN",null,null,null,null,null,"02","06","RONDOCAN","0206","0206 - RONDOCAN"]
[null,null,null,null,null,null,null,null,null,"02","07","URUBAMBA                                                                                            ","0207 - URUBAMBA                                                                                            ",null,"000000000","(All)","01","03",null,null,{"$f":"CONCATENATE(Q26,R26)","v":"0103"},"000000000 - (All)",null,null,null,null,null,"02","07","SANGARARA","0207","0207 - SANGARARA"]
[null,null,null,null,null,null,null,null,null,"02","08","YANATILE                                                                                            ","0208 - YANATILE                                                                                            ",null,"000002499","PARURO                                                                                              ","01","03",10,"01","0103","000002499 - PARURO                                                                                              ",null,null,null,null,null,"03","00","(All)","0300","0300 - (All)"]
[null,null,null,null,null,null,null,null,null,"02","09","SIETE CUARTONES                                                                                     ","0209 - SIETE CUARTONES                                                                                     ",null,"000002500","ACCHA                                                                                               ","01","03",10,"02","0103","000002500 - ACCHA                                                                                               ",null,null,null,null,null,"03","01","ANTA","0301","0301 - ANTA"]
[null,null,null,null,null,null,null,null,null,"02","99","(All)","0299 - (All)",null,"000002501","CCAPI                                                                                               ","01","03",10,"03","0103","000002501 - CCAPI                                                                                               ",null,null,null,null,null,"03","02","ANCAHUASI","0302","0302 - ANCAHUASI"]
[null,null,null,null,null,null,null,null,null,"03","00","HOSPITAL","0300 - HOSPITAL",null,"000002502","CCOYABAMBA                                                                                          ","01","03",10,"03","0103","000002502 - CCOYABAMBA                                                                                          ",null,null,null,null,null,"03","03","CACHIMAYO","0303","0303 - CACHIMAYO"]
[null,null,null,null,null,null,null,null,null,"03","01","SANTA ANA                                                                                           ","0301 - SANTA ANA                                                                                           ",null,"000002503","COLCHA                                                                                              ","01","03",10,"04","0103","000002503 - COLCHA                                                                                              ",null,null,null,null,null,"03","04","CHINCHAYPUJIO","0304","0304 - CHINCHAYPUJIO"]
[null,null,null,null,null,null,null,null,null,"03","02","MARANURA                                                                                            ","0302 - MARANURA                                                                                            ",null,"000002504","HUANOQUITE                                                                                          ","01","03",10,"05","0103","000002504 - HUANOQUITE                                                                                          ",null,null,null,null,null,"03","05","HUAROCONDO","0305","0305 - HUAROCONDO"]
[null,null,null,null,null,null,null,null,null,"03","03","QUELLOUNO                                                                                           ","0303 - QUELLOUNO                                                                                           ",null,"000002505","OMACHA                                                                                              ","01","03",10,"06","0103","000002505 - OMACHA                                                                                              ",null,null,null,null,null,"03","06","LIMATAMBO","0306","0306 - LIMATAMBO"]
[null,null,null,null,null,null,null,null,null,"03","04","KITENI                                                                                              ","0304 - KITENI                                                                                              ",null,"000002506","ANTAPALLPA                                                                                          ","01","03",10,"06","0103","000002506 - ANTAPALLPA                                                                                          ",null,null,null,null,null,"03","07","MOLLEPATA","0307","0307 - MOLLEPATA"]
[null,null,null,null,null,null,null,null,null,"03","05","KAMISEA                                                                                             ","0305 - KAMISEA                                                                                             ",null,"000002507","PACCARECTAMBO                                                                                       ","01","03",10,"07","0103","000002507 - PACCARECTAMBO                                                                                       ",null,null,null,null,null,"03","08","PUCYURA","0308","0308 - PUCYURA"]
[null,null,null,null,null,null,null,null,null,"03","06","PUCYURA                                                                                             ","0306 - PUCYURA                                                                                             ",null,"000002509","YAURISQUE                                                                                           ","01","03",10,"09","0103","000002509 - YAURISQUE                                                                                           ",null,null,null,null,null,"03","09","ZURITE","0309","0309 - ZURITE"]
[null,null,null,null,null,null,null,null,null,"03","99","(All)","0399 - (All)",null,"000006978","CCOCHIRIHUAY                                                                                        ","01","03",10,"04","0103","000006978 - CCOCHIRIHUAY                                                                                        ",null,null,null,null,null,"04","00","(All)","0400","0400 - (All)"]
[null,null,null,null,null,null,null,null,null,"04","00","HOSPITAL","0400 - HOSPITAL",null,"000007147","HUASQUILLAY                                                                                         ","01","03",10,"06","0103","000007147 - HUASQUILLAY                                                                                         ",null,null,null,null,null,"04","01","CALCA","0401","0401 - CALCA"]
[null,null,null,null,null,null,null,null,null,"04","01","YANAOCA                                                                                             ","0401 - YANAOCA                                                                                             ",null,"000012924","SAHUA SAHUA                                                                                         ","01","03",10,"06","0103","000012924 - SAHUA SAHUA                                                                                         ",null,null,null,null,null,"04","02","COYA","0402","0402 - COYA"]
[null,null,null,null,null,null,null,null,null,"04","02","EL DESCANSO                                                                                         ","0402 - EL DESCANSO                                                                                         ",null,"000000000","(All)","01","06",null,null,"0106","000000000 - (All)",null,null,null,null,null,"04","03","LAMAY","0403","0403 - LAMAY"]
[null,null,null,null,null,null,null,null,null,"04","03","COMBAPATA                                                                                           ","0403 - COMBAPATA                                                                                           ",null,"000002510","PAUCARTAMBO                                                                                         ","01","06",11,"01","0106","000002510 - PAUCARTAMBO                                                                                         ",null,null,null,null,null,"04","04","LARES","0404","0404 - LARES"]
[null,null,null,null,null,null,null,null,null,"04","04","TECHO OBRERO                                                                                        ","0404 - TECHO OBRERO                                                                                        ",null,"000002511","MOLLOMARCA                                                                                          ","01","06",11,"01","0106","000002511 - MOLLOMARCA                                                                                          ",null,null,null,null,null,"04","05","PISAC","0405","0405 - PISAC"]
[null,null,null,null,null,null,null,null,null,"04","05","PAMPAPHALLA                                                                                         ","0405 - PAMPAPHALLA                                                                                         ",null,"000002512","CAICAY                                                                                              ","01","06",11,"02","0106","000002512 - CAICAY                                                                                              ",null,null,null,null,null,"04","06","SAN SALVADOR","0406","0406 - SAN SALVADOR"]
[null,null,null,null,null,null,null,null,null,"04","06","YAURI                                                                                               ","0406 - YAURI                                                                                               ",null,"000002513","HUASAC                                                                                              ","01","06",11,"02","0106","000002513 - HUASAC                                                                                              ",null,null,null,null,null,"04","07","TARAY","0407","0407 - TARAY"]
[null,null,null,null,null,null,null,null,null,"04","99","(All)","0499 - (All)",null,"000002514","CHALLABAMBA                                                                                         ","01","06",11,"03","0106","000002514 - CHALLABAMBA                                                                                         ",null,null,null,null,null,"04","08","YANATILE","0408","0408 - YANATILE"]
[null,null,null,null,null,null,null,null,null,"05","00","HOSPITAL","0500 - HOSPITAL",null,"000002516","COLQUEPATA                                                                                          ","01","06",11,"04","0106","000002516 - COLQUEPATA                                                                                          ",null,null,null,null,null,"05","00","(All)","0500","0500 - (All)"]
[null,null,null,null,null,null,null,null,null,"05","01","KIMBIRI                                                                                             ","0501 - KIMBIRI                                                                                             ",null,"000002517","PICHIHUA COLQUEPATA                                                                                 ","01","06",11,"04","0106","000002517 - PICHIHUA COLQUEPATA                                                                                 ",null,null,null,null,null,"05","01","YANAOCA","0501","0501 - YANAOCA"]
[null,null,null,null,null,null,null,null,null,"05","02","PICHARI                                                                                             ","0502 - PICHARI                                                                                             ",null,"000002518","VIZCOCHONI                                                                                          ","01","06",11,"04","0106","000002518 - VIZCOCHONI                                                                                          ",null,null,null,null,null,"05","02","CHECCA","0502","0502 - CHECCA"]
[null,null,null,null,null,null,null,null,null,"05","99","(All)","0599 - (All)",null,"000002519","AYRE                                                                                                ","01","06",11,"04","0106","000002519 - AYRE                                                                                                ",null,null,null,null,null,"05","03","KUNTURKANKI","0503","0503 - KUNTURKANKI"]
[null,null,null,null,null,null,null,null,null,"06","00","HOSPITAL","0600 - HOSPITAL",null,"000002520","HUANCARANI                                                                                          ","01","06",11,"05","0106","000002520 - HUANCARANI                                                                                          ",null,null,null,null,null,"05","04","LANGUI","0504","0504 - LANGUI"]
[null,null,null,null,null,null,null,null,null,"06","09","SANTO TOMAS                                                                                         ","0609 - SANTO TOMAS                                                                                         ",null,"000002521","PILCOPATA                                                                                           ","01","06",11,"06","0106","000002521 - PILCOPATA                                                                                           ",null,null,null,null,null,"05","05","LAYO","0505","0505 - LAYO"]
[null,null,null,null,null,null,null,null,null,"06","01","LIVITACA                                                                                            ","0601 - LIVITACA                                                                                            ",null,"000002522","PATRIA                                                                                              ","01","06",11,"06","0106","000002522 - PATRIA                                                                                              ",null,null,null,null,null,"05","06","PAMPAMARCA","0506","0506 - PAMPAMARCA"]
[null,null,null,null,null,null,null,null,null,"06","99","(All)","0699 - (All)",null,"000006979","TOCRA                                                                                               ","01","06",11,"04","0106","000006979 - TOCRA                                                                                               ",null,null,null,null,null,"05","07","QUEHUE","0507","0507 - QUEHUE"]
[null,null,null,null,null,null,null,null,null,"07","00","HOSPITAL","0700 - HOSPITAL",null,"000010077","ESSALUD-PAUCARTAMBO","01","06",11,"01","0106","000010077 - ESSALUD-PAUCARTAMBO",null,null,null,null,null,"05","08","TUPAC AMARU","0508","0508 - TUPAC AMARU"]
[null,null,null,null,null,null,null,null,null,"99","99","(All)",{"$f":"CONCATENATE(J55,K55,\" - \",L55)","v":"9999 - (All)"},null,"000033777","MENTAL COMUNITARIO VIRGEN DEL ROSARIO","01","06",11,"01","0106","000033777 - MENTAL COMUNITARIO VIRGEN DEL ROSARIO",null,null,null,null,null,"06","00","(All)","0600","0600 - (All)"]
[null,null,null,null,null,null,null,null,null,null,null,null,null,null,"000000000","(All)","01","12",null,null,"0112","000000000 - (All)",null,null,null,null,null,"06","01","SICUANI","0601","0601 - SICUANI"]
[null,null,null,null,null,null,null,null,null,null,null,null,null,null,"000002523","URCOS                                                                                               ","01","12",12,"01","0112","000002523 - URCOS                                                                                               ",null,null,null,null,null,"06","02","CHECACUPE","0602","0602 - CHECACUPE"]
[null,null,null,null,null,null,null,null,null,null,null,null,null,null,"000002525","ANDAHUAYLILLAS                                                                                      ","01","12",12,"02","0112","000002525 - ANDAHUAYLILLAS                                                                                      ",null,null,null,null,null,"06","03","COMBAPATA","0603","0603 - COMBAPATA"]
[null,null,null,null,null,null,null,null,null,null,null,null,null,null,"000002530","CUSIPATA                                                                                            ","01","12",12,"06","0112","000002530 - CUSIPATA                                                                                            ",null,null,null,null,null,"06","04","MARANGANI","0604","0604 - MARANGANI"]
[null,null,null,null,null,null,null,null,null,null,null,null,null,null,"000002532","HUARO                                                                                               ","01","12",12,"07","0112","000002532 - HUARO                                                                                               ",null,null,null,null,null,"06","05","PITUMARCA","0605","0605 - PITUMARCA"]
[null,null,null,null,null,null,null,null,null,null,null,null,null,null,"000002533","URPAY                                                                                               ","01","12",12,"07","0112","000002533 - URPAY                                                                                               ",null,null,null,null,null,"06","06","SAN PABLO","0606","0606 - SAN PABLO"]
[null,null,null,null,null,null,null,null,null,null,null,null,null,null,"000002534","LUCRE                                                                                               ","01","12",12,"08","0112","000002534 - LUCRE                                                                                               ",null,null,null,null,null,"06","07","SAN PEDRO","0607","0607 - SAN PEDRO"]
[null,null,null,null,null,null,null,null,null,null,null,null,null,null,"000002537","OROPESA                                                                                             ","01","12",12,11,"0112","000002537 - OROPESA                                                                                             ",null,null,null,null,null,"06","08","TINTA","0608","0608 - TINTA"]
[null,null,null,null,null,null,null,null,null,null,null,null,null,null,"000002538","QUIQUIJANA                                                                                          ","01","12",12,12,"0112","000002538 - QUIQUIJANA                                                                                          ",null,null,null,null,null,"07","00","(All)","0700","0700 - (All)"]
[null,null,null,null,null,null,null,null,null,null,null,null,null,null,"000002539","CCOLCA","01","12",12,12,"0112","000002539 - CCOLCA",null,null,null,null,null,"07","01","SANTO TOMAS","0701","0701 - SANTO TOMAS"]
[null,null,null,null,null,null,null,null,null,null,null,null,null,null,"000006980","CHILLIHUANI                                                                                         ","01","12",12,"06","0112","000006980 - CHILLIHUANI                                                                                         ",null,null,null,null,null,"07","02","CAPACMARCA","0702","0702 - CAPACMARCA"]
[null,null,null,null,null,null,null,null,null,null,null,null,null,null,"000008911","HUARA HUARA                                                                                         ","01","12",12,"05","0112","000008911 - HUARA HUARA                                                                                         ",null,null,null,null,null,"07","03","CHAMACA","0703","0703 - CHAMACA"]
[null,null,null,null,null,null,null,null,null,null,null,null,null,null,"000011747","SANIDAD-PUCUTO PNP","01","12",12,"07","0112","000011747 - SANIDAD-PUCUTO PNP",null,null,null,null,null,"07","04","COLQUEMARCA","0704","0704 - COLQUEMARCA"]
[null,null,null,null,null,null,null,null,null,null,null,null,null,null,"000026385","ESSALUD-URCOS","01","12",12,"01","0112","000026385 - ESSALUD-URCOS",null,null,null,null,null,"07","05","LIVITACA","0705","0705 - LIVITACA"]
[null,null,null,null,null,null,null,null,null,null,null,null,null,null,"000030708","MENTAL COMUNITARIO HUARO","01","12",12,"07","0112","000030708 - MENTAL COMUNITARIO HUARO",null,null,null,null,null,"07","06","LLUSCO","0706","0706 - LLUSCO"]
[null,null,null,null,null,null,null,null,null,null,null,null,null,null,"000000000","(All)","01","13",null,null,"0113","000000000 - (All)",null,null,null,null,null,"07","07","QUIÑOTA","0707","0707 - QUIÑOTA"]
[null,null,null,null,null,null,null,null,null,null,null,null,null,null,"000002317","ACOMAYO                                                                                             ","01","13","02","01","0113","000002317 - ACOMAYO                                                                                             ",null,null,null,null,null,"07","08","VELILLE","0708","0708 - VELILLE"]
[null,null,null,null,null,null,null,null,null,null,null,null,null,null,"000002318","ACOPIA                                                                                              ","01","13","02","02","0113","000002318 - ACOPIA                                                                                              ",null,null,null,null,null,"08","00","(All)","0800","0800 - (All)"]
[null,null,null,null,null,null,null,null,null,null,null,null,null,null,"000002319","ACOS                                                                                                ","01","13","02","03","0113",{"$f":"CONCATENATE(O74,\" - \",P74)","v":"000002319 - ACOS                                                                                                "},null,null,null,null,null,"08","01","ESPINAR","0801","0801 - ESPINAR"]
[null,null,null,null,null,null,null,null,null,null,null,null,null,null,"000002321","CENTRO DE SALUD POMACANCHI","01","13","02","05","0113","000002321 - CENTRO DE SALUD POMACANCHI",null,null,null,null,null,"08","02","CONDOROMA",{"$f":"CONCATENATE(AB75,AC75)","v":"0802"},{"$f":"CONCATENATE(AB75,AC75,\" - \",AD75)","v":"0802 - CONDOROMA"}]
[null,null,null,null,null,null,null,null,null,null,null,null,null,null,"000002322","SAN JUAN DE POMACANCHI                                                                              ","01","13","02","05","0113","000002322 - SAN JUAN DE POMACANCHI                                                                              ",null,null,null,null,null,"08","03","COPORAQUE","0803","0803 - COPORAQUE"]
[null,null,null,null,null,null,null,null,null,null,null,null,null,null,"000002324","PUESTO DE SALUD SANGARARA","01","13","02","07","0113","000002324 - PUESTO DE SALUD SANGARARA",null,null,null,null,null,"08","04","OCORURO","0804","0804 - OCORURO"]
[null,null,null,null,null,null,null,null,null,null,null,null,null,null,"000002325","PUESTO DE SALUD MARCACONGA","01","13","02","07","0113","000002325 - PUESTO DE SALUD MARCACONGA",null,null,null,null,null,"08","05","PALLPATA","0805","0805 - PALLPATA"]
[null,null,null,null,null,null,null,null,null,null,null,null,null,null,"000002508","PILLPINTO                                                                                           ","01","13",10,"08","0113","000002508 - PILLPINTO                                                                                           ",null,null,null,null,null,"08","06","PICHIGUA","0806","0806 - PICHIGUA"]
[null,null,null,null,null,null,null,null,null,null,null,null,null,null,"000010076","ESSALUD-ACOMAYO","01","13","02","01","0113","000010076 - ESSALUD-ACOMAYO",null,null,null,null,null,"08","07","SUYCKUTAMBO","0807","0807 - SUYCKUTAMBO"]
[null,null,null,null,null,null,null,null,null,null,null,null,null,null,"000012926","SANTA  LUCIA                                                                                        ","01","13","02","05","0113","000012926 - SANTA  LUCIA                                                                                        ",null,null,null,null,null,"08","08","ALTO PICHIGUA","0808","0808 - ALTO PICHIGUA"]
[null,null,null,null,null,null,null,null,null,null,null,null,null,null,"000000000","(All)","01","15",null,null,"0115","000000000 - (All)",null,null,null,null,null,"09","00","(All)","0900","0900 - (All)"]
[null,null,null,null,null,null,null,null,null,null,null,null,null,null,"000002524","PAMPACAMARA                                                                                         ","01","15",12,"05","0115","000002524 - PAMPACAMARA                                                                                         ",null,null,null,null,null,"09","01","SANTA ANA","0901","0901 - SANTA ANA"]
[null,null,null,null,null,null,null,null,null,null,null,null,null,null,"000002526","QUINCE MIL","01","15",12,"03","0115","000002526 - QUINCE MIL",null,null,null,null,null,"09","02","ECHARATE","0902","0902 - ECHARATE"]
[null,null,null,null,null,null,null,null,null,null,null,null,null,null,"000002527","CCARHUAYO","01","15",12,"04","0115","000002527 - CCARHUAYO",null,null,null,null,null,"09","03","HUAYOPATA","0903","0903 - HUAYOPATA"]
[null,null,null,null,null,null,null,null,null,null,null,null,null,null,"000002528","CCATCCA                                                                                             ","01","15",12,"05","0115","000002528 - CCATCCA                                                                                             ",null,null,null,null,null,"09","04","MARANURA","0904","0904 - MARANURA"]
[null,null,null,null,null,null,null,null,null,null,null,null,null,null,"000002529","KCAURY                                                                                              ","01","15",12,"05","0115","000002529 - KCAURY                                                                                              ",null,null,null,null,null,"09","05","OCOBAMBA","0905","0905 - OCOBAMBA"]
[null,null,null,null,null,null,null,null,null,null,null,null,null,null,"000002535","MARCAPATA                                                                                           ","01","15",12,"09","0115","000002535 - MARCAPATA                                                                                           ",null,null,null,null,null,"09","06","QUELLOUNO","0906","0906 - QUELLOUNO"]
[null,null,null,null,null,null,null,null,null,null,null,null,null,null,"000002536","OCONGATE                                                                                            ","01","15",12,10,"0115","000002536 - OCONGATE                                                                                            ",null,null,null,null,null,"09","07","KIMBIRI","0907","0907 - KIMBIRI"]
[null,null,null,null,null,null,null,null,null,null,null,null,null,null,"000006977","TINKI                                                                                               ","01","15",12,10,{"$f":"CONCATENATE(Q90,R90)","v":"0115"},"000006977 - TINKI                                                                                               ",null,null,null,null,null,"09","08","SANTA TERESA","0908","0908 - SANTA TERESA"]
[null,null,null,null,null,null,null,null,null,null,null,null,null,null,"000007110","INCACANCHA                                                                                          ","01","15",12,"09","0115","000007110 - INCACANCHA                                                                                          ",null,null,null,null,null,"09","09","VILCABAMBA","0909","0909 - VILCABAMBA"]
[null,null,null,null,null,null,null,null,null,null,null,null,null,null,"000012931","CHICHINA                                                                                            ","01","15",12,"05","0115","000012931 - CHICHINA                                                                                            ",null,null,null,null,null,"09","10","PICHARI","0910","0910 - PICHARI"]
[null,null,null,null,null,null,null,null,null,null,null,null,null,null,"000016335","CCAPANA                                                                                             ","01","15",12,"05","0115","000016335 - CCAPANA                                                                                             ",null,null,null,null,null,"09","11","INKAWASI                                ","0911","0911 - INKAWASI                                "]
[null,null,null,null,null,null,null,null,null,null,null,null,null,null,"999999999","(All)","01","99",null,null,"0199","999999999 - (All)",null,null,null,null,null,"09","12","VILLA VIRGEN","0912","0912 - VILLA VIRGEN"]
[null,null,null,null,null,null,null,null,null,null,null,null,null,null,"000000000","(All)","02","01",null,null,"0201","000000000 - (All)",null,null,null,null,null,"09","13","VILLA KINTIARINA","0913","0913 - VILLA KINTIARINA"]
[null,null,null,null,null,null,null,null,null,null,null,null,null,null,"000002292","INDEPENDENCIA                                                                                       ","02","01","01","01","0201","000002292 - INDEPENDENCIA                                                                                       ",null,null,null,null,null,"09","14","MEGANTONI","0914","0914 - MEGANTONI"]
[null,null,null,null,null,null,null,null,null,null,null,null,null,null,"000002297","CCORCCA                                                                                             ","02","01","01","02","0201","000002297 - CCORCCA                                                                                             ",null,null,null,null,null,"09","15","KUMPIRUSHIATO","0915","0915 - KUMPIRUSHIATO"]
[null,null,null,null,null,null,null,null,null,null,null,null,null,null,"000002306","BELEMPAMPA                                                                                          ","02","01","01","06","0201","000002306 - BELEMPAMPA                                                                                          ",null,null,null,null,null,"09","16","CIELO PUNCO","0916","0916 - CIELO PUNCO"]
[null,null,null,null,null,null,null,null,null,null,null,null,null,null,"000002308","ZARZUELA ALTA                                                                                       ","02","01","01","06","0201","000002308 - ZARZUELA ALTA                                                                                       ",null,null,null,null,null,"09","17","MANITEA","0917","0917 - MANITEA"]
[null,null,null,null,null,null,null,null,null,null,null,null,null,null,"000002309","DIGNIDAD NACIONAL                                                                                   ","02","01","01","06","0201","000002309 - DIGNIDAD NACIONAL                                                                                   ",null,null,null,null,null,"09","18","UNION ASHANINKA","0918","0918 - UNION ASHANINKA"]
[null,null,null,null,null,null,null,null,null,null,null,null,null,null,"000002313","OCCOPATA                                                                                            ","02","01","01","06","0201","000002313 - OCCOPATA                                                                                            ",null,null,null,null,null,"10","00","(All)","1000","1000 - (All)"]
[null,null,null,null,null,null,null,null,null,null,null,null,null,null,"000010920","EJERCITO-QUINTA BRIGADA DE MONTAÑA","02","01","01","06","0201","000010920 - EJERCITO-QUINTA BRIGADA DE MONTAÑA",null,null,null,null,null,"10","01","PARURO","1001","1001 - PARURO"]
[null,null,null,null,null,null,null,null,null,null,null,null,null,null,"000026182","MENTAL SANTIAGO","02","01","01","06","0201","000026182 - MENTAL SANTIAGO",null,null,null,null,null,"10","02","ACCHA","1002","1002 - ACCHA"]
[null,null,null,null,null,null,null,null,null,null,null,null,null,null,"000034933","ESSALUD-SANTIAGO","02","01","01","06","0201","000034933 - ESSALUD-SANTIAGO",null,null,null,null,null,"10","03","CCAPI","1003","1003 - CCAPI"]
[null,null,null,null,null,null,null,null,null,null,null,null,null,null,"000000000","(All)","02","02",null,null,{"$f":"CONCATENATE(Q105,R105)","v":"0202"},"000000000 - (All)",null,null,null,null,null,"10","04","COLCHA","1004","1004 - COLCHA"]
[null,null,null,null,null,null,null,null,null,null,null,null,null,null,"000002302","CCORAO                                                                                              ","02","02","01","05","0202","000002302 - CCORAO                                                                                              ",null,null,null,null,null,"10","05","HUANOQUITE","1005","1005 - HUANOQUITE"]
[null,null,null,null,null,null,null,null,null,null,null,null,null,null,"000002307","MANCO CAPAC","02","02","01","06","0202","000002307 - MANCO CAPAC",null,null,null,null,null,"10","06","OMACHA","1006","1006 - OMACHA"]
[null,null,null,null,null,null,null,null,null,null,null,null,null,null,"000002310","CHOCCO                                                                                              ","02","02","01","06","0202","000002310 - CHOCCO                                                                                              ",null,null,null,null,null,"10","07","PACCARITAMBO","1007","1007 - PACCARITAMBO"]
[null,null,null,null,null,null,null,null,null,null,null,null,null,null,"000002315","WANCHAQ                                                                                             ","02","02","01","08","0202","000002315 - WANCHAQ                                                                                             ",null,null,null,null,null,"10","08","PILLPINTO","1008","1008 - PILLPINTO"]
[null,null,null,null,null,null,null,null,null,null,null,null,null,null,"000002316","TTIO                                                                                                ","02","02","01","08","0202","000002316 - TTIO                                                                                                ",null,null,null,null,null,"10","09","YAURISQUE","1009","1009 - YAURISQUE"]
[null,null,null,null,null,null,null,null,null,null,null,null,null,null,"000010041","ESSALUD-ADOLFO GUEVARA V.","02","02","01","08","0202","000010041 - ESSALUD-ADOLFO GUEVARA V.",null,null,null,null,null,"11","00","(All)","1100","1100 - (All)"]
[null,null,null,null,null,null,null,null,null,null,null,null,null,null,"000026183","ESSALUD-METROPOLITANO","02","02","01","08","0202","000026183 - ESSALUD-METROPOLITANO",null,null,null,null,null,"11","01","PAUCARTAMBO","1101","1101 - PAUCARTAMBO"]
[null,null,null,null,null,null,null,null,null,null,null,null,null,null,"000030730","PATRON SANTIAGO","02","02","01","08","0202","000030730 - PATRON SANTIAGO",null,null,null,null,null,"11","02","CAICAY","1102","1102 - CAICAY"]
[null,null,null,null,null,null,null,null,null,null,null,null,null,null,"000034419","MENTAL COMUNITARIO CUSCO","02","02","01","08","0202","000034419 - MENTAL COMUNITARIO CUSCO",null,null,null,null,null,"11","03","CHALLABAMBA","1103","1103 - CHALLABAMBA"]
[null,null,null,null,null,null,null,null,null,null,null,null,null,null,"000000000","(All)","02","03",null,null,{"$f":"CONCATENATE(Q115,R115)","v":"0203"},"000000000 - (All)",null,null,null,null,null,"11","04","COLQUEPATA","1104","1104 - COLQUEPATA"]
[null,null,null,null,null,null,null,null,null,null,null,null,null,null,"000002326","ANTA                                                                                                ","02","03","03","01","0203","000002326 - ANTA                                                                                                ",null,null,null,null,null,"11","05","HUANCARANI","1105","1105 - HUANCARANI"]
[null,null,null,null,null,null,null,null,null,null,null,null,null,null,"000002327","CHACAN                                                                                              ","02","03","03","01","0203","000002327 - CHACAN                                                                                              ",null,null,null,null,null,"11","06","KOSÑIPATA","1106","1106 - KOSÑIPATA"]
[null,null,null,null,null,null,null,null,null,null,null,null,null,null,"000002328","COMPONE                                                                                             ","02","03","03","01","0203","000002328 - COMPONE                                                                                             ",null,null,null,null,null,"12","00","(All)","1200","1200 - (All)"]
[null,null,null,null,null,null,null,null,null,null,null,null,null,null,"000002329","CONCHACALLA                                                                                         ","02","03","03","01","0203","000002329 - CONCHACALLA                                                                                         ",null,null,null,null,null,"12","01","URCOS","1201","1201 - URCOS"]
[null,null,null,null,null,null,null,null,null,null,null,null,null,null,"000002330","ANCAHUASI                                                                                           ","02","03","03","02","0203","000002330 - ANCAHUASI                                                                                           ",null,null,null,null,null,"12","02","ANDAHUAYLILLAS","1202","1202 - ANDAHUAYLILLAS"]
[null,null,null,null,null,null,null,null,null,null,null,null,null,null,"000002331","CACHIMAYO                                                                                           ","02","03","03","03","0203","000002331 - CACHIMAYO                                                                                           ",null,null,null,null,null,"12","03","CAMANTI","1203","1203 - CAMANTI"]
[null,null,null,null,null,null,null,null,null,null,null,null,null,null,"000002333","HUAROCONDO                                                                                          ","02","03","03","05","0203","000002333 - HUAROCONDO                                                                                          ",null,null,null,null,null,"12","04","CCARHUAYO","1204","1204 - CCARHUAYO"]
[null,null,null,null,null,null,null,null,null,null,null,null,null,null,"000002334","HUAYLLACOCHA                                                                                        ","02","03","03","05","0203","000002334 - HUAYLLACOCHA                                                                                        ",null,null,null,null,null,"12","05","CCATCA","1205","1205 - CCATCA"]
[null,null,null,null,null,null,null,null,null,null,null,null,null,null,"000002339","PUCYURA ANTA                                                                                        ","02","03","03","08","0203","000002339 - PUCYURA ANTA                                                                                        ",null,null,null,null,null,"12","06","CUSIPATA","1206","1206 - CUSIPATA"]
[null,null,null,null,null,null,null,null,null,null,null,null,null,null,"000002340","ZURITE                                                                                              ","02","03","03","09","0203","000002340 - ZURITE                                                                                              ",null,null,null,null,null,"12","07","HUARO","1207","1207 - HUARO"]
[null,null,null,null,null,null,null,null,null,null,null,null,null,null,"000006972","PANTIPATA                                                                                           ","02","03","03","04","0203","000006972 - PANTIPATA                                                                                           ",null,null,null,null,null,"12","08","LUCRE","1208","1208 - LUCRE"]
[null,null,null,null,null,null,null,null,null,null,null,null,null,null,"000027790","MENTAL COMUNITARIO ANTA","02","03","03","01","0203","000027790 - MENTAL COMUNITARIO ANTA",null,null,null,null,null,"12","09","MARCAPATA","1209","1209 - MARCAPATA"]
[null,null,null,null,null,null,null,null,null,null,null,null,null,null,"000029514","ESSALUD-ANTA","02","03","03","01","0203","000029514 - ESSALUD-ANTA",null,null,null,null,null,"12","10","OCONGATE","1210","1210 - OCONGATE"]
[null,null,null,null,null,null,null,null,null,null,null,null,null,null,"000035838","PARCCOTICA","02","03","03","04","0203","000035838 - PARCCOTICA",null,null,null,null,null,"12","11","OROPESA","1211","1211 - OROPESA"]
[null,null,null,null,null,null,null,null,null,null,null,null,null,null,"000036240","CHINCHAYPUJIO                                                                                       ","02","03","03","04","0203","000036240 - CHINCHAYPUJIO                                                                                       ",null,null,null,null,null,"12","12","QUIQUIJANA","1212","1212 - QUIQUIJANA"]
[null,null,null,null,null,null,null,null,null,null,null,null,null,null,"000000000","(All)","02","04",null,null,{"$f":"CONCATENATE(Q131,R131)","v":"0204"},"000000000 - (All)",null,null,null,null,null,"13","00","(All)","1300","1300 - (All)"]
[null,null,null,null,null,null,null,null,null,null,null,null,null,null,"000002336","LIMATAMBO                                                                                           ","02","04","03","06","0204","000002336 - LIMATAMBO                                                                                           ",null,null,null,null,null,"13","01","URUBAMBA","1301","1301 - URUBAMBA"]
[null,null,null,null,null,null,null,null,null,null,null,null,null,null,"000002337","PAMPACONGA                                                                                          ","02","04","03","06","0204","000002337 - PAMPACONGA                                                                                          ",null,null,null,null,null,"13","02","CHINCHERO","1302","1302 - CHINCHERO"]
[null,null,null,null,null,null,null,null,null,null,null,null,null,null,"000002338","MOLLEPATA                                                                                           ","02","04","03","07","0204","000002338 - MOLLEPATA                                                                                           ",null,null,null,null,null,"13","03","HUAYLLABAMBA","1303","1303 - HUAYLLABAMBA"]
[null,null,null,null,null,null,null,null,null,null,null,null,null,null,"000010761","URATARI                                                                                             ","02","04","03","06","0204","000010761 - URATARI                                                                                             ",null,null,null,null,null,"13","04","MACHUPICCHU","1304","1304 - MACHUPICCHU"]
[null,null,null,null,null,null,null,null,null,null,null,null,null,null,"000021061","HUAMANPATA                                                                                          ","02","04","03","07","0204","000021061 - HUAMANPATA                                                                                          ",null,null,null,null,null,"13","05","MARAS","1305","1305 - MARAS"]
[null,null,null,null,null,null,null,null,null,null,null,null,null,null,"000000000","(All)","02","05",null,null,"0205","000000000 - (All)",null,null,null,null,null,"13","06","OLLANTAYTAMBO","1306","1306 - OLLANTAYTAMBO"]
[null,null,null,null,null,null,null,null,null,null,null,null,null,null,"000002343","COYA                                                                                                ","02","05","04","02","0205",{"$f":"CONCATENATE(O138,\" - \",P138)","v":"000002343 - COYA                                                                                                "},null,null,null,null,null,"13","07","YUCAY","1307","1307 - YUCAY"]
[null,null,null,null,null,null,null,null,null,null,null,null,null,null,"000002344","LAMAY                                                                                               ","02","05","04","03","0205","000002344 - LAMAY                                                                                               ",null,null,null,null,null,"00","00","(All)",{"$f":"CONCATENATE(AB139,AC139)","v":"0000"},{"$f":"CONCATENATE(AB139,AC139,\" - \",AD139)","v":"0000 - (All)"}]
[null,null,null,null,null,null,null,null,null,null,null,null,null,null,"000002348","PISAC                                                                                               ","02","05","04","05","0205","000002348 - PISAC                                                                                               "]
[null,null,null,null,null,null,null,null,null,null,null,null,null,null,"000002349","CUYO CHICO                                                                                          ","02","05","04","05","0205","000002349 - CUYO CHICO                                                                                          "]
[null,null,null,null,null,null,null,null,null,null,null,null,null,null,"000002350","CUYO GRANDE                                                                                         ","02","05","04","05","0205","000002350 - CUYO GRANDE                                                                                         "]
[null,null,null,null,null,null,null,null,null,null,null,null,null,null,"000002351","QUELLO QUELLO                                                                                       ","02","05","04","05","0205","000002351 - QUELLO QUELLO                                                                                       "]
[null,null,null,null,null,null,null,null,null,null,null,null,null,null,"000002352","SAN SALVADOR                                                                                        ","02","05","04","06","0205","000002352 - SAN SALVADOR                                                                                        "]
[null,null,null,null,null,null,null,null,null,null,null,null,null,null,"000002353","TARAY                                                                                               ","02","05","04","07","0205","000002353 - TARAY                                                                                               "]
[null,null,null,null,null,null,null,null,null,null,null,null,null,null,"000002354","HUANCALLE                                                                                           ","02","05","04","07","0205","000002354 - HUANCALLE                                                                                           "]
[null,null,null,null,null,null,null,null,null,null,null,null,null,null,"000006975","SAYLLAFAYA                                                                                          ","02","05","04","03","0205","000006975 - SAYLLAFAYA                                                                                          "]
[null,null,null,null,null,null,null,null,null,null,null,null,null,null,"000007145","HUAMA                                                                                               ","02","05","04","03","0205","000007145 - HUAMA                                                                                               "]
[null,null,null,null,null,null,null,null,null,null,null,null,null,null,"000007146","POQUES                                                                                              ","02","05","04","03","0205","000007146 - POQUES                                                                                              "]
[null,null,null,null,null,null,null,null,null,null,null,null,null,null,"000036012","HUARQUI","02","05","04","03","0205","000036012 - HUARQUI"]
[null,null,null,null,null,null,null,null,null,null,null,null,null,null,"000036087","TIRACANCHA                                                                                          ","02","05","04","06","0205","000036087 - TIRACANCHA                                                                                          "]
[null,null,null,null,null,null,null,null,null,null,null,null,null,null,"000000000","(All)","02","06",null,null,{"$f":"CONCATENATE(Q152,R152)","v":"0206"},"000000000 - (All)"]
[null,null,null,null,null,null,null,null,null,null,null,null,null,null,"000002341","CALCA                                                                                               ","02","06","04","01","0206","000002341 - CALCA                                                                                               "]
[null,null,null,null,null,null,null,null,null,null,null,null,null,null,"000002342","AMPARAES                                                                                            ","02","06","04","04","0206","000002342 - AMPARAES                                                                                            "]
[null,null,null,null,null,null,null,null,null,null,null,null,null,null,"000002345","CCACHIN                                                                                             ","02","06","04","04","0206","000002345 - CCACHIN                                                                                             "]
[null,null,null,null,null,null,null,null,null,null,null,null,null,null,"000002346","CHOQUECANCHA                                                                                        ","02","06","04","04","0206","000002346 - CHOQUECANCHA                                                                                        "]
[null,null,null,null,null,null,null,null,null,null,null,null,null,null,"000002347","LARES                                                                                               ","02","06","04","04","0206","000002347 - LARES                                                                                               "]
[null,null,null,null,null,null,null,null,null,null,null,null,null,null,"000002361","SUYO                                                                                                ","02","06","04","04","0206","000002361 - SUYO                                                                                                "]
[null,null,null,null,null,null,null,null,null,null,null,null,null,null,"000002515","PAROBAMBA                                                                                           ","02","06",11,"03","0206","000002515 - PAROBAMBA                                                                                           "]
[null,null,null,null,null,null,null,null,null,null,null,null,null,null,"000007143","OTOCANI                                                                                             ","02","06",11,"03","0206","000007143 - OTOCANI                                                                                             "]
[null,null,null,null,null,null,null,null,null,null,null,null,null,null,"000007144","PATABAMBA                                                                                           ","02","06","04","07","0206","000007144 - PATABAMBA                                                                                           "]
[null,null,null,null,null,null,null,null,null,null,null,null,null,null,"000010069","ESSALUD-CALCA","02","06","04","01","0206","000010069 - ESSALUD-CALCA"]
[null,null,null,null,null,null,null,null,null,null,null,null,null,null,"000010759","HUARAN                                                                                              ","02","06","04","01","0206","000010759 - HUARAN                                                                                              "]
[null,null,null,null,null,null,null,null,null,null,null,null,null,null,"000010762","ACCHA ALTA - PAMPALLACTA                                                                            ","02","06","04","01","0206","000010762 - ACCHA ALTA - PAMPALLACTA                                                                            "]
[null,null,null,null,null,null,null,null,null,null,null,null,null,null,"000026273","MENTAL COMUNITARIO CALCA","02","06","04","01","0206","000026273 - MENTAL COMUNITARIO CALCA"]
[null,null,null,null,null,null,null,null,null,null,null,null,null,null,"000000000","(All)","02","07",null,null,"0207","000000000 - (All)"]
[null,null,null,null,null,null,null,null,null,null,null,null,null,null,"000002540","URUBAMBA                                                                                            ","02","07",13,"01","0207","000002540 - URUBAMBA                                                                                            "]
[null,null,null,null,null,null,null,null,null,null,null,null,null,null,"000002541","YANAHUARA                                                                                           ","02","07",13,"01","0207","000002541 - YANAHUARA                                                                                           "]
[null,null,null,null,null,null,null,null,null,null,null,null,null,null,"000002543","CHINCHERO                                                                                           ","02","07",13,"02","0207","000002543 - CHINCHERO                                                                                           "]
[null,null,null,null,null,null,null,null,null,null,null,null,null,null,"000002544","OCCOTUAN                                                                                            ","02","07",13,"02","0207","000002544 - OCCOTUAN                                                                                            "]
[null,null,null,null,null,null,null,null,null,null,null,null,null,null,"000002545","HUAYLLABAMBA                                                                                        ","02","07",13,"03","0207","000002545 - HUAYLLABAMBA                                                                                        "]
[null,null,null,null,null,null,null,null,null,null,null,null,null,null,"000002546","MACHUPICCHU                                                                                         ","02","07",13,"04","0207","000002546 - MACHUPICCHU                                                                                         "]
[null,null,null,null,null,null,null,null,null,null,null,null,null,null,"000002547","COLLPANI                                                                                            ","02","07",13,"04","0207","000002547 - COLLPANI                                                                                            "]
[null,null,null,null,null,null,null,null,null,null,null,null,null,null,"000002548","MARAS                                                                                               ","02","07",13,"05","0207","000002548 - MARAS                                                                                               "]
[null,null,null,null,null,null,null,null,null,null,null,null,null,null,"000002549","OLLANTAYTAMBO                                                                                       ","02","07",13,"06","0207","000002549 - OLLANTAYTAMBO                                                                                       "]
[null,null,null,null,null,null,null,null,null,null,null,null,null,null,"000002550","CHILLCA                                                                                            ","02","07",13,"06","0207","000002550 - CHILLCA                                                                                            "]
[null,null,null,null,null,null,null,null,null,null,null,null,null,null,"000002551","YUCAY                                                                                               ","02","07",13,"07","0207","000002551 - YUCAY                                                                                               "]
[null,null,null,null,null,null,null,null,null,null,null,null,null,null,"000006974","CAMINO INCA HUAYLLABAMBA                                                                            ","02","07",13,"04","0207","000006974 - CAMINO INCA HUAYLLABAMBA                                                                            "]
[null,null,null,null,null,null,null,null,null,null,null,null,null,null,"000010073","ESSALUD-MACHU PICCHU","02","07",13,"04","0207","000010073 - ESSALUD-MACHU PICCHU"]
[null,null,null,null,null,null,null,null,null,null,null,null,null,null,"000010758","CRUZPATA                                                                                            ","02","07",13,"05","0207","000010758 - CRUZPATA                                                                                            "]
[null,null,null,null,null,null,null,null,null,null,null,null,null,null,"000010760","PATACANCHA                                                                                          ","02","07",13,"06","0207","000010760 - PATACANCHA                                                                                          "]
[null,null,null,null,null,null,null,null,null,null,null,null,null,null,"000030666","MENTAL COMUNITARIO URUBAMBA","02","07",13,"01","0207","000030666 - MENTAL COMUNITARIO URUBAMBA"]
[null,null,null,null,null,null,null,null,null,null,null,null,null,null,"000035851","ESSALUD-URUBAMBA","02","07",13,"01","0207","000035851 - ESSALUD-URUBAMBA"]
[null,null,null,null,null,null,null,null,null,null,null,null,null,null,"000000000","(All)","02","08",null,null,{"$f":"CONCATENATE(Q184,R184)","v":"0208"},"000000000 - (All)"]
[null,null,null,null,null,null,null,null,null,null,null,null,null,null,"000002355","LA QUEBRADA                                                                                         ","02","08","04","08","0208","000002355 - LA QUEBRADA                                                                                         "]
[null,null,null,null,null,null,null,null,null,null,null,null,null,null,"000002356","CCORIMAYO                                                                                           ","02","08","04","08","0208","000002356 - CCORIMAYO                                                                                           "]
[null,null,null,null,null,null,null,null,null,null,null,null,null,null,"000002357","COLCCA YANATILE                                                                                     ","02","08","04","08","0208","000002357 - COLCCA YANATILE                                                                                     "]
[null,null,null,null,null,null,null,null,null,null,null,null,null,null,"000002358","MUYUPAY                                                                                             ","02","08","04","08","0208","000002358 - MUYUPAY                                                                                             "]
[null,null,null,null,null,null,null,null,null,null,null,null,null,null,"000002359","PUTUCUSI                                                                                            ","02","08","04","08","0208","000002359 - PUTUCUSI                                                                                            "]
[null,null,null,null,null,null,null,null,null,null,null,null,null,null,"000002360","QUESQUENTO                                                                                          ","02","08","04","08","0208","000002360 - QUESQUENTO                                                                                          "]
[null,null,null,null,null,null,null,null,null,null,null,null,null,null,"000002362","HUACHIBAMBA                                                                                         ","02","08","04","08","0208","000002362 - HUACHIBAMBA                                                                                         "]
[null,null,null,null,null,null,null,null,null,null,null,null,null,null,"000002464","VERSALLES                                                                                           ","02","08","09","05","0208","000002464 - VERSALLES                                                                                           "]
[null,null,null,null,null,null,null,null,null,null,null,null,null,null,"000002467","PUENTE SANTIAGO                                                                                     ","02","08","09","06","0208","000002467 - PUENTE SANTIAGO                                                                                     "]
[null,null,null,null,null,null,null,null,null,null,null,null,null,null,"000006971","COMBAPATA YANATILE                                                                                  ","02","08","04","08","0208","000006971 - COMBAPATA YANATILE                                                                                  "]
[null,null,null,null,null,null,null,null,null,null,null,null,null,null,"000006973","BELLAVISTA                                                                                          ","02","08","04","08","0208","000006973 - BELLAVISTA                                                                                          "]
[null,null,null,null,null,null,null,null,null,null,null,null,null,null,"000007142","CHANCAMAYO                                                                                          ","02","08","04","08","0208","000007142 - CHANCAMAYO                                                                                          "]
[null,null,null,null,null,null,null,null,null,null,null,null,null,null,"000000000","(All)","02","09",null,null,"0209","000000000 - (All)"]
[null,null,null,null,null,null,null,null,null,null,null,null,null,null,"000002290","SAN PEDRO CUSCO                                                                                     ","02","09","01","01","0209","000002290 - SAN PEDRO CUSCO                                                                                     "]
[null,null,null,null,null,null,null,null,null,null,null,null,null,null,"000002291","SIETE CUARTONES                                                                                     ","02","09","01","01","0209","000002291 - SIETE CUARTONES                                                                                     "]
[null,null,null,null,null,null,null,null,null,null,null,null,null,null,"000002293","MIRAFLORES                                                                                          ","02","09","01","01","0209","000002293 - MIRAFLORES                                                                                          "]
[null,null,null,null,null,null,null,null,null,null,null,null,null,null,"000002294","PICCHU LA RINCONADA                                                                                 ","02","09","01","01","0209","000002294 - PICCHU LA RINCONADA                                                                                 "]
[null,null,null,null,null,null,null,null,null,null,null,null,null,null,"000002295","BUENA VISTA                                                                                         ","02","09","01","01","0209",{"$f":"CONCATENATE(O202,\" - \",P202)","v":"000002295 - BUENA VISTA                                                                                         "}]
[null,null,null,null,null,null,null,null,null,null,null,null,null,null,"000002299","POROY                                                                                               ","02","09","01","03","0209","000002299 - POROY                                                                                               "]
[null,null,null,null,null,null,null,null,null,null,null,null,null,null,"999999999","(All)","02","99",null,null,"0299","999999999 - (All)"]
[null,null,null,null,null,null,null,null,null,null,null,null,null,null,"000002421","HOSPITAL QUILLABAMBA","03","00","09","01","0300","000002421 - HOSPITAL QUILLABAMBA"]
[null,null,null,null,null,null,null,null,null,null,null,null,null,null,"000000000","(All)","03","01",null,null,"0301","000000000 - (All)"]
[null,null,null,null,null,null,null,null,null,null,null,null,null,null,"000002422","HUAYANAY                                                                                            ","03","01","09","01","0301","000002422 - HUAYANAY                                                                                            "]
[null,null,null,null,null,null,null,null,null,null,null,null,null,null,"000002423","IDMA                                                                                                ","03","01","09","01","0301","000002423 - IDMA                                                                                                "]
[null,null,null,null,null,null,null,null,null,null,null,null,null,null,"000002424","POTRERO                                                                                             ","03","01","09","01","0301","000002424 - POTRERO                                                                                             "]
[null,null,null,null,null,null,null,null,null,null,null,null,null,null,"000002425","ECHARATE                                                                                            ","03","01","09","02","0301","000002425 - ECHARATE                                                                                            "]
[null,null,null,null,null,null,null,null,null,null,null,null,null,null,"000002429","CIRIALO                                                                                             ","03","01","09","02","0301","000002429 - CIRIALO                                                                                             "]
[null,null,null,null,null,null,null,null,null,null,null,null,null,null,"000002430","PAMPA CONCEPCION                                                                                    ","03","01","09","02","0301","000002430 - PAMPA CONCEPCION                                                                                    "]
[null,null,null,null,null,null,null,null,null,null,null,null,null,null,"000002433","KORIBENI                                                                                            ","03","01","09","02","0301","000002433 - KORIBENI                                                                                            "]
[null,null,null,null,null,null,null,null,null,null,null,null,null,null,"000002439","PALMA REAL                                                                                          ","03","01","09","02","0301","000002439 - PALMA REAL                                                                                          "]
[null,null,null,null,null,null,null,null,null,null,null,null,null,null,"000002446","CHACCO                                                                                              ","03","01","09","02","0301","000002446 - CHACCO                                                                                              "]
[null,null,null,null,null,null,null,null,null,null,null,null,null,null,"000002449","ICHIQUIATO                                                                                          ","03","01","09","02","0301","000002449 - ICHIQUIATO                                                                                          "]
[null,null,null,null,null,null,null,null,null,null,null,null,null,null,"000002450","SAN ANTONIO                                                                                         ","03","01","09","02","0301","000002450 - SAN ANTONIO                                                                                         "]
[null,null,null,null,null,null,null,null,null,null,null,null,null,null,"000002451","CHAHUARES                                                                                           ","03","01","09","02","0301","000002451 - CHAHUARES                                                                                           "]
[null,null,null,null,null,null,null,null,null,null,null,null,null,null,"000008910","SANTA ANA                                                                                           ","03","01","09","01","0301","000008910 - SANTA ANA                                                                                           "]
[null,null,null,null,null,null,null,null,null,null,null,null,null,null,"000010062","ESSALUD-QUILLABAMBA","03","01","09","01","0301","000010062 - ESSALUD-QUILLABAMBA"]
[null,null,null,null,null,null,null,null,null,null,null,null,null,null,"000011744","SANIDAD-QUILLABAMBA PNP","03","01","09","01","0301","000011744 - SANIDAD-QUILLABAMBA PNP"]
[null,null,null,null,null,null,null,null,null,null,null,null,null,null,"000015842","PAVAYOC                                                                                             ","03","01","09","01","0301","000015842 - PAVAYOC                                                                                             "]
[null,null,null,null,null,null,null,null,null,null,null,null,null,null,"000023721","EJERCITO-PERUANO","03","01","09","01","0301","000023721 - EJERCITO-PERUANO"]
[null,null,null,null,null,null,null,null,null,null,null,null,null,null,"000026386","MENTAL QUILLABAMBA","03","01","09","01","0301","000026386 - MENTAL QUILLABAMBA"]
[null,null,null,null,null,null,null,null,null,null,null,null,null,null,"000033273","SAN ISIDRO LABRADOR - ECHARATI","03","01","09","02","0301","000033273 - SAN ISIDRO LABRADOR - ECHARATI"]
[null,null,null,null,null,null,null,null,null,null,null,null,null,null,"000000000","(All)","03","02",null,null,"0302","000000000 - (All)"]
[null,null,null,null,null,null,null,null,null,null,null,null,null,null,"000002453","HUYRO                                                                                               ","03","02","09","03","0302","000002453 - HUYRO                                                                                               "]
[null,null,null,null,null,null,null,null,null,null,null,null,null,null,"000002454","ALFAMAYO                                                                                            ","03","02","09","03","0302","000002454 - ALFAMAYO                                                                                            "]
[null,null,null,null,null,null,null,null,null,null,null,null,null,null,"000002455","HUAYOPATA                                                                                           ","03","02","09","03","0302","000002455 - HUAYOPATA                                                                                           "]
[null,null,null,null,null,null,null,null,null,null,null,null,null,null,"000002456","AMAYBAMBA                                                                                           ","03","02","09","03","0302","000002456 - AMAYBAMBA                                                                                           "]
[null,null,null,null,null,null,null,null,null,null,null,null,null,null,"000002457","SAN PABLO HUAYOPATA                                                                                 ","03","02","09","03","0302","000002457 - SAN PABLO HUAYOPATA                                                                                 "]
[null,null,null,null,null,null,null,null,null,null,null,null,null,null,"000002458","MARANURA                                                                                            ","03","02","09","04","0302","000002458 - MARANURA                                                                                            "]
[null,null,null,null,null,null,null,null,null,null,null,null,null,null,"000002460","SANTA MARIA                                                                                         ","03","02","09","04","0302","000002460 - SANTA MARIA                                                                                         "]
[null,null,null,null,null,null,null,null,null,null,null,null,null,null,"000002461","UCHUMAYO                                                                                            ","03","02","09","04","0302","000002461 - UCHUMAYO                                                                                            "]
[null,null,null,null,null,null,null,null,null,null,null,null,null,null,"000002476","SANTA TERESA                                                                                        ","03","02","09","08","0302","000002476 - SANTA TERESA                                                                                        "]
[null,null,null,null,null,null,null,null,null,null,null,null,null,null,"000002477","SULLUCUYOC                                                                                          ","03","02","09","08","0302","000002477 - SULLUCUYOC                                                                                          "]
[null,null,null,null,null,null,null,null,null,null,null,null,null,null,"000002478","TOTORA                                                                                              ","03","02","09","08","0302","000002478 - TOTORA                                                                                              "]
[null,null,null,null,null,null,null,null,null,null,null,null,null,null,"000010075","ESSALUD-HUYRO","03","02","09","03","0302","000010075 - ESSALUD-HUYRO"]
[null,null,null,null,null,null,null,null,null,null,null,null,null,null,"000000000","(All)","03","03",null,null,"0303","000000000 - (All)"]
[null,null,null,null,null,null,null,null,null,null,null,null,null,null,"000002363","TUPAC AMARU QUELLOUNO                                                                               ","03","03","04","08","0303","000002363 - TUPAC AMARU QUELLOUNO                                                                               "]
[null,null,null,null,null,null,null,null,null,null,null,null,null,null,"000002462","OCCOBAMBA LACONVENCION                                                                              ","03","03","09","05","0303","000002462 - OCCOBAMBA LACONVENCION                                                                              "]
[null,null,null,null,null,null,null,null,null,null,null,null,null,null,"000002463","CHINGANILLA                                                                                         ","03","03","09","05","0303","000002463 - CHINGANILLA                                                                                         "]
[null,null,null,null,null,null,null,null,null,null,null,null,null,null,"000002465","QUELLOUNO                                                                                           ","03","03","09","06","0303","000002465 - QUELLOUNO                                                                                           "]
[null,null,null,null,null,null,null,null,null,null,null,null,null,null,"000002466","HUILLCAPAMPA                                                                                        ","03","03","09","06","0303","000002466 - HUILLCAPAMPA                                                                                        "]
[null,null,null,null,null,null,null,null,null,null,null,null,null,null,"000002468","SAN MARTIN                                                                                          ","03","03","09","06","0303","000002468 - SAN MARTIN                                                                                          "]
[null,null,null,null,null,null,null,null,null,null,null,null,null,null,"000008906","ESTRELLA                                                                                            ","03","03","09","06","0303","000008906 - ESTRELLA                                                                                            "]
[null,null,null,null,null,null,null,null,null,null,null,null,null,null,"000008907","MATORIATO                                                                                           ","03","03","09","06","0303","000008907 - MATORIATO                                                                                           "]
[null,null,null,null,null,null,null,null,null,null,null,null,null,null,"000008908","CHIRUMBIA                                                                                           ","03","03","09","06",{"$f":"CONCATENATE(Q248,R248)","v":"0303"},"000008908 - CHIRUMBIA                                                                                           "]
[null,null,null,null,null,null,null,null,null,null,null,null,null,null,"000008909","CHAPO BOYERO                                                                                        ","03","03","09","06","0303","000008909 - CHAPO BOYERO                                                                                        "]
[null,null,null,null,null,null,null,null,null,null,null,null,null,null,"000000000","(All)","03","04",null,null,"0304","000000000 - (All)"]
[null,null,null,null,null,null,null,null,null,null,null,null,null,null,"000002427","KITENI                                                                                              ","03","04","09","02","0304","000002427 - KITENI                                                                                              "]
[null,null,null,null,null,null,null,null,null,null,null,null,null,null,"000002431","IVOCHOTE                                                                                            ","03","04","09","02","0304","000002431 - IVOCHOTE                                                                                            "]
[null,null,null,null,null,null,null,null,null,null,null,null,null,null,"000002432","KEPASHIATO                                                                                          ","03","04","09","15","0304","000002432 - KEPASHIATO                                                                                          "]
[null,null,null,null,null,null,null,null,null,null,null,null,null,null,"000002434","MATERIATO                                                                                           ","03","04","09","15","0304","000002434 - MATERIATO                                                                                           "]
[null,null,null,null,null,null,null,null,null,null,null,null,null,null,"000002438","PACHIRI                                                                                             ","03","04","09","02","0304","000002438 - PACHIRI                                                                                             "]
[null,null,null,null,null,null,null,null,null,null,null,null,null,null,"000002440","PANGOA                                                                                              ","03","04","09","02","0304","000002440 - PANGOA                                                                                              "]
[null,null,null,null,null,null,null,null,null,null,null,null,null,null,"000002443","SANIRIATO                                                                                           ","03","04","09","02","0304","000002443 - SANIRIATO                                                                                           "]
[null,null,null,null,null,null,null,null,null,null,null,null,null,null,"000002447","KAMANQUIRIATO                                                                                       ","03","04","09","02","0304","000002447 - KAMANQUIRIATO                                                                                       "]
[null,null,null,null,null,null,null,null,null,null,null,null,null,null,"000002489","YUVENI                                                                                              ","03","04","09","09","0304","000002489 - YUVENI                                                                                              "]
[null,null,null,null,null,null,null,null,null,null,null,null,null,null,"000002493","SELVA ALEGRE                                                                                        ","03","04","09","09","0304","000002493 - SELVA ALEGRE                                                                                        "]
[null,null,null,null,null,null,null,null,null,null,null,null,null,null,"000006976","CHONTABAMBA                                                                                         ","03","04","09","09","0304","000006976 - CHONTABAMBA                                                                                         "]
[null,null,null,null,null,null,null,null,null,null,null,null,null,null,"000013068","TRIO RIO                                                                                            ","03","04","09","15","0304","000013068 - TRIO RIO                                                                                            "]
[null,null,null,null,null,null,null,null,null,null,null,null,null,null,"000013069","PUGUIENTIMARI                                                                                       ","03","04","09","15","0304","000013069 - PUGUIENTIMARI                                                                                       "]
[null,null,null,null,null,null,null,null,null,null,null,null,null,null,"000014531","ESSALUD-ECHARATE/KITENI","03","04","09","02","0304","000014531 - ESSALUD-ECHARATE/KITENI"]
[null,null,null,null,null,null,null,null,null,null,null,null,null,null,"000024296","EJERCITO-MIARIA 334","03","04","09","02",{"$f":"CONCATENATE(Q265,R265)","v":"0304"},"000024296 - EJERCITO-MIARIA 334"]
[null,null,null,null,null,null,null,null,null,null,null,null,null,null,"000024583","EJERCITO-KEPASHIATO 314","03","04","09","02",{"$f":"CONCATENATE(Q266,R266)","v":"0304"},{"$f":"CONCATENATE(O266,\" - \",P266)","v":"000024583 - EJERCITO-KEPASHIATO 314"}]
[null,null,null,null,null,null,null,null,null,null,null,null,null,null,"000000000","(All)","03","05",null,null,{"$f":"CONCATENATE(Q267,R267)","v":"0305"},"000000000 - (All)"]
[null,null,null,null,null,null,null,null,null,null,null,null,null,null,"000002426","KIRIGUETI                                                                                           ","03","05","09","14","0305","000002426 - KIRIGUETI                                                                                           "]
[null,null,null,null,null,null,null,null,null,null,null,null,null,null,"000002428","CHOCORIARI                                                                                          ","03","05","09","14","0305","000002428 - CHOCORIARI                                                                                          "]
[null,null,null,null,null,null,null,null,null,null,null,null,null,null,"000002435","MIARIA                                                                                              ","03","05","09","14","0305","000002435 - MIARIA                                                                                              "]
[null,null,null,null,null,null,null,null,null,null,null,null,null,null,"000002436","NUEVA LUZ                                                                                           ","03","05","09","14","0305","000002436 - NUEVA LUZ                                                                                           "]
[null,null,null,null,null,null,null,null,null,null,null,null,null,null,"000002437","NUEVO MUNDO                                                                                         ","03","05","09","14","0305","000002437 - NUEVO MUNDO                                                                                         "]
[null,null,null,null,null,null,null,null,null,null,null,null,null,null,"000002441","PUERTO HUALLANA                                                                                     ","03","05","09","14","0305","000002441 - PUERTO HUALLANA                                                                                     "]
[null,null,null,null,null,null,null,null,null,null,null,null,null,null,"000002442","PUERTO RICO                                                                                         ","03","05","09","14","0305","000002442 - PUERTO RICO                                                                                         "]
[null,null,null,null,null,null,null,null,null,null,null,null,null,null,"000002444","SENSA                                                                                               ","03","05","09","14","0305","000002444 - SENSA                                                                                               "]
[null,null,null,null,null,null,null,null,null,null,null,null,null,null,"000002445","TIMPIA                                                                                              ","03","05","09","14","0305","000002445 - TIMPIA                                                                                              "]
[null,null,null,null,null,null,null,null,null,null,null,null,null,null,"000002448","KAMISEA                                                                                             ","03","05","09","14","0305","000002448 - KAMISEA                                                                                             "]
[null,null,null,null,null,null,null,null,null,null,null,null,null,null,"000002452","SHIVANKORENI                                                                                        ","03","05","09","14","0305","000002452 - SHIVANKORENI                                                                                        "]
[null,null,null,null,null,null,null,null,null,null,null,null,null,null,"000013066","MONTETONI                                                                                           ","03","05","09","14","0305","000013066 - MONTETONI                                                                                           "]
[null,null,null,null,null,null,null,null,null,null,null,null,null,null,"000013067","TANGOSHIARI                                                                                         ","03","05","09","14","0305","000013067 - TANGOSHIARI                                                                                         "]
[null,null,null,null,null,null,null,null,null,null,null,null,null,null,"000015235","NUEVA VIDA                                                                                          ","03","05","09","14","0305","000015235 - NUEVA VIDA                                                                                          "]
[null,null,null,null,null,null,null,null,null,null,null,null,null,null,"000015843","CASHIRIARI                                                                                          ","03","05","09","14","0305","000015843 - CASHIRIARI                                                                                          "]
[null,null,null,null,null,null,null,null,null,null,null,null,null,null,"000015844","CAMANA                                                                                              ","03","05","09","14","0305","000015844 - CAMANA                                                                                              "]
[null,null,null,null,null,null,null,null,null,null,null,null,null,null,"000000000","(All)","03","06",null,null,"0306","000000000 - (All)"]
[null,null,null,null,null,null,null,null,null,null,null,null,null,null,"000002480","PUCYURA                                                                                             ","03","06","09","09","0306","000002480 - PUCYURA                                                                                             "]
[null,null,null,null,null,null,null,null,null,null,null,null,null,null,"000002481","CCARCCO                                                                                             ","03","06","09",11,"0306","000002481 - CCARCCO                                                                                             "]
[null,null,null,null,null,null,null,null,null,null,null,null,null,null,"000002482","INCAHUASI                                                                                           ","03","06","09",11,"0306","000002482 - INCAHUASI                                                                                           "]
[null,null,null,null,null,null,null,null,null,null,null,null,null,null,"000002484","OYARA                                                                                               ","03","06","09","09","0306","000002484 - OYARA                                                                                               "]
[null,null,null,null,null,null,null,null,null,null,null,null,null,null,"000002485","PACCAYBAMBA                                                                                         ","03","06","09",11,"0306","000002485 - PACCAYBAMBA                                                                                         "]
[null,null,null,null,null,null,null,null,null,null,null,null,null,null,"000002486","PAMPACONAS                                                                                          ","03","06","09","09","0306","000002486 - PAMPACONAS                                                                                          "]
[null,null,null,null,null,null,null,null,null,null,null,null,null,null,"000002487","CHOQUETIRA                                                                                          ","03","06","09",11,"0306","000002487 - CHOQUETIRA                                                                                          "]
[null,null,null,null,null,null,null,null,null,null,null,null,null,null,"000002490","ARMA                                                                                                ","03","06","09","09","0306","000002490 - ARMA                                                                                                "]
[null,null,null,null,null,null,null,null,null,null,null,null,null,null,"000002491","LUCMAHUAYCO                                                                                         ","03","06","09",11,"0306","000002491 - LUCMAHUAYCO                                                                                         "]
[null,null,null,null,null,null,null,null,null,null,null,null,null,null,"000002492","PALTAYBAMBA                                                                                         ","03","06","09","09","0306","000002492 - PALTAYBAMBA                                                                                         "]
[null,null,null,null,null,null,null,null,null,null,null,null,null,null,"000024637","EJERCITO-INCAHUASI 331                                                                                       ","03","06","09",11,"0306","000024637 - EJERCITO-INCAHUASI 331                                                                                       "]
[null,null,null,null,null,null,null,null,null,null,null,null,null,null,"000035520","CHANCAVINE                                                                                          ","03","06","09",12,"0306","000035520 - CHANCAVINE                                                                                          "]
[null,null,null,null,null,null,null,null,null,null,null,null,null,null,"999999999","(All)","03","99",null,null,{"$f":"CONCATENATE(Q297,R297)","v":"0399"},"999999999 - (All)"]
[null,null,null,null,null,null,null,null,null,null,null,null,null,null,"000002378","HOSPITAL SICUANI","04","00","06","01","0400","000002378 - HOSPITAL SICUANI"]
[null,null,null,null,null,null,null,null,null,null,null,null,null,null,"000007135","HOSPITAL ESPINAR","04","00","08","01","0400","000007135 - HOSPITAL ESPINAR"]
[null,null,null,null,null,null,null,null,null,null,null,null,null,null,"000000000","(All)","04","01",null,null,"0401","000000000 - (All)"]
[null,null,null,null,null,null,null,null,null,null,null,null,null,null,"000002364","YANAOCA                                                                                             ","04","01","05","01","0401","000002364 - YANAOCA                                                                                             "]
[null,null,null,null,null,null,null,null,null,null,null,null,null,null,"000002365","PONGOÑA                                                                                             ","04","01","05","01","0401","000002365 - PONGOÑA                                                                                             "]
[null,null,null,null,null,null,null,null,null,null,null,null,null,null,"000002372","PAMPAMARCA                                                                                          ","04","01","05","06","0401","000002372 - PAMPAMARCA                                                                                          "]
[null,null,null,null,null,null,null,null,null,null,null,null,null,null,"000002373","QUEHUE                                                                                              ","04","01","05","07","0401","000002373 - QUEHUE                                                                                              "]
[null,null,null,null,null,null,null,null,null,null,null,null,null,null,"000002374","HUINCHIRI                                                                                           ","04","01","05","07","0401","000002374 - HUINCHIRI                                                                                           "]
[null,null,null,null,null,null,null,null,null,null,null,null,null,null,"000002375","SURIMANA                                                                                            ","04","01","05","08","0401","000002375 - SURIMANA                                                                                            "]
[null,null,null,null,null,null,null,null,null,null,null,null,null,null,"000002376","TUNGASUCA                                                                                           ","04","01","05","08","0401","000002376 - TUNGASUCA                                                                                           "]
[null,null,null,null,null,null,null,null,null,null,null,null,null,null,"000002377","TOCCOCCORI                                                                                          ","04","01","05","08","0401","000002377 - TOCCOCCORI                                                                                          "]
[null,null,null,null,null,null,null,null,null,null,null,null,null,null,"000018241","HAMPATURA                                                                                           ","04","01","05","01","0401","000018241 - HAMPATURA                                                                                           "]
[null,null,null,null,null,null,null,null,null,null,null,null,null,null,"000032339","CCOCHAPATA                                                                                     ","04","01","05","08","0401","000032339 - CCOCHAPATA                                                                                     "]
[null,null,null,null,null,null,null,null,null,null,null,null,null,null,"000034449","CHAUPIBANDA","04","01","05","08","0401","000034449 - CHAUPIBANDA"]
[null,null,null,null,null,null,null,null,null,null,null,null,null,null,"000000000","(All)","04","02",null,null,"0402","000000000 - (All)"]
[null,null,null,null,null,null,null,null,null,null,null,null,null,null,"000002366","CHECCA                                                                                              ","04","02","05","02","0402","000002366 - CHECCA                                                                                              "]
[null,null,null,null,null,null,null,null,null,null,null,null,null,null,"000002367","CHITIBAMBA                                                                                          ","04","02","05","02","0402","000002367 - CHITIBAMBA                                                                                          "]
[null,null,null,null,null,null,null,null,null,null,null,null,null,null,"000007700","EL DESCANSO                                                                                         ","04","02","05","03","0402","000007700 - EL DESCANSO                                                                                         "]
[null,null,null,null,null,null,null,null,null,null,null,null,null,null,"000000000","(All)","04","03",null,null,"0403","000000000 - (All)"]
[null,null,null,null,null,null,null,null,null,null,null,null,null,null,"000002320","MOSOCLLACTA                                                                                         ","04","03","02","04","0403","000002320 - MOSOCLLACTA                                                                                         "]
[null,null,null,null,null,null,null,null,null,null,null,null,null,null,"000002386","COMBAPATA CANCHIS                                                                                   ","04","03","06","03","0403","000002386 - COMBAPATA CANCHIS                                                                                   "]
[null,null,null,null,null,null,null,null,null,null,null,null,null,null,"000002397","TINTA                                                                                               ","04","03","06","08","0403","000002397 - TINTA                                                                                               "]
[null,null,null,null,null,null,null,null,null,null,null,null,null,null,"000034448","CHIARA                                                                                              ","04","03","06","03","0403","000034448 - CHIARA                                                                                              "]
[null,null,null,null,null,null,null,null,null,null,null,null,null,null,"000034887","PITUMARCA                                                                                           ","04","03","06","05","0403","000034887 - PITUMARCA                                                                                           "]
[null,null,null,null,null,null,null,null,null,null,null,null,null,null,"000034929","CHECACUPE                                                                                           ","04","03","06","02","0403","000034929 - CHECACUPE                                                                                           "]
[null,null,null,null,null,null,null,null,null,null,null,null,null,null,"000000000","(All)","04","04",null,null,"0404","000000000 - (All)"]
[null,null,null,null,null,null,null,null,null,null,null,null,null,null,"000002369","LANGUI                                                                                              ","04","04","05","04","0404","000002369 - LANGUI                                                                                              "]
[null,null,null,null,null,null,null,null,null,null,null,null,null,null,"000002370","CONDEVILUYO                                                                                         ","04","04","05","04","0404","000002370 - CONDEVILUYO                                                                                         "]
[null,null,null,null,null,null,null,null,null,null,null,null,null,null,"000002371","LAYO                                                                                                ","04","04","05","05","0404","000002371 - LAYO                                                                                                "]
[null,null,null,null,null,null,null,null,null,null,null,null,null,null,"000002379","HERCCA                                                                                              ","04","04","06","01","0404","000002379 - HERCCA                                                                                              "]
[null,null,null,null,null,null,null,null,null,null,null,null,null,null,"000002380","TECHO OBRERO                                                                                        ","04","04","06","01","0404","000002380 - TECHO OBRERO                                                                                        "]
[null,null,null,null,null,null,null,null,null,null,null,null,null,null,"000002388","MARANGANI                                                                                           ","04","04","06","04","0404","000002388 - MARANGANI                                                                                           "]
[null,null,null,null,null,null,null,null,null,null,null,null,null,null,"000002389","CHECTUYOC                                                                                           ","04","04","06","04","0404",{"$f":"CONCATENATE(O330,\" - \",P330)","v":"000002389 - CHECTUYOC                                                                                           "}]
[null,null,null,null,null,null,null,null,null,null,null,null,null,null,"000002390","CCUYO                                                                                               ","04","04","06","04","0404","000002390 - CCUYO                                                                                               "]
[null,null,null,null,null,null,null,null,null,null,null,null,null,null,"000002391","OCCOBAMBA MARANGANI                                                                                 ","04","04","06","04","0404","000002391 - OCCOBAMBA MARANGANI                                                                                 "]
[null,null,null,null,null,null,null,null,null,null,null,null,null,null,"000010063","ESSALUD-SICUANI","04","04","06","01","0404","000010063 - ESSALUD-SICUANI"]
[null,null,null,null,null,null,null,null,null,null,null,null,null,null,"000024663","SANIDAD-SICUANI PNP","04","04","06","01","0404","000024663 - SANIDAD-SICUANI PNP"]
[null,null,null,null,null,null,null,null,null,null,null,null,null,null,"000000000","(All)","04","05",null,null,"0405","000000000 - (All)"]
[null,null,null,null,null,null,null,null,null,null,null,null,null,null,"000002381","QUEHUAR                                                                                             ","04","05","06","01","0405","000002381 - QUEHUAR                                                                                             "]
[null,null,null,null,null,null,null,null,null,null,null,null,null,null,"000002382","UZCUPATA                                                                                            ","04","05","06","01","0405","000002382 - UZCUPATA                                                                                            "]
[null,null,null,null,null,null,null,null,null,null,null,null,null,null,"000002383","LA FLORIDA                                                                                          ","04","05","06","01","0405","000002383 - LA FLORIDA                                                                                          "]
[null,null,null,null,null,null,null,null,null,null,null,null,null,null,"000002393","PHINAYA                                                                                             ","04","05","06","05","0405","000002393 - PHINAYA                                                                                             "]
[null,null,null,null,null,null,null,null,null,null,null,null,null,null,"000002394","SAN PABLO CANCHIS                                                                                   ","04","05","06","06","0405","000002394 - SAN PABLO CANCHIS                                                                                   "]
[null,null,null,null,null,null,null,null,null,null,null,null,null,null,"000002395","SANTA BARBARA                                                                                       ","04","05","06","06","0405","000002395 - SANTA BARBARA                                                                                       "]
[null,null,null,null,null,null,null,null,null,null,null,null,null,null,"000002396","SAN PEDRO CANCHIS                                                                                   ","04","05","06","07","0405","000002396 - SAN PEDRO CANCHIS                                                                                   "]
[null,null,null,null,null,null,null,null,null,null,null,null,null,null,"000032923","SR DE PAMPACUCHO-SICUANI","04","05","06","01","0405","000032923 - SR DE PAMPACUCHO-SICUANI"]
[null,null,null,null,null,null,null,null,null,null,null,null,null,null,"000035845","PAMPAPHALLA                                                                                         ","04","05","06","01","0405","000035845 - PAMPAPHALLA                                                                                         "]
[null,null,null,null,null,null,null,null,null,null,null,null,null,null,"000035848","MENTAL COMUNITARIO SICUANI","04","05","06","01","0405","000035848 - MENTAL COMUNITARIO SICUANI"]
[null,null,null,null,null,null,null,null,null,null,null,null,null,null,"000000000","(All)","04","06",null,null,"0406","000000000 - (All)"]
[null,null,null,null,null,null,null,null,null,null,null,null,null,null,"000002410","YAURI                                                                                               ","04","06","08","01","0406","000002410 - YAURI                                                                                               "]
[null,null,null,null,null,null,null,null,null,null,null,null,null,null,"000002411","CONDOROMA                                                                                           ","04","06","08","02","0406","000002411 - CONDOROMA                                                                                           "]
[null,null,null,null,null,null,null,null,null,null,null,null,null,null,"000002412","COPORAQUE                                                                                           ","04","06","08","03","0406","000002412 - COPORAQUE                                                                                           "]
[null,null,null,null,null,null,null,null,null,null,null,null,null,null,"000002413","URINSAYA                                                                                            ","04","06","08","03","0406","000002413 - URINSAYA                                                                                            "]
[null,null,null,null,null,null,null,null,null,null,null,null,null,null,"000002414","HUAYHUAHUASI                                                                                        ","04","06","08","03","0406","000002414 - HUAYHUAHUASI                                                                                        "]
[null,null,null,null,null,null,null,null,null,null,null,null,null,null,"000002415","OCCORURO                                                                                            ","04","06","08","04","0406","000002415 - OCCORURO                                                                                            "]
[null,null,null,null,null,null,null,null,null,null,null,null,null,null,"000002416","PALLPATA                                                                                            ","04","06","08","05","0406","000002416 - PALLPATA                                                                                            "]
[null,null,null,null,null,null,null,null,null,null,null,null,null,null,"000002418","SAN MIGUEL                                                                                          ","04","06","08","06","0406","000002418 - SAN MIGUEL                                                                                          "]
[null,null,null,null,null,null,null,null,null,null,null,null,null,null,"000002419","SUYKUTAMBO                                                                                          ","04","06","08","07","0406","000002419 - SUYKUTAMBO                                                                                          "]
[null,null,null,null,null,null,null,null,null,null,null,null,null,null,"000002420","ACCOCUNCA                                                                                           ","04","06","08","08","0406","000002420 - ACCOCUNCA                                                                                           "]
[null,null,null,null,null,null,null,null,null,null,null,null,null,null,"000006745","TINTAYA MARQUIRI                                                                                    ","04","06","08","01","0406","000006745 - TINTAYA MARQUIRI                                                                                    "]
[null,null,null,null,null,null,null,null,null,null,null,null,null,null,"000010061","ESSALUD-ESPINAR","04","06","08","01","0406","000010061 - ESSALUD-ESPINAR"]
[null,null,null,null,null,null,null,null,null,null,null,null,null,null,"000030366","MENTAL COMUNITARIO ESPINAR","04","06","08","01","0406","000030366 - MENTAL COMUNITARIO ESPINAR"]
[null,null,null,null,null,null,null,null,null,null,null,null,null,null,"000034450","PICHIGUA ESPINAR                                                                                    ","04","06","08","06","0406","000034450 - PICHIGUA ESPINAR                                                                                    "]
[null,null,null,null,null,null,null,null,null,null,null,null,null,null,"999999999","(All)","04","99",null,null,{"$f":"CONCATENATE(Q361,R361)","v":"0499"},"999999999 - (All)"]
[null,null,null,null,null,null,null,null,null,null,null,null,null,null,"000002469","SAN JUAN DE KIMBIRI-VRAEM                                                                           ","05","00","09","07","0500","000002469 - SAN JUAN DE KIMBIRI-VRAEM                                                                           "]
[null,null,null,null,null,null,null,null,null,null,null,null,null,null,"000000000","(All)","05","01",null,null,"0501","000000000 - (All)"]
[null,null,null,null,null,null,null,null,null,null,null,null,null,null,"000002470","CHIRUMPIARI                                                                                         ","05","01","09","16","0501","000002470 - CHIRUMPIARI                                                                                         "]
[null,null,null,null,null,null,null,null,null,null,null,null,null,null,"000002471","LOBO TAHUANTINSUYO                                                                                  ","05","01","09","17","0501","000002471 - LOBO TAHUANTINSUYO                                                                                  "]
[null,null,null,null,null,null,null,null,null,null,null,null,null,null,"000002472","MAPITUNARI                                                                                          ","05","01","09","07","0501","000002472 - MAPITUNARI                                                                                          "]
[null,null,null,null,null,null,null,null,null,null,null,null,null,null,"000002473","UNION ROSALES                                                                                       ","05","01","09","17","0501","000002473 - UNION ROSALES                                                                                       "]
[null,null,null,null,null,null,null,null,null,null,null,null,null,null,"000002474","SAMANIATO                                                                                           ","05","01","09","07","0501","000002474 - SAMANIATO                                                                                           "]
[null,null,null,null,null,null,null,null,null,null,null,null,null,null,"000002475","KIMBIRI ALTO                                                                                        ","05","01","09","07","0501","000002475 - KIMBIRI ALTO                                                                                        "]
[null,null,null,null,null,null,null,null,null,null,null,null,null,null,"000002479","VILLA VIRGEN                                                                                        ","05","01","09",12,"0501","000002479 - VILLA VIRGEN                                                                                        "]
[null,null,null,null,null,null,null,null,null,null,null,null,null,null,"000002488","VILLA QUINTIARINA                                                                                   ","05","01","09",13,"0501","000002488 - VILLA QUINTIARINA                                                                                   "]
[null,null,null,null,null,null,null,null,null,null,null,null,null,null,"000008283","PUEBLO LIBRE                                                                                        ","05","01","09","07","0501","000008283 - PUEBLO LIBRE                                                                                        "]
[null,null,null,null,null,null,null,null,null,null,null,null,null,null,"000008284","MANITEA ALTA                                                                                        ","05","01","09","17","0501","000008284 - MANITEA ALTA                                                                                        "]
[null,null,null,null,null,null,null,null,null,null,null,null,null,null,"000008285","ANGELES                                                                                             ","05","01","09","07","0501","000008285 - ANGELES                                                                                             "]
[null,null,null,null,null,null,null,null,null,null,null,null,null,null,"000024957","EJERCITO-LA OROYA 34                                                                                 ","05","01","09",12,"0501","000024957 - EJERCITO-LA OROYA 34                                                                                 "]
[null,null,null,null,null,null,null,null,null,null,null,null,null,null,"000000000","(All)","05","02",null,null,"0502","000000000 - (All)"]
[null,null,null,null,null,null,null,null,null,null,null,null,null,null,"000002495","MANTARO                                                                                             ","05","02","09","18","0502","000002495 - MANTARO                                                                                             "]
[null,null,null,null,null,null,null,null,null,null,null,null,null,null,"000002496","OMAYA                                                                                               ","05","02","09","10","0502","000002496 - OMAYA                                                                                               "]
[null,null,null,null,null,null,null,null,null,null,null,null,null,null,"000002497","OTARI                                                                                               ","05","02","09","10","0502","000002497 - OTARI                                                                                               "]
[null,null,null,null,null,null,null,null,null,null,null,null,null,null,"000002498","PUERTO MAYO                                                                                         ","05","02","09","10","0502","000002498 - PUERTO MAYO                                                                                         "]
[null,null,null,null,null,null,null,null,null,null,null,null,null,null,"000007113","NATIVIDAD                                                                                           ","05","02","09","10","0502","000007113 - NATIVIDAD                                                                                           "]
[null,null,null,null,null,null,null,null,null,null,null,null,null,null,"000007114","QUISTO CENTRAL                                                                                      ","05","02","09","10","0502","000007114 - QUISTO CENTRAL                                                                                      "]
[null,null,null,null,null,null,null,null,null,null,null,null,null,null,"000015104","TAMBO DEL ENE                                                                                       ","05","02","09","10","0502","000015104 - TAMBO DEL ENE                                                                                       "]
[null,null,null,null,null,null,null,null,null,null,null,null,null,null,"000015169","PITIRINQUINI                                                                                        ","05","02","09","10","0502","000015169 - PITIRINQUINI                                                                                        "]
[null,null,null,null,null,null,null,null,null,null,null,null,null,null,"000015170","PICHARI BAJA                                                                                        ","05","02","09","10","0502","000015170 - PICHARI BAJA                                                                                        "]
[null,null,null,null,null,null,null,null,null,null,null,null,null,null,"000024638","EJERCITO-MILITAR PICHARI                                                                    ","05","02","09","10","0502","000024638 - EJERCITO-MILITAR PICHARI                                                                    "]
[null,null,null,null,null,null,null,null,null,null,null,null,null,null,"000027230","SANIDAD-PICHARI PNP                                                                            ","05","02","09","10","0502","000027230 - SANIDAD-PICHARI PNP                                                                            "]
[null,null,null,null,null,null,null,null,null,null,null,null,null,null,"000027948","ESSALUD-PICHARI                                                                       ","05","02","09","10","0502","000027948 - ESSALUD-PICHARI                                                                       "]
[null,null,null,null,null,null,null,null,null,null,null,null,null,null,"000032211","NUEVO PROGRESO                                                          ","05","02","09","10","0502","000032211 - NUEVO PROGRESO                                                          "]
[null,null,null,null,null,null,null,null,null,null,null,null,null,null,"000033988","MENTAL COMUNITARIO PICHARI","05","02","09","10","0502","000033988 - MENTAL COMUNITARIO PICHARI"]
[null,null,null,null,null,null,null,null,null,null,null,null,null,null,"000034418","PICHARI VRAEM                                                                                           ","05","02","09","10","0502","000034418 - PICHARI VRAEM                                                                                           "]
[null,null,null,null,null,null,null,null,null,null,null,null,null,null,"999999999","(All)","05","99",null,null,"0599","999999999 - (All)"]
[null,null,null,null,null,null,null,null,null,null,null,null,null,null,"000002398","HOSPITAL SANTO TOMAS","06","00","07","01","0600","000002398 - HOSPITAL SANTO TOMAS"]
[null,null,null,null,null,null,null,null,null,null,null,null,null,null,"000000000","(All)","06","09",null,null,"0609",{"$f":"CONCATENATE(O394,\" - \",P394)","v":"000000000 - (All)"}]
[null,null,null,null,null,null,null,null,null,null,null,null,null,null,"000002399","PULPERA                                                                                             ","06","09","07","01","0609","000002399 - PULPERA                                                                                             "]
[null,null,null,null,null,null,null,null,null,null,null,null,null,null,"000002400","ALHUACCHULLO                                                                                        ","06","09","07","01","0609","000002400 - ALHUACCHULLO                                                                                        "]
[null,null,null,null,null,null,null,null,null,null,null,null,null,null,"000002401","CCAPACMARCA                                                                                         ","06","09","07","02","0609","000002401 - CCAPACMARCA                                                                                         "]
[null,null,null,null,null,null,null,null,null,null,null,null,null,null,"000002404","COLQUEMARCA                                                                                         ","06","09","07","04","0609","000002404 - COLQUEMARCA                                                                                         "]
[null,null,null,null,null,null,null,null,null,null,null,null,null,null,"000002405","CHARAMURAY                                                                                          ","06","09","07","04","0609","000002405 - CHARAMURAY                                                                                          "]
[null,null,null,null,null,null,null,null,null,null,null,null,null,null,"000002407","LLUSCO                                                                                              ","06","09","07","06","0609","000002407 - LLUSCO                                                                                              "]
[null,null,null,null,null,null,null,null,null,null,null,null,null,null,"000002408","QUIÑOTA                                                                                             ","06","09","07","07","0609","000002408 - QUIÑOTA                                                                                             "]
[null,null,null,null,null,null,null,null,null,null,null,null,null,null,"000002409","VELILLE                                                                                             ","06","09","07","08","0609","000002409 - VELILLE                                                                                             "]
[null,null,null,null,null,null,null,null,null,null,null,null,null,null,"000006746","LLIQUE                                                                                              ","06","09","07","01","0609","000006746 - LLIQUE                                                                                              "]
[null,null,null,null,null,null,null,null,null,null,null,null,null,null,"000006747","LUTTO                                                                                               ","06","09","07","06","0609","000006747 - LUTTO                                                                                               "]
[null,null,null,null,null,null,null,null,null,null,null,null,null,null,"000006748","COLLPA                                                                                              ","06","09","07","06","0609","000006748 - COLLPA                                                                                              "]
[null,null,null,null,null,null,null,null,null,null,null,null,null,null,"000006981","CCOYO                                                                                               ","06","09","07","01","0609","000006981 - CCOYO                                                                                               "]
[null,null,null,null,null,null,null,null,null,null,null,null,null,null,"000006982","MELLOTOTORA                                                                                         ","06","09","07","01","0609","000006982 - MELLOTOTORA                                                                                         "]
[null,null,null,null,null,null,null,null,null,null,null,null,null,null,"000006983","ORCCOMA                                                                                             ","06","09","07","01","0609","000006983 - ORCCOMA                                                                                             "]
[null,null,null,null,null,null,null,null,null,null,null,null,null,null,"000006984","CCOLLANA                                                                                            ","06","09","07","07","0609","000006984 - CCOLLANA                                                                                            "]
[null,null,null,null,null,null,null,null,null,null,null,null,null,null,"000006985","TOTORAPALLCA                                                                                        ","06","09","07","06","0609","000006985 - TOTORAPALLCA                                                                                        "]
[null,null,null,null,null,null,null,null,null,null,null,null,null,null,"000007111","YAVINA                                                                                              ","06","09","07","01","0609","000007111 - YAVINA                                                                                              "]
[null,null,null,null,null,null,null,null,null,null,null,null,null,null,"000007112","YORENCCA                                                                                            ","06","09","07","07","0609","000007112 - YORENCCA                                                                                            "]
[null,null,null,null,null,null,null,null,null,null,null,null,null,null,"000008912","ALCCA VICTORIA                                                                                      ","06","09","07","08","0609","000008912 - ALCCA VICTORIA                                                                                      "]
[null,null,null,null,null,null,null,null,null,null,null,null,null,null,"000008913","HUARACO                                                                                             ","06","09","07","04","0609","000008913 - HUARACO                                                                                             "]
[null,null,null,null,null,null,null,null,null,null,null,null,null,null,"000008914","HUAYLLANI                                                                                           ","06","09","07","04","0609","000008914 - HUAYLLANI                                                                                           "]
[null,null,null,null,null,null,null,null,null,null,null,null,null,null,"000008915","PFULLPURI CONDEPAMPA                                                                                ","06","09","07","01","0609","000008915 - PFULLPURI CONDEPAMPA                                                                                "]
[null,null,null,null,null,null,null,null,null,null,null,null,null,null,"000009963","CANCAHUANI                                                                                          ","06","09","07","02","0609","000009963 - CANCAHUANI                                                                                          "]
[null,null,null,null,null,null,null,null,null,null,null,null,null,null,"000012932","YANQUE                                                                                              ","06","09","07","04","0609","000012932 - YANQUE                                                                                              "]
[null,null,null,null,null,null,null,null,null,null,null,null,null,null,"000013185","ESSALUD-SANTO TOMAS","06","09","07","01","0609","000013185 - ESSALUD-SANTO TOMAS"]
[null,null,null,null,null,null,null,null,null,null,null,null,null,null,"000025369","PUMALLACTA","06","09","07","07","0609","000025369 - PUMALLACTA"]
[null,null,null,null,null,null,null,null,null,null,null,null,null,null,"000025371","TUNTUMA","06","09","07","08","0609","000025371 - TUNTUMA"]
[null,null,null,null,null,null,null,null,null,null,null,null,null,null,"000027008","ANTUYO","06","09","07","06","0609","000027008 - ANTUYO"]
[null,null,null,null,null,null,null,null,null,null,null,null,null,null,"000027009","TAHUAY","06","09","07","02","0609","000027009 - TAHUAY"]
[null,null,null,null,null,null,null,null,null,null,null,null,null,null,"000027011","AYACCASI","06","09","07","08","0609","000027011 - AYACCASI"]
[null,null,null,null,null,null,null,null,null,null,null,null,null,null,"000027016","HUAYCUÑUTA - URCURUTA","06","09","07","08",{"$f":"CONCATENATE(Q425,R425)","v":"0609"},"000027016 - HUAYCUÑUTA - URCURUTA"]
[null,null,null,null,null,null,null,null,null,null,null,null,null,null,"000030940","ARCANGEL SAN MIGUEL DE ESQUINA CONGUNYA","06","09","07","01","0609","000030940 - ARCANGEL SAN MIGUEL DE ESQUINA CONGUNYA"]
[null,null,null,null,null,null,null,null,null,null,null,null,null,null,"000000000","(All)","06","01",null,null,"0601","000000000 - (All)"]
[null,null,null,null,null,null,null,null,null,null,null,null,null,null,"000002402","CHAMACA                                                                                             ","06","01","07","03","0601","000002402 - CHAMACA                                                                                             "]
[null,null,null,null,null,null,null,null,null,null,null,null,null,null,"000002403","AÑAHUICHI                                                                                           ","06","01","07","03","0601","000002403 - AÑAHUICHI                                                                                           "]
[null,null,null,null,null,null,null,null,null,null,null,null,null,null,"000002406","LIVITACA                                                                                            ","06","01","07","05","0601","000002406 - LIVITACA                                                                                            "]
[null,null,null,null,null,null,null,null,null,null,null,null,null,null,"000016325","CHILLOROYA - LIVITACA                                                                               ","06","01","07","05","0601","000016325 - CHILLOROYA - LIVITACA                                                                               "]
[null,null,null,null,null,null,null,null,null,null,null,null,null,null,"000016327","AUSANTA                                                                                             ","06","01","07","05","0601","000016327 - AUSANTA                                                                                             "]
[null,null,null,null,null,null,null,null,null,null,null,null,null,null,"000016328","UCCHUCCARCCO                                                                                        ","06","01","07","03","0601","000016328 - UCCHUCCARCCO                                                                                        "]
[null,null,null,null,null,null,null,null,null,null,null,null,null,null,"000016329","INGATA                                                                                              ","06","01","07","03","0601","000016329 - INGATA                                                                                              "]
[null,null,null,null,null,null,null,null,null,null,null,null,null,null,"000016330","CCONCHACCOLLO                                                                                       ","06","01","07","03","0601","000016330 - CCONCHACCOLLO                                                                                       "]
[null,null,null,null,null,null,null,null,null,null,null,null,null,null,"000016332","PATAQUEÑA - LIVITACA","06","01","07","05","0601","000016332 - PATAQUEÑA - LIVITACA"]
[null,null,null,null,null,null,null,null,null,null,null,null,null,null,"000016334","KISIO                                                                                               ","06","01","07","05","0601","000016334 - KISIO                                                                                               "]
[null,null,null,null,null,null,null,null,null,null,null,null,null,null,"000025739","PISQUICOCHA","06","01","07","05","0601","000025739 - PISQUICOCHA"]
[null,null,null,null,null,null,null,null,null,null,null,null,null,null,"000025740","TOTORA - REYNA DE LOS ANGELES","06","01","07","05","0601","000025740 - TOTORA - REYNA DE LOS ANGELES"]
[null,null,null,null,null,null,null,null,null,null,null,null,null,null,"000035860","KAYNO","06","01","07","05","0601","000035860 - KAYNO"]
[null,null,null,null,null,null,null,null,null,null,null,null,null,null,"000035861","CCACHO","06","01","07","03","0601","000035861 - CCACHO"]
[null,null,null,null,null,null,null,null,null,null,null,null,null,null,"000035862","SANTA ISABEL JALCCO","06","01","07","05","0601","000035862 - SANTA ISABEL JALCCO"]
[null,null,null,null,null,null,null,null,null,null,null,null,null,null,"000035863","TINCURCA","06","01","07","03","0601","000035863 - TINCURCA"]
[null,null,null,null,null,null,null,null,null,null,null,null,null,null,"000035864","CANGALLE","06","01","07","01","0601","000035864 - CANGALLE"]
[null,null,null,null,null,null,null,null,null,null,null,null,null,null,"999999999","(All)","06","99",null,null,{"$f":"CONCATENATE(Q445,R445)","v":"0699"},{"$f":"CONCATENATE(O445,\" - \",P445)","v":"999999999 - (All)"}]
[null,null,null,null,null,null,null,null,null,null,null,null,null,null,"999999999","(All)","99","99",null,null,{"$f":"CONCATENATE(Q446,R446)","v":"9999"},{"$f":"CONCATENATE(O446,\" - \",P446)","v":"999999999 - (All)"}]

{"sheet":"TD","index":1,"n_rows":98,"n_cols":262,"rows_kept":98,"cut":false,"hidden":true,"merged":[[1,1,1,3]]}
[]
[null,"Datos",null,null,null,"Tabla",{"$f":"IF(F3=\"(Todas)\",\"CUSCO \",\"\")","v":""}]
[null,"RED","99 - (All)",null,null,{"$f":"TRIM(MID(C3,5,90))","v":"(All)"},{"$f":"IF(F3=\"(All)\",\" \",F3)","v":" "}]
[null,"Micro Red","9999 - (All)",null,null,{"$f":"TRIM(MID(C4,7,90))","v":"(All)"}," "]
[null,"Establecimiento","999999999 - (All)",null,null,{"$f":"TRIM(MID(C5,12,90))","v":"(All)"}," "]
[null,"Provincia","00 - (All)",null,null,{"$f":"TRIM(MID(C6,6,90))","v":"(All)"}," "]
[null,"Distrito","0000 - (All)",null,null,{"$f":"TRIM(MID(C7,8,90))","v":"(All)"}," "]
[null,"UE","7777 - (All)",null,null,{"$f":"TRIM(MID(C8,8,90))","v":"(All)"}," "]
[]
[null,"AÑO",{"$f":"Datos!B10","v":2025}]
[null,"MESES",1,2,3,4,5,0,0,0,0,0,0,0]
[null,"Mes_desc",{"$f":"IF(C11=1,\"ENERO\",\"\")","v":"ENERO"},{"$f":"IF(D11=2,\"FEBRERO\",\"\")","v":"FEBRERO"},{"$f":"IF(E11=3,\"MARZO\",\"\")","v":"MARZO"},{"$f":"IF(F11=4,\"ABRIL\",\"\")","v":"ABRIL"},{"$f":"IF(G11=5,\"MAYO\",\"\")","v":"MAYO"},{"$f":"IF(H11=6,\"JUNIO\",\"\")","v":""},{"$f":"IF(I11=7,\"JULIO\",\"\")","v":""},{"$f":"IF(J11=8,\"AGOSTO\",\"\")","v":""},{"$f":"IF(K11=9,\"SETIEMBRE\",\"\")","v":""},{"$f":"IF(L11=10,\"OCTUBRE\",\"\")","v":""},{"$f":"IF(M11=11,\"NOVIEMBRE\",\"\")","v":""},{"$f":"IF(N11=12,\"DICIEMBRE\",\"\")","v":""},{"$f":"IF(C11=1,C12,IF(D11=2,D12,IF(E11=3,E12,IF(F11=4,F12,IF(G11=5,G12,IF(H11=6,H12,IF(I11=7,I12,IF(J11=8,J12,IF(K11=9,K12,IF(L11=10,L12,IF(M11=11,M12,IF(N11=12,N12,\"\"))))))))))))","v":"ENERO"}]
[]
[null,"ACUMULADO",20,22,24,26,28,null,null,null,null,null,null,null,{"$f":"MIN(C14:N14)","v":20},{"$f":"MAX(C14:N14)","v":28}]
[null,"Mes_desc_Acu",{"$f":"IF(C14=20,\"ENERO\",\"\")","v":"ENERO"},{"$f":"IF(D14=22,\"FEBRERO\",\"\")","v":"FEBRERO"},{"$f":"IF(E14=24,\"MARZO\",\"\")","v":"MARZO"},{"$f":"IF(F14=26,\"ABRIL\",\"\")","v":"ABRIL"},{"$f":"IF(G14=28,\"MAYO\",\"\")","v":"MAYO"},{"$f":"IF(H14=30,\"JUNIO\",\"\")","v":""},{"$f":"IF(I14=32,\"JULIO\",\"\")","v":""},{"$f":"IF(J14=34,\"AGOSTO\",\"\")","v":""},{"$f":"IF(K14=36,\"SETIEMBRE\",\"\")","v":""},{"$f":"IF(L14=38,\"OCTUBRE\",\"\")","v":""},{"$f":"IF(M14=40,\"NOVIEMBRE\",\"\")","v":""},{"$f":"IF(N14=42,\"DICIEMBRE\",\"\")","v":""},{"$f":"IF(O14=C14,C15,IF(O14=D14,D15,IF(O14=E14,E15,IF(O14=F14,F15,IF(O14=G14,G15,IF(O14=H14,H15,IF(O14=I14,I15,IF(O14=J14,J15,IF(O14=K14,K15,IF(O14=L14,L15,IF(O14=M14,M15,IF(O14=N14,N15,\"\"))))))))))))","v":"ENERO"},{"$f":"IF(P14=D14,D15,IF(P14=E14,E15,IF(P14=F14,F15,IF(P14=G14,G15,IF(P14=H14,H15,IF(P14=I14,I15,IF(P14=J14,J15,IF(P14=K14,K15,IF(P14=L14,L15,IF(P14=M14,M15,IF(P14=N14,N15,IF(P14=O14,O15,\"\"))))))))))))","v":"MAYO"}]
[null,null,null,null,null,null,null,null,null,null,null,null,null,null,{"$f":"CONCATENATE(O15,\" - \",P15)","v":"ENERO - MAYO"},{"$f":"IF(O14=P14,O12,O16)","v":"ENERO - MAYO"}]
[]
[]
[]
[]
[]
[]
[]
[]
[]
[]
[]
[]
[]
[]
["Anio","2025"]
["UE","(Todas)"]
["Red","(Todas)"]
["MicroRed","(Todas)"]
["EESS","(Todas)"]
["Provincia","(Todas)"]
["Distrito","(Todas)"]
[null,1,2,3,4,5,6,7,8,9,10,11,12,13,14,15,16,17,18,19,20,21,22,23,24,25,26,27,28,29,30,31,32,33,34,35,36,37,38,39,40,41,42,43,44,45,46,47,48,49,50,51,52,53,54,55,56,57,58,59,60,61,62,63,64,65,66,67,68,69,70,71,72,73,74,75,76,77,78,79,80,81,82,83,84,85,86,87,88,89,90,91,92,93,94,95,96,97,98,99,100,101,102,103,104,105,106,107,108,109,110,111,112,113,114,115,116,117,118,119,120,121,122,123,124,125,126,127,128,129,130,131,132,133,134,135,136,137,138,139,140,141,142,143,144,145,146,147,148,149,150,151,152,153,154,155,156,157,158,159,160,161,162,163,164,165,166,167,168,169,170,171,172,173,174,175,176,177,178,179,180,181,182,183,184,185,186,187,188,189,190,191,192,193,194,195,196,197,198,199,200,201,202,203,204,205,206,207,208,209,210,211,212,213,214,215,216,217,218,219,220,221,222,223,224,225,226,227,228,229,230,231,232,233,234,235,236,237,238,239,240,241,242,243,244,245,246,247,248,249,250,251,252,253,254,255]
["Etiquetas de fila","Suma de ASCUS_AGC_25_29","Suma de ASCUS_AGC_30_39","Suma de ASCUS_AGC_40_49","Suma de ASCUS_AGC_50_59","Suma de ASCUS_AGC_60_64","Suma de ASCUS_AGC_ATC","Suma de NIC_I_25_29","Suma de NIC_I_30_39","Suma de NIC_I_40_49","Suma de NIC_I_50_59","Suma de NIC_I_60_64","Suma de NIC_I_ATC","Suma de NIC_II_III_25_29","Suma de NIC_II_III_30_39","Suma de NIC_II_III_40_49","Suma de NIC_II_III_50_59","Suma de NIC_II_III_60_64","Suma de NIC_II_III_ATC","Suma de CACU_INV_25_29","Suma de CACU_INV_30_39","Suma de CACU_INV_40_49","Suma de CACU_INV_50_59","Suma de CACU_INV_60_64","Suma de CACU_INV_65_Mas","Suma de CACU_INV_ATC","Suma de IVAA_N_25_29","Suma de IVAA_N_30_39","Suma de IVAA_N_40_49","Suma de IVAA_N_50_59","Suma de IVAA_N_60_64","Suma de IVAA_N_ATC","Suma de IVAA_A_25_29","Suma de IVAA_A_30_39","Suma de IVAA_A_40_49","Suma de IVAA_A_50_59","Suma de IVAA_A_60_64","Suma de IVAA_A_ATC","Suma de TOMA_VPH_PROV_25_29","Suma de TOMA_VPH_PROV_30_39","Suma de TOMA_VPH_PROV_40_49","Suma de TOMA_VPH_PROV_50_59","Suma de TOMA_VPH_PROV_60_64","Suma de TOMA_VPH_PROV_ATC","Suma de TOMA_VPH_AUTO_25_29","Suma de TOMA_VPH_AUTO_30_39","Suma de TOMA_VPH_AUTO_40_49","Suma de TOMA_VPH_AUTO_50_59","Suma de TOMA_VPH_AUTO_60_64","Suma de TOMA_VPH_AUTO_ATC","Suma de VPH_NOR_25_29","Suma de VPH_NOR_30_39","Suma de VPH_NOR_40_49","Suma de VPH_NOR_50_59","Suma de VPH_NOR_60_64","Suma de VPH_NOR_ATC","Suma de VPH_ANOR_25_29","Suma de VPH_ANOR_30_39","Suma de VPH_ANOR_40_49","Suma de VPH_ANOR_50_59","Suma de VPH_ANOR_60_64","Suma de VPH_ANOR_ATC","Suma de Ex_Cli_Ma_N_ATC","Suma de Ex_Cli_Ma_N_18_29","Suma de Ex_Cli_Ma_N_30_39","Suma de Ex_Cli_Ma_N_40_49","Suma de Ex_Cli_Ma_N_50_59","Suma de Ex_Cli_Ma_N_60_69","Suma de Ex_Cli_Ma_N_70_Mas","Suma de Ex_Cli_Ma_A_ATC","Suma de Ex_Cli_Ma_A_18_29","Suma de Ex_Cli_Ma_A_30_39","Suma de Ex_Cli_Ma_A_40_49","Suma de Ex_Cli_Ma_A_50_59","Suma de Ex_Cli_Ma_A_60_69","Suma de Ex_Cli_Ma_A_70_Mas","Suma de Tamiz_Indica_Mamografia_ATC","Suma de Tamiz_Indica_Mamografia_18_29","Suma de Tamiz_Indica_Mamografia_30_39","Suma de Tamiz_Indica_Mamografia_40_49","Suma de Tamiz_Indica_Mamografia_50_59","Suma de Tamiz_Indica_Mamografia_60_69","Suma de Tamiz_Indica_Mamografia_70_Mas","Suma de Tamiz_Eval_Adicional_ATC","Suma de Tamiz_Eval_Adicional_18_29","Suma de Tamiz_Eval_Adicional_30_39","Suma de Tamiz_Eval_Adicional_40_49","Suma de Tamiz_Eval_Adicional_50_59","Suma de Tamiz_Eval_Adicional_60_69","Suma de Tamiz_Eval_Adicional_70_Mas","Suma de Tamiz_Negativa_BI_RADS_1_ATC","Suma de Tamiz_Negativa_BI_RADS_1_18_29","Suma de Tamiz_Negativa_BI_RADS_1_30_39","Suma de Tamiz_Negativa_BI_RADS_1_40_49","Suma de Tamiz_Negativa_BI_RADS_1_50_59","Suma de Tamiz_Negativa_BI_RADS_1_60_69","Suma de Tamiz_Negativa_BI_RADS_1_70_Mas","Suma de Tamiz_Benigna_BI_RADS_2_ATC","Suma de Tamiz_Benigna_BI_RADS_2_18_29","Suma de Tamiz_Benigna_BI_RADS_2_30_39","Suma de Tamiz_Benigna_BI_RADS_2_40_49","Suma de Tamiz_Benigna_BI_RADS_2_50_59","Suma de Tamiz_Benigna_BI_RADS_2_60_69","Suma de Tamiz_Probl_Benigna_BI_RADS_3_ATC","Suma de Tamiz_Probl_Benigna_BI_RADS_3_18_29","Suma de Tamiz_Probl_Benigna_BI_RADS_3_50_59","Suma de Tamiz_Probl_Benigna_BI_RADS_3_60_69","Suma de Tamiz_Probl_Benigna_BI_RADS_3_70_Mas","Suma de Tamiz_Anor_Sospechoso_BI_RADS_4_ATC","Suma de Tamiz_Anor_Sospechoso_BI_RADS_4_18_29","Suma de Tamiz_Anor_Sospechoso_BI_RADS_4_30_39","Suma de Tamiz_Anor_Sospechoso_BI_RADS_4_40_49","Suma de Tamiz_Anor_Sospechoso_BI_RADS_4_50_59","Suma de Tamiz_Anor_Sospechoso_BI_RADS_4_60_69","Suma de Tamiz_Anor_Sospechoso_BI_RADS_4_70_Mas","Suma de Tamiz_Alt_Suges_Malig_BI_RADS_5_ATC","Suma de Tamiz_Alt_Suges_Malig_BI_RADS_5_18_29","Suma de Tamiz_Alt_Suges_Malig_BI_RADS_5_30_39","Suma de Tamiz_Alt_Suges_Malig_BI_RADS_5_40_49","Suma de Tamiz_Alt_Suges_Malig_BI_RADS_5_50_59","Suma de Tamiz_Alt_Suges_Malig_BI_RADS_5_60_69","Suma de Tamiz_Alt_Suges_Malig_BI_RADS_5_70_Mas","Suma de Tamiz_Probl_Benigna_BI_RADS_3_30_39","Suma de Tamiz_Probl_Benigna_BI_RADS_3_40_49","Suma de Tamiz_Malig_Conocida_BI_RADS_6_ATC","Suma de Tamiz_Malig_Conocida_BI_RADS_6_18_29","Suma de Tamiz_Malig_Conocida_BI_RADS_6_30_39","Suma de Tamiz_Malig_Conocida_BI_RADS_6_40_49","Suma de Tamiz_Malig_Conocida_BI_RADS_6_50_59","Suma de Tamiz_Malig_Conocida_BI_RADS_6_60_69","Suma de Tamiz_Malig_Conocida_BI_RADS_6_70_Mas","Suma de Indi_Tamiz_Colon_Rec_ATC","Suma de Indi_Tamiz_Colon_Rec_18_29","Suma de Indi_Tamiz_Colon_Rec_30_39","Suma de Indi_Tamiz_Colon_Rec_40_49","Suma de Indi_Tamiz_Colon_Rec_50_59","Suma de Indi_Tamiz_Colon_Rec_60_69","Suma de Indi_Tamiz_Colon_Rec_70_Mas","Suma de Resultado_Colon_Rec_Normal_ATC","Suma de Resultado_Colon_Rec_Normal_18_29","Suma de Resultado_Colon_Rec_Normal_30_39","Suma de Resultado_Colon_Rec_Normal_40_49","Suma de Resultado_Colon_Rec_Normal_50_59","Suma de Resultado_Colon_Rec_Normal_60_69","Suma de Resultado_Colon_Rec_Normal_70_Mas","Suma de Resultado_Colon_Rec_A_Normal_ATC","Suma de Resultado_Colon_Rec_A_Normal_18_29","Suma de Resultado_Colon_Rec_A_Normal_30_39","Suma de Resultado_Colon_Rec_A_Normal_40_49","Suma de Resultado_Colon_Rec_A_Normal_50_59","Suma de Resultado_Colon_Rec_A_Normal_60_69","Suma de Resultado_Colon_Rec_A_Normal_70_Mas","Suma de Indica_Exam_PSA_ATC","Suma de Indica_Exam_PSA_18_29","Suma de Indica_Exam_PSA_30_39","Suma de Indica_Exam_PSA_40_49","Suma de Indica_Exam_PSA_50_59","Suma de Indica_Exam_PSA_60_69","Suma de Indica_Exam_PSA_70_Mas","Suma de Result_PSA_Normal_ATC","Suma de Result_PSA_Normal_18_29","Suma de Result_PSA_Normal_30_39","Suma de Result_PSA_Normal_40_49","Suma de Result_PSA_Normal_50_59","Suma de Result_PSA_Normal_60_69","Suma de Result_PSA_Normal_70_Mas","Suma de Result_PSA_Normal_A_ATC","Suma de Result_PSA_Normal_A_18_29","Suma de Result_PSA_Normal_A_30_39","Suma de Result_PSA_Normal_A_40_49","Suma de Result_PSA_Normal_A_50_59","Suma de Result_PSA_Normal_A_60_69","Suma de Result_PSA_Normal_A_70_Mas","Suma de Tamiz_Piel_Normal_ATC","Suma de Tamiz_Piel_Normal_18_29","Suma de Tamiz_Piel_Normal_30_39","Suma de Tamiz_Piel_Normal_40_49","Suma de Tamiz_Piel_Normal_50_59","Suma de Tamiz_Piel_Normal_60_69","Suma de Tamiz_Piel_Normal_70_Mas","Suma de Tamiz_Piel_A_Normal_ATC","Suma de Tamiz_Piel_A_Normal_18_29","Suma de Tamiz_Piel_A_Normal_30_39","Suma de Tamiz_Piel_A_Normal_40_49","Suma de Tamiz_Piel_A_Normal_50_59","Suma de Tamiz_Piel_A_Normal_60_69","Suma de Tamiz_Piel_A_Normal_70_Mas","Suma de Proc_Bio_Cuell_Uterino_Indi_ATC","Suma de Proc_Bio_Cuell_Uterino_Indi_18_24","Suma de Proc_Bio_Cuell_Uterino_Indi_25_29","Suma de Proc_Bio_Cuell_Uterino_Indi_30_39","Suma de Proc_Bio_Cuell_Uterino_Indi_40_49","Suma de Proc_Bio_Cuell_Uterino_Indi_50_59","Suma de Proc_Bio_Cuell_Uterino_Indi_60_64","Suma de Proc_Bio_Cuell_Uterino_Indi_65","Suma de Proc_Bio_Cuell_Uterino_NIC_I_ATC","Suma de Proc_Bio_Cuell_Uterino_NIC_I_18_24","Suma de Proc_Bio_Cuell_Uterino_NIC_I_25_29","Suma de Proc_Bio_Cuell_Uterino_NIC_I_30_39","Suma de Proc_Bio_Cuell_Uterino_NIC_I_40_49","Suma de Proc_Bio_Cuell_Uterino_NIC_I_50_59","Suma de Proc_Bio_Cuell_Uterino_NIC_I_60_64","Suma de Proc_Bio_Cuell_Uterino_NIC_I_65","Suma de Proc_Bio_Cuell_Uterino_NIC_II_ATC","Suma de Proc_Bio_Cuell_Uterino_NIC_II_18_24","Suma de Proc_Bio_Cuell_Uterino_NIC_II_25_29","Suma de Proc_Bio_Cuell_Uterino_NIC_II_30_39","Suma de Proc_Bio_Cuell_Uterino_NIC_II_40_49","Suma de Proc_Bio_Cuell_Uterino_NIC_II_50_59","Suma de Proc_Bio_Cuell_Uterino_NIC_II_60_64","Suma de Proc_Bio_Cuell_Uterino_NIC_II_65","Suma de Proc_Bio_Cuell_Uterino_NIC_III_ATC","Suma de Proc_Bio_Cuell_Uterino_NIC_III_18_24","Suma de Proc_Bio_Cuell_Uterino_NIC_III_25_29","Suma de Tamiz_Benigna_BI_RADS_2_70_Mas","Suma de Proc_Bio_Cuell_Uterino_NIC_III_30_39","Suma de Proc_Bio_Cuell_Uterino_NIC_III_40_49","Suma de Proc_Bio_Cuell_Uterino_NIC_III_50_59","Suma de Proc_Bio_Cuell_Uterino_NIC_III_60_64","Suma de Proc_Bio_Cuell_Uterino_NIC_III_65","Suma de Proc_Bio_Cuell_Uterino_Norm_ATC","Suma de Proc_Bio_Cuell_Uterino_Norm_18_24","Suma de Proc_Bio_Cuell_Uterino_Norm_25_29","Suma de Proc_Bio_Cuell_Uterino_Norm_30_39","Suma de Proc_Bio_Cuell_Uterino_Norm_40_49","Suma de Proc_Bio_Cuell_Uterino_Norm_50_59","Suma de Proc_Bio_Cuell_Uterino_Norm_60_64","Suma de Proc_Bio_Cuell_Uterino_Norm_65","Suma de Proc_Bio_Cuell_Uterino_Anor_ATC","Suma de Proc_Bio_Cuell_Uterino_Anor_18_24","Suma de Proc_Bio_Cuell_Uterino_Anor_25_29","Suma de Proc_Bio_Cuell_Uterino_Anor_30_39","Suma de Proc_Bio_Cuell_Uterino_Anor_40_49","Suma de Proc_Bio_Cuell_Uterino_Anor_50_59","Suma de Proc_Bio_Cuell_Uterino_Anor_60_64","Suma de Proc_Bio_Cuell_Uterino_Anor_65","Suma de Proc_Bio_Mama_Indic_ATC","Suma de Proc_Bio_Mama_Indic_18_24","Suma de Proc_Bio_Mama_Indic_25_29","Suma de Proc_Bio_Mama_Indic_30_39","Suma de Proc_Bio_Mama_Indic_40_49","Suma de Proc_Bio_Mama_Indic_50_59","Suma de Proc_Bio_Mama_Indic_60_64","Suma de Proc_Bio_Mama_Indic_65","Suma de Tamizadas_CACU_25_29","Suma de Tamizadas_CACU_30_39","Suma de Tamizadas_CACU_40_49","Suma de Tamizadas_CACU_50_59","Suma de Tamizadas_CACU_60_64","Suma de Tamizadas_CACU_ATC","Suma de Res_Normal_CACU_25_29","Suma de Res_Normal_CACU_30_39","Suma de Res_Normal_CACU_40_49","Suma de Res_Normal_CACU_50_59","Suma de Res_Normal_CACU_60_64","Suma de Res_Normal_CACU_ATC"]
[1,0,0,0,0,0,0,1,0,0,0,0,1,0,0,0,0,0,0,0,0,0,0,0,0,0,0,8,10,2,0,18,0,0,0,0,0,0,0,59,38,0,0,97,0,19,11,0,0,30,0,51,40,0,0,91,0,12,4,1,0,16,437,64,117,161,60,27,1,2,0,0,1,1,0,0,32,0,1,12,8,11,0,0,0,0,0,0,0,0,0,0,0,0,0,0,0,1,0,0,0,0,1,0,0,0,0,0,0,0,0,0,0,0,0,0,0,0,0,0,0,0,0,0,0,0,0,0,0,0,0,176,0,3,8,68,75,17,61,0,1,2,25,20,12,8,0,0,1,3,4,0,89,0,0,3,35,30,16,32,0,0,1,9,9,13,3,0,0,0,0,2,1,678,78,104,122,140,148,72,1,0,0,0,1,0,0,0,0,0,0,0,0,0,0,0,0,0,0,0,0,0,0,0,0,0,0,0,0,0,0,0,0,0,0,0,0,0,0,0,0,0,0,0,0,0,0,0,0,0,0,0,0,0,0,0,0,0,0,0,0,0,0,0,33,18,15,34,15,115,24,16,12,34,19,105]
[2,0,0,0,0,0,0,0,0,0,0,0,0,0,0,0,0,0,0,0,0,0,0,0,0,0,0,28,43,0,2,71,0,0,0,0,0,0,0,155,150,0,0,306,0,53,38,0,0,91,0,138,117,0,0,261,0,25,12,0,0,37,922,102,220,330,126,78,19,4,3,0,0,0,1,0,221,1,6,104,63,41,4,48,0,4,35,8,1,0,83,0,1,46,26,10,0,50,0,0,8,21,18,12,1,2,3,1,10,0,1,5,0,4,0,1,0,1,0,0,0,0,0,5,0,0,0,0,0,0,0,353,0,4,15,120,133,62,191,0,2,7,67,83,27,12,0,0,1,0,7,4,211,0,0,16,71,84,39,54,0,0,5,23,19,6,4,0,0,0,0,3,0,1631,284,320,306,285,279,119,11,3,1,0,2,2,3,1,0,0,0,1,0,0,0,0,0,0,0,0,0,0,0,0,0,0,0,0,0,0,0,0,0,0,3,0,0,0,0,0,0,0,0,0,0,0,0,0,1,0,0,0,1,0,0,0,1,0,0,0,1,0,0,0,77,19,33,108,34,273,16,16,9,25,11,78]
[3,1,1,0,0,0,2,1,0,2,0,0,3,0,0,0,0,0,0,0,0,0,0,0,0,0,0,23,14,1,0,37,0,0,1,0,0,1,0,106,79,0,0,226,0,88,42,0,0,145,0,200,169,1,0,370,0,30,18,0,0,48,733,104,191,178,130,64,2,3,0,2,1,0,0,0,229,0,5,89,79,51,4,12,0,2,8,1,1,0,37,0,3,15,12,7,0,16,0,0,1,6,8,1,0,0,0,0,1,0,0,1,0,0,0,0,0,0,0,0,0,0,0,1,0,0,0,0,0,0,0,164,1,0,7,72,60,19,66,1,0,5,27,25,7,7,0,0,0,3,3,1,119,0,0,10,43,48,17,32,0,0,4,8,17,3,8,0,0,0,2,4,2,919,215,147,153,181,144,65,3,1,0,0,0,2,0,1,0,1,0,0,0,0,0,0,0,0,0,0,0,0,0,0,0,0,0,0,0,0,0,0,0,0,1,0,0,0,0,0,0,0,0,0,0,0,0,0,0,0,0,0,0,0,0,0,3,2,0,0,1,0,0,0,56,19,17,81,31,209,29,18,24,52,15,156]
[4,0,0,0,0,0,0,1,1,0,0,0,2,0,0,2,1,0,3,0,0,0,0,0,0,0,0,11,16,0,0,27,0,0,0,0,0,0,0,80,68,0,0,152,0,29,19,0,0,48,0,143,109,0,0,254,0,33,12,0,0,45,474,71,135,151,77,21,2,1,0,1,0,0,0,0,71,0,0,19,27,25,0,0,0,0,0,0,0,0,0,0,0,0,0,0,0,1,0,0,0,1,0,0,0,0,0,0,0,0,0,0,0,0,0,0,0,0,0,0,0,0,0,0,0,0,0,0,0,0,0,176,0,1,2,71,81,14,84,0,1,3,27,41,10,18,0,0,0,6,12,0,88,0,0,4,34,34,11,105,0,1,5,35,44,19,0,0,0,0,0,0,0,898,168,170,165,188,146,56,4,0,1,1,2,0,0,0,0,0,0,0,0,0,0,0,0,0,0,0,0,0,0,0,0,0,0,0,0,0,0,0,0,0,0,0,0,0,0,0,0,0,0,0,0,0,0,0,0,0,0,0,0,0,0,0,0,0,0,0,0,0,0,0,33,11,11,62,14,132,87,30,22,85,32,259]
[5,0,0,0,0,0,0,0,0,0,0,0,0,0,0,2,1,0,3,0,0,0,0,0,0,0,1,19,22,0,1,41,0,0,2,0,0,2,0,112,91,0,0,204,0,63,64,0,0,127,0,104,100,0,0,204,0,18,15,0,0,33,599,64,153,199,109,42,2,4,0,3,1,0,0,0,144,1,1,66,50,26,0,37,0,1,29,6,1,0,100,0,0,37,42,20,0,41,0,0,3,19,16,0,0,0,0,0,4,0,0,0,2,2,0,0,0,0,0,0,0,0,0,0,0,0,0,0,0,0,0,238,2,2,8,100,86,29,127,2,2,4,51,43,15,8,0,0,0,4,4,0,259,2,2,7,74,98,65,139,2,2,5,31,53,40,15,0,0,0,3,2,9,945,167,141,153,184,192,94,4,2,0,0,0,1,1,0,0,0,0,0,0,0,0,0,0,0,0,0,0,0,0,0,0,0,0,0,0,0,0,0,0,0,2,0,0,0,0,0,0,0,0,0,0,0,0,0,0,0,0,0,0,0,0,0,2,0,0,0,1,0,0,1,62,7,6,87,29,194,39,18,25,65,22,172]
["Total general",1,1,0,0,0,2,3,1,2,0,0,6,0,0,4,2,0,6,0,0,0,0,0,0,0,1,89,105,3,3,194,0,0,3,0,0,3,0,512,426,0,0,985,0,252,174,0,0,441,0,636,535,1,0,1180,0,118,61,1,0,179,3165,405,816,1019,502,232,26,14,3,6,3,1,1,0,697,2,13,290,227,154,8,97,0,7,72,15,3,0,220,0,4,98,80,37,0,109,0,0,12,47,43,13,1,2,3,1,15,0,1,6,2,6,0,1,0,1,0,0,0,0,0,6,0,0,0,0,0,0,0,1107,3,10,40,431,435,141,529,3,6,21,197,212,71,53,0,0,2,16,30,5,766,2,2,40,257,294,148,362,2,3,20,106,142,81,30,0,0,0,5,11,12,5071,912,882,899,978,909,406,23,6,2,1,5,5,4,2,0,1,0,1,0,0,0,0,0,0,0,0,0,0,0,0,0,0,0,0,0,0,0,0,0,0,6,0,0,0,0,0,0,0,0,0,0,0,0,0,1,0,0,0,1,0,0,0,6,2,0,0,3,0,0,1,261,74,82,372,123,923,195,98,92,261,99,770]
[]
[]
[]
[]
[]
[]
[]
[]
[]
[]
[]
["Anio","2025"]
["UE","(Todas)"]
["Red","(Todas)"]
["MicroRed","(Todas)"]
["EESS","(Todas)"]
["Provincia","(Todas)"]
["Distrito","(Todas)"]
[null,1,2,3,4,5,6,7,8,9,10,11,12,13,14,15,16,17,18,19,20,21,22,23,24,25,26,27,28,29,30,31,32,33,34,35,36,37,38,39,40,41,42,43,44,45,46,47,48,49,50,51,52,53,54,55,56,57,58,59,60,61,62,63,64,65,66,67,68,69,70,71,72,73,74,75,76,77,78,79,80,81,82,83,84,85,86,87,88,89,90,91,92,93,94,95,96,97,98,99,100,101,102,103,104,105,106,107,108,109,110,111,112,113,114,115,116,117,118,119,120,121,122,123,124,125,126,127,128,129,130,131,132,133,134,135,136,137,138,139,140,141,142,143,144,145,146,147,148,149,150,151,152,153,154,155,156,157,158,159,160,161,162,163,164,165,166,167,168,169,170,171,172,173,174,175,176,177,178,179,180,181,182,183,184,185,186,187,188,189,190,191,192,193,194,195,196,197,198,199,200,201,202,203,204,205,206,207,208,209,210,211,212,213,214,215,216,217,218,219,220,221,222,223,224,225,226,227,228,229,230,231,232,233,234,235,236,237,238,239,240,241,242,243,244,245,246,247,248,249,250,251,252,253,254,255,256,257,258,259,260,261]
["Etiquetas de fila","Suma de Proc_Bio_Mama_Norm_ATC","Suma de Proc_Bio_Mama_Norm_18_24","Suma de Proc_Bio_Mama_Norm_25_29","Suma de Proc_Bio_Mama_Norm_30_39","Suma de Proc_Bio_Mama_Norm_40_49","Suma de Proc_Bio_Mama_Norm_50_59","Suma de Proc_Bio_Mama_Norm_60_64","Suma de Proc_Bio_Mama_Norm_65","Suma de Proc_Bio_Mama_Anor_ATC","Suma de Proc_Bio_Mama_Anor_18_24","Suma de Proc_Bio_Mama_Anor_25_29","Suma de Proc_Bio_Mama_Anor_30_39","Suma de Proc_Bio_Mama_Anor_40_49","Suma de Proc_Bio_Mama_Anor_50_59","Suma de Proc_Bio_Mama_Anor_60_64","Suma de Proc_Bio_Mama_Anor_65","Suma de Proc_Bio_Prost_Indi_ATC","Suma de Proc_Bio_Prost_Indi_18_24","Suma de Proc_Bio_Prost_Indi_25_29","Suma de Proc_Bio_Prost_Indi_30_39","Suma de Proc_Bio_Prost_Indi_40_49","Suma de Proc_Bio_Prost_Indi_50_59","Suma de Proc_Bio_Prost_Indi_60_64","Suma de Proc_Bio_Prost_Indi_65","Suma de Proc_Bio_Prost_Norm_ATC","Suma de Proc_Bio_Prost_Norm_18_24","Suma de Proc_Bio_Prost_Norm_25_29","Suma de Proc_Bio_Prost_Norm_30_39","Suma de Proc_Bio_Prost_Norm_40_49","Suma de Proc_Bio_Prost_Norm_50_59","Suma de Proc_Bio_Prost_Norm_60_64","Suma de Proc_Bio_Prost_Norm_65","Suma de Proc_Bio_Prost_Anor_ATC","Suma de Proc_Bio_Prost_Anor_18_24","Suma de Proc_Bio_Prost_Anor_25_29","Suma de Proc_Bio_Prost_Anor_30_39","Suma de Proc_Bio_Prost_Anor_40_49","Suma de Proc_Bio_Prost_Anor_50_59","Suma de Proc_Bio_Prost_Anor_60_64","Suma de Proc_Bio_Prost_Anor_65","Suma de Proc_Bio_Colon_Recto_Ind_ATC","Suma de Proc_Bio_Colon_Recto_Ind_18_24","Suma de Proc_Bio_Colon_Recto_Ind_25_29","Suma de Proc_Bio_Colon_Recto_Ind_30_39","Suma de Proc_Bio_Colon_Recto_Ind_40_49","Suma de Proc_Bio_Colon_Recto_Ind_50_59","Suma de Proc_Bio_Colon_Recto_Ind_60_64","Suma de Proc_Bio_Colon_Recto_Ind_65","Suma de Proc_Bio_Colon_Recto_Norm_ATC","Suma de Proc_Bio_Colon_Recto_Norm_18_24","Suma de Proc_Bio_Colon_Recto_Norm_25_29","Suma de Proc_Bio_Colon_Recto_Norm_30_39","Suma de Proc_Bio_Colon_Recto_Norm_40_49","Suma de Proc_Bio_Colon_Recto_Norm_50_59","Suma de Proc_Bio_Colon_Recto_Norm_60_64","Suma de Proc_Bio_Colon_Recto_Norm_65","Suma de Proc_Bio_Colon_Recto_Anor_ATC","Suma de Proc_Bio_Colon_Recto_Anor_18_24","Suma de Proc_Bio_Colon_Recto_Anor_25_29","Suma de Proc_Bio_Colon_Recto_Anor_30_39","Suma de Proc_Bio_Colon_Recto_Anor_40_49","Suma de Proc_Bio_Colon_Recto_Anor_50_59","Suma de Proc_Bio_Colon_Recto_Anor_60_64","Suma de Proc_Bio_Colon_Recto_Anor_65","Suma de Proc_Bio_Estomago_Ind_ATC","Suma de Proc_Bio_Estomago_Ind_18_24","Suma de Proc_Bio_Estomago_Ind_25_29","Suma de Proc_Bio_Estomago_Ind_30_39","Suma de Proc_Bio_Estomago_Ind_40_49","Suma de Proc_Bio_Estomago_Ind_50_59","Suma de Proc_Bio_Estomago_Ind_60_64","Suma de Proc_Bio_Estomago_Ind_65","Suma de Proc_Bio_Estomago_Norm_ATC","Suma de Proc_Bio_Estomago_Norm_18_24","Suma de Proc_Bio_Estomago_Norm_25_29","Suma de Proc_Bio_Estomago_Norm_30_39","Suma de Proc_Bio_Estomago_Norm_40_49","Suma de Proc_Bio_Estomago_Norm_50_59","Suma de Proc_Bio_Estomago_Norm_60_64","Suma de Proc_Bio_Estomago_Norm_65","Suma de Proc_Bio_Estomago_Anor_ATC","Suma de Proc_Bio_Estomago_Anor_18_24","Suma de Proc_Bio_Estomago_Anor_25_29","Suma de Proc_Bio_Estomago_Anor_30_39","Suma de Proc_Bio_Estomago_Anor_40_49","Suma de Proc_Bio_Estomago_Anor_50_59","Suma de Proc_Bio_Estomago_Anor_60_64","Suma de Proc_Bio_Estomago_Anor_65","Suma de Proc_Bio_Piel_Ind_ATC","Suma de Proc_Bio_Piel_Ind_18_24","Suma de Proc_Bio_Piel_Ind_25_29","Suma de Proc_Bio_Piel_Ind_30_39","Suma de Proc_Bio_Piel_Ind_40_49","Suma de Proc_Bio_Piel_Ind_50_59","Suma de Proc_Bio_Piel_Ind_60_64","Suma de Proc_Bio_Piel_Ind_65","Suma de Proc_Bio_Piel_Norm_ATC","Suma de Proc_Bio_Piel_Norm_18_24","Suma de Proc_Bio_Piel_Norm_25_29","Suma de Proc_Bio_Piel_Norm_30_39","Suma de Proc_Bio_Piel_Norm_40_49","Suma de Proc_Bio_Piel_Norm_50_59","Suma de Proc_Bio_Piel_Norm_60_64","Suma de Proc_Bio_Piel_Norm_65","Suma de Proc_Bio_Piel_Anor_ATC","Suma de Proc_Bio_Piel_Anor_18_24","Suma de Proc_Bio_Piel_Anor_25_29","Suma de Proc_Bio_Piel_Anor_30_39","Suma de Proc_Bio_Piel_Anor_40_49","Suma de Proc_Bio_Piel_Anor_50_59","Suma de Proc_Bio_Piel_Anor_60_64","Suma de Proc_Bio_Piel_Anor_65","Suma de Proc_Bio_Pulm_Ind_ATC","Suma de Proc_Bio_Pulm_Ind_18_24","Suma de Proc_Bio_Pulm_Ind_25_29","Suma de Proc_Bio_Pulm_Ind_30_39","Suma de Proc_Bio_Pulm_Ind_40_49","Suma de Proc_Bio_Pulm_Ind_50_59","Suma de Proc_Bio_Pulm_Ind_60_64","Suma de Proc_Bio_Pulm_Ind_65","Suma de Proc_Bio_Pulm_Norm_ATC","Suma de Proc_Bio_Pulm_Norm_18_24","Suma de Proc_Bio_Pulm_Norm_25_29","Suma de Proc_Bio_Pulm_Norm_30_39","Suma de Proc_Bio_Pulm_Norm_40_49","Suma de Proc_Bio_Pulm_Norm_50_59","Suma de Proc_Bio_Pulm_Norm_60_64","Suma de Proc_Bio_Pulm_Norm_65","Suma de Proc_Bio_Pulm_Anor_ATC","Suma de Proc_Bio_Pulm_Anor_18_24","Suma de Proc_Bio_Pulm_Anor_25_29","Suma de Proc_Bio_Pulm_Anor_30_39","Suma de Proc_Bio_Pulm_Anor_40_49","Suma de Proc_Bio_Pulm_Anor_50_59","Suma de Proc_Bio_Pulm_Anor_60_64","Suma de Proc_Bio_Pulm_Anor_65","Suma de Proc_Bio_Higad_Ind_ATC","Suma de Proc_Bio_Higad_Ind_18_24","Suma de Proc_Bio_Higad_Ind_25_29","Suma de Proc_Bio_Higad_Ind_30_39","Suma de Proc_Bio_Higad_Ind_40_49","Suma de Proc_Bio_Higad_Ind_50_59","Suma de Proc_Bio_Higad_Ind_60_64","Suma de Proc_Bio_Higad_Ind_65","Suma de Proc_Bio_Higad_Norm_ATC","Suma de Proc_Bio_Higad_Norm_18_24","Suma de Proc_Bio_Higad_Norm_25_29","Suma de Proc_Bio_Higad_Norm_30_39","Suma de Proc_Bio_Higad_Norm_40_49","Suma de Proc_Bio_Higad_Norm_50_59","Suma de Proc_Bio_Higad_Norm_60_64","Suma de Proc_Bio_Higad_Norm_65","Suma de Proc_Bio_Higad_Anor_ATC","Suma de Proc_Bio_Higad_Anor_18_24","Suma de Proc_Bio_Higad_Anor_25_29","Suma de Proc_Bio_Higad_Anor_30_39","Suma de Proc_Bio_Higad_Anor_40_49","Suma de Proc_Bio_Higad_Anor_50_59","Suma de Proc_Bio_Higad_Anor_60_64","Suma de Proc_Bio_Higad_Anor_65","Suma de Proc_Bio_Gangli_Ind_ATC","Suma de Proc_Bio_Gangli_Ind_18_24","Suma de Proc_Bio_Gangli_Ind_25_29","Suma de Proc_Bio_Gangli_Ind_30_39","Suma de Proc_Bio_Gangli_Ind_40_49","Suma de Proc_Bio_Gangli_Ind_50_59","Suma de Proc_Bio_Gangli_Ind_60_64","Suma de Proc_Bio_Gangli_Ind_65","Suma de Proc_Bio_Gangli_Norm_ATC","Suma de Proc_Bio_Gangli_Norm_18_24","Suma de Proc_Bio_Gangli_Norm_25_29","Suma de Proc_Bio_Gangli_Norm_30_39","Suma de Proc_Bio_Gangli_Norm_40_49","Suma de Proc_Bio_Gangli_Norm_50_59","Suma de Proc_Bio_Gangli_Norm_60_64","Suma de Proc_Bio_Gangli_Norm_65","Suma de Proc_Bio_Gangli_Anor_ATC","Suma de Proc_Bio_Gangli_Anor_18_24","Suma de Proc_Bio_Gangli_Anor_25_29","Suma de Proc_Bio_Gangli_Anor_30_39","Suma de Proc_Bio_Gangli_Anor_40_49","Suma de Proc_Bio_Gangli_Anor_50_59","Suma de Proc_Bio_Gangli_Anor_60_64","Suma de Proc_Bio_Gangli_Anor_65","Suma de Aspir_Medul_Osea_Ind_ATC","Suma de Aspir_Medul_Osea_Ind_18_24","Suma de Aspir_Medul_Osea_Ind_25_29","Suma de Aspir_Medul_Osea_Ind_30_39","Suma de Aspir_Medul_Osea_Ind_40_49","Suma de Aspir_Medul_Osea_Ind_50_59","Suma de Aspir_Medul_Osea_Ind_60_64","Suma de Aspir_Medul_Osea_Ind_65","Suma de Aspir_Medul_Osea_Norm_ATC","Suma de Aspir_Medul_Osea_Norm_18_24","Suma de Aspir_Medul_Osea_Norm_25_29","Suma de Aspir_Medul_Osea_Norm_30_39","Suma de Aspir_Medul_Osea_Norm_40_49","Suma de Aspir_Medul_Osea_Norm_50_59","Suma de Aspir_Medul_Osea_Norm_65","Suma de Aspir_Medul_Osea_Norm_60_64","Suma de Aspir_Medul_Osea_Anor_ATC","Suma de Aspir_Medul_Osea_Anor_18_24","Suma de Aspir_Medul_Osea_Anor_25_29","Suma de Aspir_Medul_Osea_Anor_30_39","Suma de Aspir_Medul_Osea_Anor_40_49","Suma de Aspir_Medul_Osea_Anor_50_59","Suma de Aspir_Medul_Osea_Anor_60_64","Suma de Aspir_Medul_Osea_Anor_65","Suma de Biop_Medul_Osea_Ind_ATC","Suma de Biop_Medul_Osea_Ind_18_24","Suma de Biop_Medul_Osea_Ind_25_29","Suma de Biop_Medul_Osea_Ind_30_39","Suma de Biop_Medul_Osea_Ind_40_49","Suma de Biop_Medul_Osea_Ind_50_59","Suma de Biop_Medul_Osea_Ind_60_64","Suma de Biop_Medul_Osea_Ind_65","Suma de Biop_Medul_Osea_Norm_ATC","Suma de Biop_Medul_Osea_Norm_18_24","Suma de Biop_Medul_Osea_Norm_25_29","Suma de Biop_Medul_Osea_Norm_30_39","Suma de Biop_Medul_Osea_Norm_40_49","Suma de Biop_Medul_Osea_Norm_50_59","Suma de Biop_Medul_Osea_Norm_60_64","Suma de Biop_Medul_Osea_Norm_65","Suma de Biop_Medul_Osea_Anor_ATC","Suma de Biop_Medul_Osea_Anor_18_24","Suma de Biop_Medul_Osea_Anor_25_29","Suma de Biop_Medul_Osea_Anor_30_39","Suma de Biop_Medul_Osea_Anor_40_49","Suma de Biop_Medul_Osea_Anor_50_59","Suma de Biop_Medul_Osea_Anor_60_64","Suma de Biop_Medul_Osea_Anor_65"]
[1,0,0,0,0,0,0,0,0,0,0,0,0,0,0,0,0,0,0,0,0,0,0,0,0,0,0,0,0,0,0,0,0,0,0,0,0,0,0,0,0,0,0,0,0,0,0,0,0,0,0,0,0,0,0,0,0,0,0,0,0,0,0,0,0,0,0,0,0,0,0,0,0,0,0,0,0,0,0,0,0,0,0,0,0,0,0,0,0,0,0,0,0,0,0,0,0,0,0,0,0,0,0,0,0,0,0,0,0,0,0,0,0,0,0,0,0,0,0,0,0,0,0,0,0,0,0,0,0,0,0,0,0,0,0,0,0,0,0,0,0,0,0,0,0,0,0,0,0,0,0,0,0,0,0,0,0,0,0,0,0,0,0,0,0,0,0,0,0,0,0,0,0,0,0,0,0,0,0,0,0,0,0,0,0,0,0,0,0,0,0,0,0,0,0,0,0,0,0,0,0,0,0,0,0,0,0,0,0,0,0,0,0,0,0,0,0,0,0,0,0,0,0,0,0,0,0,0,0,0,0,0,0]
[2,0,0,0,0,0,0,0,0,0,0,0,0,0,0,0,0,0,0,0,0,0,0,0,0,0,0,0,0,0,0,0,0,0,0,0,0,0,0,0,0,0,0,0,0,0,0,0,0,0,0,0,0,0,0,0,0,0,0,0,0,0,0,0,0,0,0,0,0,0,0,0,0,0,0,0,0,0,0,0,0,0,0,0,0,0,0,0,0,0,0,0,0,0,0,0,0,0,0,0,0,0,0,0,0,0,0,0,0,0,0,0,0,0,0,0,0,0,0,0,0,0,0,0,0,0,0,0,0,0,0,0,0,0,0,0,0,0,0,0,0,0,0,0,0,0,0,0,0,0,0,0,0,0,0,0,0,0,0,0,0,0,0,0,0,0,0,0,0,0,0,0,0,0,0,0,0,0,0,0,0,0,0,0,0,0,0,0,0,0,0,0,0,0,0,0,0,0,0,0,0,0,0,0,0,0,0,0,0,0,0,0,0,0,0,0,0,0,0,0,0,0,0,0,0,0,0,0,0,0,0,0,0]
[3,0,0,0,0,0,0,0,0,0,0,0,0,0,0,0,0,0,0,0,0,0,0,0,0,0,0,0,0,0,0,0,0,0,0,0,0,0,0,0,0,0,0,0,0,0,0,0,0,0,0,0,0,0,0,0,0,0,0,0,0,0,0,0,0,0,0,0,0,0,0,0,0,0,0,0,0,0,0,0,0,0,0,0,0,0,0,0,0,0,0,0,0,0,0,0,0,0,0,0,0,0,0,0,0,0,0,0,0,0,0,0,0,0,0,0,0,0,0,0,0,0,0,0,0,0,0,0,0,0,0,0,0,0,0,0,0,0,0,0,0,0,0,0,0,0,0,0,0,0,0,0,0,0,0,0,0,0,0,0,0,0,0,0,0,0,0,0,0,0,0,0,0,0,0,0,0,0,0,0,0,0,0,0,0,0,0,0,0,0,0,0,0,0,0,0,0,0,0,0,0,0,0,0,0,0,0,0,0,0,0,0,0,0,0,0,0,0,0,0,0,0,0,0,0,0,0,0,0,0,0,0,0]
[4,0,0,0,0,0,0,0,0,0,0,0,0,0,0,0,0,0,0,0,0,0,0,0,0,0,0,0,0,0,0,0,0,0,0,0,0,0,0,0,0,0,0,0,0,0,0,0,0,0,0,0,0,0,0,0,0,0,0,0,0,0,0,0,0,0,0,0,0,0,0,0,0,0,0,0,0,0,0,0,0,0,0,0,0,0,0,0,0,0,0,0,0,0,0,0,0,0,0,0,0,0,0,0,0,0,0,0,0,0,0,0,0,0,0,0,0,0,0,0,0,0,0,0,0,0,0,0,0,0,0,0,0,0,0,0,0,0,0,0,0,0,0,0,0,0,0,0,0,0,0,0,0,0,0,0,0,0,0,0,0,0,0,0,0,0,0,0,0,0,0,0,0,0,0,0,0,0,0,0,0,0,0,0,0,0,0,0,0,0,0,0,0,0,0,0,0,0,0,0,0,0,0,0,0,0,0,0,0,0,0,0,0,0,0,0,0,0,0,0,0,0,0,0,0,0,0,0,0,0,0,0,0]
[5,0,0,0,0,0,0,0,0,0,0,0,0,0,0,0,0,0,0,0,0,0,0,0,0,0,0,0,0,0,0,0,0,0,0,0,0,0,0,0,0,0,0,0,0,0,0,0,0,0,0,0,0,0,0,0,0,0,0,0,0,0,0,0,0,0,0,0,0,0,0,0,0,0,0,0,0,0,0,0,0,0,0,0,0,0,0,0,0,0,0,0,0,0,0,0,0,0,0,0,0,0,0,0,0,0,0,0,0,0,0,0,0,0,0,0,0,0,0,0,0,0,0,0,0,0,0,0,0,0,0,0,0,0,0,0,0,0,0,0,0,0,0,0,0,0,0,0,0,0,0,0,0,0,0,0,0,0,0,0,0,0,0,0,0,0,0,0,0,0,0,0,0,0,0,0,0,0,0,0,0,0,0,0,0,0,0,0,0,0,0,0,0,0,0,0,0,0,0,0,0,0,0,0,0,0,0,0,0,0,0,0,0,0,0,0,0,0,0,0,0,0,0,0,0,0,0,0,0,0,0,0,0]
["Total general",0,0,0,0,0,0,0,0,0,0,0,0,0,0,0,0,0,0,0,0,0,0,0,0,0,0,0,0,0,0,0,0,0,0,0,0,0,0,0,0,0,0,0,0,0,0,0,0,0,0,0,0,0,0,0,0,0,0,0,0,0,0,0,0,0,0,0,0,0,0,0,0,0,0,0,0,0,0,0,0,0,0,0,0,0,0,0,0,0,0,0,0,0,0,0,0,0,0,0,0,0,0,0,0,0,0,0,0,0,0,0,0,0,0,0,0,0,0,0,0,0,0,0,0,0,0,0,0,0,0,0,0,0,0,0,0,0,0,0,0,0,0,0,0,0,0,0,0,0,0,0,0,0,0,0,0,0,0,0,0,0,0,0,0,0,0,0,0,0,0,0,0,0,0,0,0,0,0,0,0,0,0,0,0,0,0,0,0,0,0,0,0,0,0,0,0,0,0,0,0,0,0,0,0,0,0,0,0,0,0,0,0,0,0,0,0,0,0,0,0,0,0,0,0,0,0,0,0,0,0,0,0]
[]
[]
[]
[]
[]
[]
[]
[]
[]
[]
[]
[]
["Anio","2025"]
["UE","(Todas)"]
["Red","(Todas)"]
["MicroRed","(Todas)"]
["EESS","(Todas)"]
["Provincia","(Todas)"]
["Distrito","(Todas)"]
[null,1,2,3,4,5,6,7,8,9,10,11,12,13,14,15,16,17,18,19,20,21,22,23,24,25,26,27,28,29,30,31,32,33,34,35,36,37,38,39,40,41,42,43,44,45,46,47,48,49,50,51,52,53,54,55,56,57,58,59,60,61,62,63,64,65,66,67,68,69,70,71,72,73,74,75,76,77,78,79,80,81,82,83,84,85,86,87,88,89,90,91,92,93,94,95,96,97,98,99,100,101,102,103,104,105,106,107,108,109,110,111,112,113,114,115,116,117,118,119,120,121,122,123,124,125,126,127,128,129,130,131,132,133,134,135,136,137,138,139,140,141,142,143,144,145,146,147,148,149,150,151,152,153,154,155,156,157,158,159,160,161,162,163,164,165,166,167,168,169,170,171,172,173,174,175,176,177,178,179,180,181,182,183,184,185,186,187,188,189,190,191,192,193,194,195,196,197,198,199,200,201,202,203,204,205,206,207,208,209,210,211,212,213,214,215,216,217,218,219,220,221,222,223,224,225,226,227,228,229,230,231,232]
["Etiquetas de fila","Suma de Triaj_Visu_Tratam_Nega_ATC","Suma de Triaj_Visu_Tratam_Nega_25_29","Suma de Triaj_Visu_Tratam_Nega_30_39","Suma de Triaj_Visu_Tratam_Nega_40_49","Suma de Triaj_Visu_Tratam_Nega_50_59","Suma de Triaj_Visu_Tratam_Nega_60_64","Suma de Triaj_Visu_Tratam_Posi_ATC","Suma de Triaj_Visu_Tratam_Posi_25_29","Suma de Triaj_Visu_Tratam_Posi_30_39","Suma de Triaj_Visu_Tratam_Posi_40_49","Suma de Triaj_Visu_Tratam_Posi_50_59","Suma de Triaj_Visu_Tratam_Posi_60_64","Suma de Colpos_sin_ICA_ATC","Suma de Colpos_sin_ICA_25_29","Suma de Colpos_sin_ICA_30_39","Suma de Colpos_sin_ICA_40_49","Suma de Colpos_sin_ICA_50_59","Suma de Colpos_sin_ICA_60_64","Suma de Colpos_con_ICA_ATC","Suma de Colpos_con_ICA_25_29","Suma de Colpos_con_ICA_30_39","Suma de Colpos_con_ICA_40_49","Suma de Colpos_con_ICA_50_59","Suma de Colpos_con_ICA_60_64","Suma de Termocoagulacion_ATC","Suma de Termocoagulacion_25_29","Suma de Termocoagulacion_30_39","Suma de Termocoagulacion_40_49","Suma de Termocoagulacion_50_59","Suma de Termocoagulacion_60_64","Suma de Crioterapia_ATC","Suma de Crioterapia_25_29","Suma de Crioterapia_30_39","Suma de Crioterapia_40_49","Suma de Crioterapia_50_59","Suma de Crioterapia_60_64","Suma de Trata_escisi_cono_leep_ATC","Suma de Trata_escisi_cono_leep_25_29","Suma de Trata_escisi_cono_leep_30_39","Suma de Trata_escisi_cono_leep_40_49","Suma de Trata_escisi_cono_leep_50_59","Suma de Trata_escisi_cono_leep_60_64","Suma de Trata_escisi_cono_frio_ATC","Suma de Trata_escisi_cono_frio_25_29","Suma de Trata_escisi_cono_frio_30_39","Suma de Trata_escisi_cono_frio_40_49","Suma de Trata_escisi_cono_frio_50_59","Suma de Trata_escisi_cono_frio_60_64","Suma de Trata_Supervi_Quimio_CACU_ATC","Suma de Trata_Supervi_Quimio_CACU_ATD","Suma de Trata_Inici_Quimio_CACU_ATC","Suma de Trata_Inici_Quimio_CACU_ATD","Suma de Trata_Sesio_Quimio_Patol_CACU_ATC","Suma de Trata_Sesio_Quimio_Patol_CACU_ATD","Suma de Trata_Sesio_Radio_Braquite_CACU_ATC","Suma de Trata_Sesio_Radio_Braquite_CACU_ATD","Suma de Trata_Supervi_Quimio_MAMA_ATC","Suma de Trata_Supervi_Quimio_MAMA_ATD","Suma de Trata_Inici_Quimio_MAMA_ATC","Suma de Trata_Inici_Quimio_MAMA_ATD","Suma de Trata_Sesio_Quimio_Patol_MAMA_ATC","Suma de Trata_Sesio_Quimio_Patol_MAMA_ATD","Suma de Trata_Sesio_Radio_Braquite_MAMA_ATC","Suma de Trata_Sesio_Radio_Braquite_MAMA_ATD","Suma de Trata_Supervi_Quimio_Estoma_ATC","Suma de Trata_Supervi_Quimio_Estoma_ATD","Suma de Trata_Inici_Quimio_Estoma_ATC","Suma de Trata_Inici_Quimio_Estoma_ATD","Suma de Trata_Sesio_Quimio_Patol_Estoma_ATC","Suma de Trata_Sesio_Quimio_Patol_Estoma_ATD","Suma de Trata_Sesio_Radio_Braquite_Estoma_ATC","Suma de Trata_Sesio_Radio_Braquite_Estoma_ATD","Suma de Trata_Supervi_Quimio_Prostata_ATC","Suma de Trata_Supervi_Quimio_Prostata_ATD","Suma de Trata_Inici_Quimio_Prostata_ATC","Suma de Trata_Inici_Quimio_Prostata_ATD","Suma de Trata_Sesio_Quimio_Patol_Prostata_ATC","Suma de Trata_Sesio_Quimio_Patol_Prostata_ATD","Suma de Trata_Sesio_Radio_Braquite_Prostata_ATC","Suma de Trata_Sesio_Radio_Braquite_Prostata_ATD","Suma de Trata_Supervi_Quimio_Pulmon_ATC","Suma de Trata_Supervi_Quimio_Pulmon_ATD","Suma de Trata_Inici_Quimio_Pulmon_ATC","Suma de Trata_Inici_Quimio_Pulmon_ATD","Suma de Trata_Sesio_Quimio_Patol_Pulmon_ATC","Suma de Trata_Sesio_Quimio_Patol_Pulmon_ATD","Suma de Trata_Sesio_Radio_Braquite_Pulmon_ATC","Suma de Trata_Sesio_Radio_Braquite_Pulmon_ATD","Suma de Trata_Supervi_Quimio_Colon_Recto_ATC","Suma de Trata_Supervi_Quimio_Colon_Recto_ATD","Suma de Trata_Inici_Quimio_Colon_Recto_ATC","Suma de Trata_Inici_Quimio_Colon_Recto_ATD","Suma de Trata_Sesio_Quimio_Patol_Colon_Recto_ATC","Suma de Trata_Sesio_Quimio_Patol_Colon_Recto_ATD","Suma de Trata_Sesio_Radio_Braquite_Colon_Recto_ATC","Suma de Trata_Sesio_Radio_Braquite_Colon_Recto_ATD","Suma de Trata_Supervi_Quimio_Higado_ATC","Suma de Trata_Supervi_Quimio_Higado_ATD","Suma de Trata_Inici_Quimio_Higado_ATC","Suma de Trata_Inici_Quimio_Higado_ATD","Suma de Trata_Sesio_Quimio_Patol_Higado_ATC","Suma de Trata_Sesio_Quimio_Patol_Higado_ATD","Suma de Trata_Sesio_Radio_Braquite_Higado_ATC","Suma de Trata_Sesio_Radio_Braquite_Higado_ATD","Suma de Trata_Supervi_Quimio_Leucemia_ATC","Suma de Trata_Supervi_Quimio_Leucemia_ATD","Suma de Trata_Inici_Quimio_Leucemia_ATC","Suma de Trata_Inici_Quimio_Leucemia_ATD","Suma de Trata_Sesio_Quimio_Patol_Leucemia_ATC","Suma de Trata_Sesio_Quimio_Patol_Leucemia_ATD","Suma de Trata_Sesio_Radio_Braquite_Leucemia_ATC","Suma de Trata_Sesio_Radio_Braquite_Leucemia_ATD","Suma de Trata_Supervi_Quimio_Linforma_ATC","Suma de Trata_Supervi_Quimio_Linforma_ATD","Suma de Trata_Inici_Quimio_Linforma_ATC","Suma de Trata_Inici_Quimio_Linforma_ATD","Suma de Trata_Sesio_Quimio_Patol_Linforma_ATC","Suma de Trata_Sesio_Quimio_Patol_Linforma_ATD","Suma de Trata_Sesio_Radio_Braquite_Linforma_ATC","Suma de Trata_Sesio_Radio_Braquite_Linforma_ATD","Suma de Trata_Supervi_Quimio_Piel_ATC","Suma de Trata_Supervi_Quimio_Piel_ATD","Suma de Trata_Inici_Quimio_Piel_ATC","Suma de Trata_Inici_Quimio_Piel_ATD","Suma de Trata_Sesio_Quimio_Patol_Piel_ATC","Suma de Trata_Sesio_Quimio_Patol_Piel_ATD","Suma de Trata_Sesio_Radio_Braquite_Piel_ATC","Suma de Trata_Sesio_Radio_Braquite_Piel_ATD","Suma de cansej_1ra_ATC","Suma de cansej_1ra_18_29","Suma de cansej_1ra_30_39","Suma de cansej_1ra_40_49","Suma de cansej_1ra_50_59","Suma de cansej_1ra_60_69","Suma de cansej_1ra_70_75","Suma de cansej_2da_ATC","Suma de cansej_2da_18_29","Suma de cansej_2da_30_39","Suma de cansej_2da_40_49","Suma de cansej_2da_50_59","Suma de cansej_2da_60_69","Suma de cansej_2da_70_75","Suma de cansej_tic_1ra_ATC","Suma de cansej_tic_1ra_18_29","Suma de cansej_tic_1ra_30_39","Suma de cansej_tic_1ra_40_49","Suma de cansej_tic_1ra_50_59","Suma de cansej_tic_1ra_60_69","Suma de cansej_tic_1ra_70_75","Suma de cansej_tic_2da_ATC","Suma de cansej_tic_2da_18_29","Suma de cansej_tic_2da_30_39","Suma de cansej_tic_2da_40_49","Suma de cansej_tic_2da_50_59","Suma de cansej_tic_2da_60_69","Suma de cansej_tic_2da_70_75","Suma de cansej_diag_1ra_ATC","Suma de cansej_diag_1ra_18_29","Suma de cansej_diag_1ra_30_39","Suma de cansej_diag_1ra_40_49","Suma de cansej_diag_1ra_50_59","Suma de cansej_diag_1ra_60_69","Suma de cansej_diag_1ra_70_75","Suma de cansej_diag_2da_ATC","Suma de cansej_diag_2da_18_29","Suma de cansej_diag_2da_30_39","Suma de cansej_diag_2da_40_49","Suma de cansej_diag_2da_50_59","Suma de cansej_diag_2da_60_69","Suma de cansej_diag_2da_70_75","Suma de cansej_cuida_palia_1ra_ATC","Suma de cansej_cuida_palia_1ra_ATD","Suma de cansej_cuida_palia_2da_ATC","Suma de cansej_cuida_palia_2da_ATD","Suma de atendido_ATC_cacu","Suma de atendido_1ra_cacu","Suma de atendido_2da_cacu","Suma de atendido_3ra_cacu","Suma de atendido_4ta_cacu","Suma de atendido_ATC_mama","Suma de atendido_1ra_mama","Suma de atendido_2da_mama","Suma de atendido_3ra_mama","Suma de atendido_4ta_mama","Suma de atendido_ATC_estomago","Suma de atendido_1ra_estomago","Suma de atendido_2da_estomago","Suma de atendido_3ra_estomago","Suma de atendido_4ta_estomago","Suma de atendido_ATC_prostata","Suma de atendido_1ra_prostata","Suma de atendido_2da_prostata","Suma de atendido_3ra_prostata","Suma de atendido_4ta_prostata","Suma de atendido_ATC_pulmon","Suma de atendido_1ra_pulmon","Suma de atendido_2da_pulmon","Suma de atendido_3ra_pulmon","Suma de atendido_4ta_pulmon","Suma de atendido_ATC_colon_recto","Suma de atendido_1ra_colon_recto","Suma de atendido_2da_colon_recto","Suma de atendido_3ra_colon_recto","Suma de atendido_4ta_colon_recto","Suma de atendido_ATC_higado","Suma de atendido_1ra_higado","Suma de atendido_2da_higado","Suma de atendido_3ra_higado","Suma de atendido_4ta_higado","Suma de atendido_ATC_leucemia","Suma de atendido_1ra_leucemia","Suma de atendido_2da_leucemia","Suma de atendido_3ra_leucemia","Suma de atendido_4ta_leucemia","Suma de atendido_ATC_linforma","Suma de atendido_1ra_linforma","Suma de atendido_2da_linforma","Suma de atendido_3ra_linforma","Suma de atendido_4ta_linforma","Suma de atendido_ATC_piel","Suma de atendido_1ra_piel","Suma de atendido_2da_piel","Suma de atendido_3ra_piel","Suma de atendido_4ta_piel","Suma de atendido_ATD_prostata","Suma de atendido_ATD_estomago","Suma de atendido_ATD_mama","Suma de atendido_ATD_cacu","Suma de atendido_ATD_pulmon","Suma de atendido_ATD_colon_recto","Suma de atendido_ATD_higado","Suma de atendido_ATD_leucemia","Suma de atendido_ATD_linforma","Suma de atendido_ATD_piel"]
[1,0,0,0,0,0,0,0,0,0,0,0,0,0,0,0,0,0,0,2,1,1,0,0,0,0,0,0,0,0,0,0,0,0,0,0,0,0,0,0,0,0,0,0,0,0,0,0,0,0,0,0,0,0,0,0,0,0,0,0,0,0,0,0,0,0,0,0,0,0,0,0,0,0,0,0,0,0,0,0,0,0,0,0,0,0,0,0,0,0,0,0,0,0,0,0,0,0,0,0,0,0,0,0,0,0,0,0,0,0,0,0,0,0,0,0,0,0,0,0,0,0,0,0,0,0,0,0,0,484,471,559,434,284,248,61,13,13,39,31,14,10,0,2,2,0,0,0,1,0,0,0,4,2,0,0,0,0,0,0,0,0,0,0,0,0,0,0,0,0,0,0,0,0,0,2,0,0,0,0,5,0,0,0,0,0,0,0,0,0,2,0,0,0,0,0,0,0,0,0,3,0,0,0,0,0,0,0,0,0,0,0,0,0,0,3,0,0,0,0,1,0,0,0,0,1,0,5,2,0,3,0,0,3,1]
[2,0,0,0,0,0,0,1,0,0,1,0,0,0,0,0,0,0,0,2,0,0,2,0,0,0,0,0,0,0,0,0,0,0,0,0,0,0,0,0,0,0,0,0,0,0,0,0,0,0,0,0,0,0,0,0,0,0,0,0,0,0,0,0,0,0,0,0,0,0,0,0,0,0,0,0,0,0,0,0,0,0,0,0,0,0,0,0,0,0,0,0,0,0,0,0,0,0,0,0,0,0,0,0,0,0,0,0,0,0,0,0,0,0,0,0,0,0,0,0,0,0,0,0,0,0,0,0,0,668,636,828,780,503,418,121,91,89,178,202,113,122,23,0,0,0,0,0,0,0,0,0,11,15,0,0,0,0,0,0,0,0,0,0,0,0,0,0,0,0,0,0,0,0,0,6,0,0,0,0,3,0,0,0,0,0,0,0,0,0,2,0,0,0,0,1,0,0,0,0,1,0,0,0,0,1,0,0,0,0,1,0,0,0,0,1,0,0,0,0,3,0,0,0,0,2,0,3,6,1,1,1,1,1,3]
[3,2,0,1,1,0,0,19,0,10,8,1,0,0,0,0,0,0,0,5,0,2,2,0,1,1,0,0,1,0,0,0,0,0,0,0,0,1,1,0,0,0,0,0,0,0,0,0,0,0,0,0,0,0,0,0,0,0,0,0,0,0,0,0,0,0,0,0,0,0,0,0,0,0,0,0,0,0,0,0,0,0,0,0,0,0,0,0,0,0,0,0,0,0,0,0,0,0,0,0,0,0,0,0,0,0,0,0,0,0,0,0,0,0,0,0,0,0,0,0,0,0,0,0,0,0,0,0,0,555,536,608,579,440,314,73,148,143,228,225,134,89,19,1,1,10,113,68,50,6,0,0,10,22,3,2,0,0,0,0,0,0,0,0,0,0,0,0,0,0,0,0,0,0,0,2,0,0,0,0,3,0,0,0,0,0,0,0,0,0,5,0,0,0,0,0,0,0,0,0,0,0,0,0,0,2,0,0,0,0,0,0,0,0,0,1,0,0,0,0,3,0,0,0,0,5,0,3,2,0,0,2,0,1,3]
[4,2,0,2,0,0,0,4,0,4,0,0,0,1,1,0,0,0,0,5,0,4,1,0,0,0,0,0,0,0,0,0,0,0,0,0,0,0,0,0,0,0,0,0,0,0,0,0,0,0,0,0,0,0,0,0,0,0,0,0,0,0,0,0,0,0,0,0,0,0,0,0,0,0,0,0,0,0,0,0,0,0,0,0,0,0,0,0,0,0,0,0,0,0,0,0,0,0,0,0,0,0,0,0,0,0,0,0,0,0,0,0,0,0,0,0,0,0,0,0,0,0,0,0,0,0,0,0,0,381,373,436,377,330,243,50,160,159,226,148,175,139,32,0,0,0,0,0,0,0,1,1,11,3,1,0,0,0,0,0,0,0,0,0,0,0,0,0,0,0,0,0,0,0,0,2,0,0,0,0,6,0,0,0,0,1,0,0,0,0,1,0,0,0,0,2,0,0,0,0,1,0,0,0,0,2,0,0,0,0,0,0,0,0,0,1,0,0,0,0,2,0,0,0,0,1,1,6,2,2,1,2,0,1,2]
[5,5,0,5,0,0,0,24,0,12,12,0,0,0,0,0,0,0,0,0,0,0,0,0,0,24,0,12,12,0,0,0,0,0,0,0,0,1,0,1,0,0,0,0,0,0,0,0,0,0,0,0,0,0,0,0,0,0,0,0,0,0,0,0,0,0,0,0,0,0,0,0,0,0,0,0,0,0,0,0,0,0,0,0,0,0,0,0,0,0,0,0,0,0,0,0,0,0,0,0,0,0,0,0,0,0,0,0,0,0,0,0,0,0,0,0,0,0,0,0,0,0,0,0,0,0,0,0,0,374,364,418,402,354,279,87,181,176,193,253,221,175,44,0,0,0,12,13,10,1,1,1,4,11,3,0,0,0,0,0,0,0,0,0,0,0,0,0,0,0,0,0,0,0,0,1,0,0,0,0,3,0,0,0,0,0,0,0,0,0,0,0,0,0,0,0,0,0,0,0,1,0,0,0,0,0,0,0,0,0,0,0,0,0,0,1,0,0,0,0,6,0,0,0,0,0,0,3,1,0,1,0,0,1,6]
["Total general",9,0,8,1,0,0,48,0,26,21,1,0,1,1,0,0,0,0,14,1,7,5,0,1,25,0,12,13,0,0,0,0,0,0,0,0,2,1,1,0,0,0,0,0,0,0,0,0,0,0,0,0,0,0,0,0,0,0,0,0,0,0,0,0,0,0,0,0,0,0,0,0,0,0,0,0,0,0,0,0,0,0,0,0,0,0,0,0,0,0,0,0,0,0,0,0,0,0,0,0,0,0,0,0,0,0,0,0,0,0,0,0,0,0,0,0,0,0,0,0,0,0,0,0,0,0,0,0,2462,2380,2849,2572,1911,1502,392,593,580,864,859,657,535,118,3,3,10,125,81,61,7,2,2,40,53,7,2,0,0,0,0,0,0,0,0,0,0,0,0,0,0,0,0,0,0,0,13,0,0,0,0,20,0,0,0,0,1,0,0,0,0,10,0,0,0,0,3,0,0,0,0,6,0,0,0,0,5,0,0,0,0,1,0,0,0,0,7,0,0,0,0,15,0,0,0,0,9,1,20,13,3,6,5,1,7,15]

{"sheet":"Menu","index":2,"n_rows":31,"n_cols":9,"rows_kept":31,"cut":false,"hidden":false,"merged":[[30,5,30,7],[1,7,1,16],[2,7,2,16],[3,7,3,16]]}
[]
[null,null,null,null,null,null,null,"GERESA CUSCO"]
[null,null,null,null,null,null,null,"REPORTE HISMINSA 2025"]
[null,null,null,null,null,null,null,"CANCER"]
[]
[]
[]
[]
[]
[]
[]
[]
[]
[]
[]
[]
[]
[]
[]
[]
[]
[]
[]
[]
[]
[]
[]
[]
[]
[]
[null,null,null,null,null,"Fecha Actulización DATA",null,null,"31/05/2025"]

{"sheet":"INFORME","index":3,"n_rows":179,"n_cols":17,"rows_kept":179,"cut":false,"hidden":false,"merged":[[167,1,167,4],[176,1,176,4],[123,1,124,5],[125,1,128,4],[129,1,132,4],[133,1,136,4],[137,1,140,4],[141,1,144,4],[145,1,148,4],[149,1,152,4],[153,1,156,4],[157,1,160,4],[161,1,164,4],[172,1,173,4],[110,8,110,11],[123,6,124,6],[123,7,124,7],[110,6,111,6],[18,13,21,13],[7,15,7,17],[0,1,0,17],[1,1,1,16],[2,1,2,17],[3,1,3,17],[5,4,5,5],[5,9,5,12],[5,16,5,17],[7,4,7,5],[7,9,7,12],[9,4,9,5],[16,1,16,4],[17,1,21,4],[15,1,15,4],[67,1,69,4],[22,1,23,4],[24,1,25,4],[31,1,32,4],[33,1,40,4],[45,1,47,4],[26,1,27,4],[70,1,72,4],[73,1,75,4],[168,1,171,4],[30,1,30,4],[43,1,43,4],[44,1,44,13],[110,7,111,7],[49,1,51,4],[53,1,54,4],[48,1,48,13],[52,1,52,13],[57,1,57,4],[58,1,63,4],[64,1,66,4],[88,1,90,4],[97,1,98,4],[110,5,111,5],[76,1,78,4],[79,1,81,4],[82,1,84,4],[85,1,87,4],[105,1,106,4],[96,1,96,4],[99,1,102,4],[103,1,104,4],[91,1,93,4]]}
[null,"GERENCIA REGIONAL DE SALUD CUSCO"]
[null,"DIRECCION DE ESTADISTICA Y TELECOMUNICACIONES"]
[null,"PREVENCION Y CONTROL  DE  CANCER "]
[null,"INFORME OPERACIONAL MENSUAL"]
[]
[null,null,"RED DE SALUD",null,{"$f":"TD!F3","v":"(All)"},null,null,"PROVINCIA",null,{"$f":"TD!F6","v":"(All)"},null,null,null,null,"AÑO :",null,{"$f":"TD!C10","v":2025}]
[]
[null,null,"MICRO RED",null,{"$f":"TD!F4","v":"(All)"},null,null,"DISTRITO",null,{"$f":"TD!F7","v":"(All)"},null,null,null,null,"MES :",{"$f":"TD!P16","v":"ENERO - MAYO"}]
[]
[null,null,"ESTABLECIMIENTO",null,{"$f":"TD!F5","v":"(All)"}]
[]
[]
[null,"REPORTE DE ACTIVIDADES DE PREVENCION Y CONTROL DEL CANCER"]
[]
[null,"MUJERES TAMIZADAS EN CANCER DE CUELLO UTERINO"]
[null,"ACTIVIDAD",null,null,null,"RESULTADO","Total de Tamizajes","Total de Personas Tamizadas","25-29a","30-39a","40-49a","50-59a","60-64a"]
[null,"Toma de muestra de Citologia",null,null,null,"Tamizadas",{"$f":"GETPIVOTDATA(\"Suma de Tamizadas_CACU_ATC\",TD!$A$39)","v":923},{"$f":"SUM(I17:N17)","v":912},{"$f":"GETPIVOTDATA(\"Suma de Tamizadas_CACU_25_29\",TD!$A$39)","v":261},{"$f":"GETPIVOTDATA(\"Suma de Tamizadas_CACU_30_39\",TD!$A$39)","v":74},{"$f":"GETPIVOTDATA(\"Suma de Tamizadas_CACU_40_49\",TD!$A$39)","v":82},{"$f":"GETPIVOTDATA(\"Suma de Tamizadas_CACU_50_59\",TD!$A$39)","v":372},{"$f":"GETPIVOTDATA(\"Suma de Tamizadas_CACU_60_64\",TD!$A$39)","v":123},"TamizadosPAP"]
[null,"Resultados de Citologia",null,null,null,"Normal (Negativo)",{"$f":"GETPIVOTDATA(\"Suma de Res_Normal_CACU_ATC\",TD!$A$39)","v":770},{"$f":"SUM(I18:N18)","v":745},{"$f":"GETPIVOTDATA(\"Suma de Res_Normal_CACU_25_29\",TD!$A$39)","v":195},{"$f":"GETPIVOTDATA(\"Suma de Res_Normal_CACU_30_39\",TD!$A$39)","v":98},{"$f":"GETPIVOTDATA(\"Suma de Res_Normal_CACU_40_49\",TD!$A$39)","v":92},{"$f":"GETPIVOTDATA(\"Suma de Res_Normal_CACU_50_59\",TD!$A$39)","v":261},{"$f":"GETPIVOTDATA(\"Suma de Res_Normal_CACU_60_64\",TD!$A$39)","v":99},"ResultadosNormal"]
[null,null,null,null,null,"Celulas escamosas y glandulares atipicas (ASCUS y AGC)",{"$f":"GETPIVOTDATA(\"Suma de ASCUS_AGC_ATC\",TD!$A$39)","v":2},2,{"$f":"GETPIVOTDATA(\"Suma de ASCUS_AGC_25_29\",TD!$A$39)","v":1},{"$f":"GETPIVOTDATA(\"Suma de ASCUS_AGC_30_39\",TD!$A$39)","v":1},{"$f":"GETPIVOTDATA(\"Suma de ASCUS_AGC_40_49\",TD!$A$39)","v":0},{"$f":"GETPIVOTDATA(\"Suma de ASCUS_AGC_50_59\",TD!$A$39)","v":0},{"$f":"GETPIVOTDATA(\"Suma de ASCUS_AGC_60_64\",TD!$A$39)","v":0},"Resultados ANormal"]
[null,null,null,null,null,"Lesión Intraepitelial cervical de bajo grado (NIC I)",{"$f":"GETPIVOTDATA(\"Suma de NIC_I_ATC\",TD!$A$39)","v":6},6,{"$f":"GETPIVOTDATA(\"Suma de NIC_I_25_29\",TD!$A$39)","v":3},{"$f":"GETPIVOTDATA(\"Suma de NIC_I_30_39\",TD!$A$39)","v":1},{"$f":"GETPIVOTDATA(\"Suma de NIC_I_40_49\",TD!$A$39)","v":2},{"$f":"GETPIVOTDATA(\"Suma de NIC_I_50_59\",TD!$A$39)","v":0},{"$f":"GETPIVOTDATA(\"Suma de NIC_I_60_64\",TD!$A$39)","v":0}]
[null,null,null,null,null,"Lesión Intraepitelial cervical de alto grado (NIC II, NIC III) y Cáncer in situ",{"$f":"GETPIVOTDATA(\"Suma de NIC_II_III_ATC\",TD!$A$39)","v":6},6,{"$f":"GETPIVOTDATA(\"Suma de NIC_II_III_25_29\",TD!$A$39)","v":0},{"$f":"GETPIVOTDATA(\"Suma de NIC_II_III_30_39\",TD!$A$39)","v":0},{"$f":"GETPIVOTDATA(\"Suma de NIC_II_III_40_49\",TD!$A$39)","v":4},{"$f":"GETPIVOTDATA(\"Suma de NIC_II_III_50_59\",TD!$A$39)","v":2},{"$f":"GETPIVOTDATA(\"Suma de NIC_II_III_60_64\",TD!$A$39)","v":0}]
[null,null,null,null,null,"Cáncer invasor del cuello uterino",{"$f":"GETPIVOTDATA(\"Suma de CACU_INV_ATC\",TD!$A$39)","v":0},0,{"$f":"GETPIVOTDATA(\"Suma de CACU_INV_25_29\",TD!$A$39)","v":0},{"$f":"GETPIVOTDATA(\"Suma de CACU_INV_30_39\",TD!$A$39)","v":0},{"$f":"GETPIVOTDATA(\"Suma de CACU_INV_40_49\",TD!$A$39)","v":0},{"$f":"GETPIVOTDATA(\"Suma de CACU_INV_50_59\",TD!$A$39)","v":0},{"$f":"GETPIVOTDATA(\"Suma de CACU_INV_60_64\",TD!$A$39)","v":0}]
[null,"Persona examinada con Inspección Visual Acido Acético",null,null,null,"Normal (Negativo)",{"$f":"GETPIVOTDATA(\"Suma de IVAA_N_ATC\",TD!$A$39)","v":194},201,{"$f":"GETPIVOTDATA(\"Suma de IVAA_N_25_29\",TD!$A$39)","v":1},{"$f":"GETPIVOTDATA(\"Suma de IVAA_N_30_39\",TD!$A$39)","v":89},{"$f":"GETPIVOTDATA(\"Suma de IVAA_N_40_49\",TD!$A$39)","v":105},{"$f":"GETPIVOTDATA(\"Suma de IVAA_N_50_59\",TD!$A$39)","v":3},{"$f":"GETPIVOTDATA(\"Suma de IVAA_N_60_64\",TD!$A$39)","v":3},"Resultados Normal IVA"]
[null,null,null,null,null,"Anormal (Positivo)",{"$f":"GETPIVOTDATA(\"Suma de IVAA_A_ATC\",TD!$A$39)","v":3},3,{"$f":"GETPIVOTDATA(\"Suma de IVAA_A_25_29\",TD!$A$39)","v":0},{"$f":"GETPIVOTDATA(\"Suma de IVAA_A_30_39\",TD!$A$39)","v":0},{"$f":"GETPIVOTDATA(\"Suma de IVAA_A_40_49\",TD!$A$39)","v":3},{"$f":"GETPIVOTDATA(\"Suma de IVAA_A_50_59\",TD!$A$39)","v":0},{"$f":"GETPIVOTDATA(\"Suma de IVAA_A_60_64\",TD!$A$39)","v":0},"Resultados ANormal IVA"]
[null,"Toma de muestra de VPH",null,null,null,"Por Proveedor",{"$f":"GETPIVOTDATA(\"Suma de TOMA_VPH_PROV_ATC\",TD!$A$39)","v":985},938,{"$f":"GETPIVOTDATA(\"Suma de TOMA_VPH_PROV_25_29\",TD!$A$39)","v":0},{"$f":"GETPIVOTDATA(\"Suma de TOMA_VPH_PROV_30_39\",TD!$A$39)","v":512},{"$f":"GETPIVOTDATA(\"Suma de TOMA_VPH_PROV_40_49\",TD!$A$39)","v":426},{"$f":"GETPIVOTDATA(\"Suma de TOMA_VPH_PROV_50_59\",TD!$A$39)","v":0},{"$f":"GETPIVOTDATA(\"Suma de TOMA_VPH_PROV_60_64\",TD!$A$39)","v":0}]
[null,null,null,null,null,"Auto Toma",{"$f":"GETPIVOTDATA(\"Suma de TOMA_VPH_AUTO_ATC\",TD!$A$39)","v":441},426,{"$f":"GETPIVOTDATA(\"Suma de TOMA_VPH_AUTO_25_29\",TD!$A$39)","v":0},{"$f":"GETPIVOTDATA(\"Suma de TOMA_VPH_AUTO_30_39\",TD!$A$39)","v":252},{"$f":"GETPIVOTDATA(\"Suma de TOMA_VPH_AUTO_40_49\",TD!$A$39)","v":174},{"$f":"GETPIVOTDATA(\"Suma de TOMA_VPH_AUTO_50_59\",TD!$A$39)","v":0},{"$f":"GETPIVOTDATA(\"Suma de TOMA_VPH_AUTO_60_64\",TD!$A$39)","v":0}]
[null,"Resultado VPH",null,null,null,"Normal",{"$f":"GETPIVOTDATA(\"Suma de VPH_NOR_ATC\",TD!$A$39)","v":1180},{"$f":"SUM(I27:N27)","v":1172},{"$f":"GETPIVOTDATA(\"Suma de VPH_NOR_25_29\",TD!$A$39)","v":0},{"$f":"GETPIVOTDATA(\"Suma de VPH_NOR_30_39\",TD!$A$39)","v":636},{"$f":"GETPIVOTDATA(\"Suma de VPH_NOR_40_49\",TD!$A$39)","v":535},{"$f":"GETPIVOTDATA(\"Suma de VPH_NOR_50_59\",TD!$A$39)","v":1},{"$f":"GETPIVOTDATA(\"Suma de VPH_NOR_60_64\",TD!$A$39)","v":0}]
[null,null,null,null,null,"Anormal",{"$f":"GETPIVOTDATA(\"Suma de VPH_ANOR_ATC\",TD!$A$39)","v":179},180,{"$f":"GETPIVOTDATA(\"Suma de VPH_ANOR_25_29\",TD!$A$39)","v":0},{"$f":"GETPIVOTDATA(\"Suma de VPH_ANOR_30_39\",TD!$A$39)","v":118},{"$f":"GETPIVOTDATA(\"Suma de VPH_ANOR_40_49\",TD!$A$39)","v":61},{"$f":"GETPIVOTDATA(\"Suma de VPH_ANOR_50_59\",TD!$A$39)","v":1},{"$f":"GETPIVOTDATA(\"Suma de VPH_ANOR_60_64\",TD!$A$39)","v":0}]
[]
[null,"MUJERES TAMIZADAS EN CANCER DE MAMA"]
[null,"ACTIVIDAD",null,null,null,"RESULTADO","Total de Tamizajes","Total de Personas Tamizadas","18-29a","30-39a","40-49a","50-59a","60-69a","70 y más"]
[null,"Examen clínico de mama",null,null,null,"Normal (Negativo)",{"$f":"GETPIVOTDATA(\"Suma de Ex_Cli_Ma_N_ATC\",TD!$A$39)","v":3165},{"$f":"SUM(I32:N32)","v":3000},{"$f":"GETPIVOTDATA(\"Suma de Ex_Cli_Ma_N_18_29\",TD!$A$39)","v":405},{"$f":"GETPIVOTDATA(\"Suma de Ex_Cli_Ma_N_30_39\",TD!$A$39)","v":816},{"$f":"GETPIVOTDATA(\"Suma de Ex_Cli_Ma_N_40_49\",TD!$A$39)","v":1019},{"$f":"GETPIVOTDATA(\"Suma de Ex_Cli_Ma_N_50_59\",TD!$A$39)","v":502},{"$f":"GETPIVOTDATA(\"Suma de Ex_Cli_Ma_N_60_69\",TD!$A$39)","v":232},{"$f":"GETPIVOTDATA(\"Suma de Ex_Cli_Ma_N_70_mas\",TD!$A$39)","v":26},"ExCli MAMA Normal"]
[null,null,null,null,null,"Anormal (Positivo)",{"$f":"GETPIVOTDATA(\"Suma de Ex_Cli_Ma_A_ATC\",TD!$A$39)","v":14},{"$f":"SUM(I33:N33)","v":14},{"$f":"GETPIVOTDATA(\"Suma de Ex_Cli_Ma_A_18_29\",TD!$A$39)","v":3},{"$f":"GETPIVOTDATA(\"Suma de Ex_Cli_Ma_A_30_39\",TD!$A$39)","v":6},{"$f":"GETPIVOTDATA(\"Suma de Ex_Cli_Ma_A_40_49\",TD!$A$39)","v":3},{"$f":"GETPIVOTDATA(\"Suma de Ex_Cli_Ma_A_50_59\",TD!$A$39)","v":1},{"$f":"GETPIVOTDATA(\"Suma de Ex_Cli_Ma_A_60_69\",TD!$A$39)","v":1},{"$f":"GETPIVOTDATA(\"Suma de Ex_Cli_Ma_A_70_mas\",TD!$A$39)","v":0},"ExCli MAMA Anormal"]
[null,"Mujer tamizada con mamografía bilateral de tamizaje",null,null,null,"Indicación de mamografía para tamizaje",{"$f":"GETPIVOTDATA(\"Suma de Tamiz_Indica_Mamografia_ATC\",TD!$A$39)","v":697},694,{"$f":"GETPIVOTDATA(\"Suma de Tamiz_Indica_Mamografia_18_29\",TD!$A$39)","v":2},{"$f":"GETPIVOTDATA(\"Suma de Tamiz_Indica_Mamografia_30_39\",TD!$A$39)","v":13},{"$f":"GETPIVOTDATA(\"Suma de Tamiz_Indica_Mamografia_40_49\",TD!$A$39)","v":290},{"$f":"GETPIVOTDATA(\"Suma de Tamiz_Indica_Mamografia_50_59\",TD!$A$39)","v":227},{"$f":"GETPIVOTDATA(\"Suma de Tamiz_Indica_Mamografia_60_69\",TD!$A$39)","v":154},{"$f":"GETPIVOTDATA(\"Suma de Tamiz_Indica_Mamografia_70_mas\",TD!$A$39)","v":8},"Indica Mamografia"]
[null,null,null,null,null,"Evaluación adicional (BI RADS 0)",{"$f":"GETPIVOTDATA(\"Suma de Tamiz_Eval_Adicional_ATC\",TD!$A$39)","v":97},97,{"$f":"GETPIVOTDATA(\"Suma de Tamiz_Eval_Adicional_18_29\",TD!$A$39)","v":0},{"$f":"GETPIVOTDATA(\"Suma de Tamiz_Eval_Adicional_30_39\",TD!$A$39)","v":7},{"$f":"GETPIVOTDATA(\"Suma de Tamiz_Eval_Adicional_40_49\",TD!$A$39)","v":72},{"$f":"GETPIVOTDATA(\"Suma de Tamiz_Eval_Adicional_50_59\",TD!$A$39)","v":15},{"$f":"GETPIVOTDATA(\"Suma de Tamiz_Eval_Adicional_60_69\",TD!$A$39)","v":3},{"$f":"GETPIVOTDATA(\"Suma de Tamiz_Eval_Adicional_70_mas\",TD!$A$39)","v":0}]
[null,null,null,null,null,"Negativa (BI RADS 1)",{"$f":"GETPIVOTDATA(\"Suma de Tamiz_Negativa_BI_RADS_1_ATC\",TD!$A$39)","v":220},{"$f":"SUM(I36:N36)","v":219},{"$f":"GETPIVOTDATA(\"Suma de Tamiz_Negativa_BI_RADS_1_18_29\",TD!$A$39)","v":0},{"$f":"GETPIVOTDATA(\"Suma de Tamiz_Negativa_BI_RADS_1_30_39\",TD!$A$39)","v":4},{"$f":"GETPIVOTDATA(\"Suma de Tamiz_Negativa_BI_RADS_1_40_49\",TD!$A$39)","v":98},{"$f":"GETPIVOTDATA(\"Suma de Tamiz_Negativa_BI_RADS_1_50_59\",TD!$A$39)","v":80},{"$f":"GETPIVOTDATA(\"Suma de Tamiz_Negativa_BI_RADS_1_60_69\",TD!$A$39)","v":37},{"$f":"GETPIVOTDATA(\"Suma de Tamiz_Negativa_BI_RADS_1_70_mas\",TD!$A$39)","v":0},"Negativa (BI RADS 1)"]
[null,null,null,null,null,"Benigna (BI RADS 2)",{"$f":"GETPIVOTDATA(\"Suma de Tamiz_Benigna_BI_RADS_2_ATC\",TD!$A$39)","v":109},108,{"$f":"GETPIVOTDATA(\"Suma de Tamiz_Benigna_BI_RADS_2_18_29\",TD!$A$39)","v":0},{"$f":"GETPIVOTDATA(\"Suma de Tamiz_Benigna_BI_RADS_2_30_39\",TD!$A$39)","v":0},{"$f":"GETPIVOTDATA(\"Suma de Tamiz_Benigna_BI_RADS_2_40_49\",TD!$A$39)","v":12},{"$f":"GETPIVOTDATA(\"Suma de Tamiz_Benigna_BI_RADS_2_50_59\",TD!$A$39)","v":47},{"$f":"GETPIVOTDATA(\"Suma de Tamiz_Benigna_BI_RADS_2_60_69\",TD!$A$39)","v":43},{"$f":"GETPIVOTDATA(\"Suma de Tamiz_Benigna_BI_RADS_2_70_mas\",TD!$A$39)","v":6},"Negativa (BI RADS 2)"]
[null,null,null,null,null,"Probablemente benigna (BI RADS 3)",{"$f":"GETPIVOTDATA(\"Suma de Tamiz_Probl_Benigna_BI_RADS_3_ATC\",TD!$A$39)","v":13},13,{"$f":"GETPIVOTDATA(\"Suma de Tamiz_Probl_Benigna_BI_RADS_3_18_29\",TD!$A$39)","v":1},{"$f":"GETPIVOTDATA(\"Suma de Tamiz_Probl_Benigna_BI_RADS_3_30_39\",TD!$A$39)","v":0},{"$f":"GETPIVOTDATA(\"Suma de Tamiz_Probl_Benigna_BI_RADS_3_40_49\",TD!$A$39)","v":6},{"$f":"GETPIVOTDATA(\"Suma de Tamiz_Probl_Benigna_BI_RADS_3_50_59\",TD!$A$39)","v":2},{"$f":"GETPIVOTDATA(\"Suma de Tamiz_Probl_Benigna_BI_RADS_3_60_69\",TD!$A$39)","v":3},{"$f":"GETPIVOTDATA(\"Suma de Tamiz_Probl_Benigna_BI_RADS_3_70_MAS\",TD!$A$39)","v":1}]
[null,null,null,null,null,"Anormalidad sospechosa (BI RADS 4)",{"$f":"GETPIVOTDATA(\"Suma de Tamiz_Anor_Sospechoso_BI_RADS_4_ATC\",TD!$A$39)","v":15},15,{"$f":"GETPIVOTDATA(\"Suma de Tamiz_Anor_Sospechoso_BI_RADS_4_18_29\",TD!$A$39)","v":0},{"$f":"GETPIVOTDATA(\"Suma de Tamiz_Anor_Sospechoso_BI_RADS_4_30_39\",TD!$A$39)","v":1},{"$f":"GETPIVOTDATA(\"Suma de Tamiz_Anor_Sospechoso_BI_RADS_4_40_49\",TD!$A$39)","v":6},{"$f":"GETPIVOTDATA(\"Suma de Tamiz_Anor_Sospechoso_BI_RADS_4_50_59\",TD!$A$39)","v":2},{"$f":"GETPIVOTDATA(\"Suma de Tamiz_Anor_Sospechoso_BI_RADS_4_60_69\",TD!$A$39)","v":6},{"$f":"GETPIVOTDATA(\"Suma de Tamiz_Anor_Sospechoso_BI_RADS_4_70_MAS\",TD!$A$39)","v":0}]
[null,null,null,null,null,"Altamente sugestiva de malignidad (BI RADS 5)",{"$f":"GETPIVOTDATA(\"Suma de Tamiz_Alt_Suges_Malig_BI_RADS_5_ATC\",TD!$A$39)","v":1},1,{"$f":"GETPIVOTDATA(\"Suma de Tamiz_Alt_Suges_Malig_BI_RADS_5_18_29\",TD!$A$39)","v":0},{"$f":"GETPIVOTDATA(\"Suma de Tamiz_Alt_Suges_Malig_BI_RADS_5_30_39\",TD!$A$39)","v":1},{"$f":"GETPIVOTDATA(\"Suma de Tamiz_Alt_Suges_Malig_BI_RADS_5_40_49\",TD!$A$39)","v":0},{"$f":"GETPIVOTDATA(\"Suma de Tamiz_Alt_Suges_Malig_BI_RADS_5_50_59\",TD!$A$39)","v":0},{"$f":"GETPIVOTDATA(\"Suma de Tamiz_Alt_Suges_Malig_BI_RADS_5_60_69\",TD!$A$39)","v":0},{"$f":"GETPIVOTDATA(\"Suma de Tamiz_Alt_Suges_Malig_BI_RADS_5_70_MAS\",TD!$A$39)","v":0}]
[null,null,null,null,null,"Malignidad conocida (Bi RADS 6)",{"$f":"GETPIVOTDATA(\"Suma de Tamiz_Malig_Conocida_BI_RADS_6_ATC\",TD!$A$39)","v":0},0,{"$f":"GETPIVOTDATA(\"Suma de Tamiz_Malig_Conocida_BI_RADS_6_18_29\",TD!$A$39)","v":0},{"$f":"GETPIVOTDATA(\"Suma de Tamiz_Malig_Conocida_BI_RADS_6_30_39\",TD!$A$39)","v":0},{"$f":"GETPIVOTDATA(\"Suma de Tamiz_Malig_Conocida_BI_RADS_6_40_49\",TD!$A$39)","v":0},{"$f":"GETPIVOTDATA(\"Suma de Tamiz_Malig_Conocida_BI_RADS_6_50_59\",TD!$A$39)","v":0},{"$f":"GETPIVOTDATA(\"Suma de Tamiz_Malig_Conocida_BI_RADS_6_60_69\",TD!$A$39)","v":0},{"$f":"GETPIVOTDATA(\"Suma de Tamiz_Malig_Conocida_BI_RADS_6_70_MAS\",TD!$A$39)","v":0},"Malignidad conocida (Bi RADS 6)"]
[]
[null,"PERSONAS TAMIZADAS PARA DETECCION DE OTROS CANCER"]
[null,"ACTIVIDAD",null,null,null,"RESULTADO","Total de Tamizajes","Total de Personas Tamizadas","18-29a","30-39a","40-49a","50-59a","60-69a","70 y más"]
[null,"Tamizaje para detección de Cáncer de Colón y Recto"]
[null,"Test de sangre oculta en heces",null,null,null,"Indicación",{"$f":"GETPIVOTDATA(\"Suma de Indi_Tamiz_Colon_Rec_ATC\",TD!$A$39)","v":1107},{"$f":"SUM(I46:N46)","v":1060},{"$f":"GETPIVOTDATA(\"Suma de Indi_Tamiz_Colon_Rec_18_29\",TD!$A$39)","v":3},{"$f":"GETPIVOTDATA(\"Suma de Indi_Tamiz_Colon_Rec_30_39\",TD!$A$39)","v":10},{"$f":"GETPIVOTDATA(\"Suma de Indi_Tamiz_Colon_Rec_40_49\",TD!$A$39)","v":40},{"$f":"GETPIVOTDATA(\"Suma de Indi_Tamiz_Colon_Rec_50_59\",TD!$A$39)","v":431},{"$f":"GETPIVOTDATA(\"Suma de Indi_Tamiz_Colon_Rec_60_69\",TD!$A$39)","v":435},{"$f":"GETPIVOTDATA(\"Suma de Indi_Tamiz_Colon_Rec_70_MAS\",TD!$A$39)","v":141},"indicacion tami colon r"]
[null,null,null,null,null,"Normal (Negativo)",{"$f":"GETPIVOTDATA(\"Suma de Resultado_Colon_Rec_Normal_ATC\",TD!$A$39)","v":529},510,{"$f":"GETPIVOTDATA(\"Suma de Resultado_Colon_Rec_Normal_18_29\",TD!$A$39)","v":3},{"$f":"GETPIVOTDATA(\"Suma de Resultado_Colon_Rec_Normal_30_39\",TD!$A$39)","v":6},{"$f":"GETPIVOTDATA(\"Suma de Resultado_Colon_Rec_Normal_40_49\",TD!$A$39)","v":21},{"$f":"GETPIVOTDATA(\"Suma de Resultado_Colon_Rec_Normal_50_59\",TD!$A$39)","v":197},{"$f":"GETPIVOTDATA(\"Suma de Resultado_Colon_Rec_Normal_60_69\",TD!$A$39)","v":212},{"$f":"GETPIVOTDATA(\"Suma de Resultado_Colon_Rec_Normal_70_MAS\",TD!$A$39)","v":71},"Resultado C/R Normal"]
[null,null,null,null,null,"Anormal (Positivo)",{"$f":"GETPIVOTDATA(\"Suma de Resultado_Colon_Rec_A_Normal_ATC\",TD!$A$39)","v":53},53,{"$f":"GETPIVOTDATA(\"Suma de Resultado_Colon_Rec_A_Normal_18_29\",TD!$A$39)","v":0},{"$f":"GETPIVOTDATA(\"Suma de Resultado_Colon_Rec_A_Normal_30_39\",TD!$A$39)","v":0},{"$f":"GETPIVOTDATA(\"Suma de Resultado_Colon_Rec_A_Normal_40_49\",TD!$A$39)","v":2},{"$f":"GETPIVOTDATA(\"Suma de Resultado_Colon_Rec_A_Normal_50_59\",TD!$A$39)","v":16},{"$f":"GETPIVOTDATA(\"Suma de Resultado_Colon_Rec_A_Normal_60_69\",TD!$A$39)","v":30},{"$f":"GETPIVOTDATA(\"Suma de Resultado_Colon_Rec_A_Normal_70_MAS\",TD!$A$39)","v":5},"Resultado C/R ANormal"]
[null,"Tamizaje para detección de cáncer de próstata"]
[null,"    Examen PSA",null,null,null,"Indicación",{"$f":"GETPIVOTDATA(\"Suma de Indica_Exam_PSA_ATC\",TD!$A$39)","v":766},743,{"$f":"GETPIVOTDATA(\"Suma de Indica_Exam_PSA_18_29\",TD!$A$39)","v":2},{"$f":"GETPIVOTDATA(\"Suma de Indica_Exam_PSA_30_39\",TD!$A$39)","v":2},{"$f":"GETPIVOTDATA(\"Suma de Indica_Exam_PSA_40_49\",TD!$A$39)","v":40},{"$f":"GETPIVOTDATA(\"Suma de Indica_Exam_PSA_50_59\",TD!$A$39)","v":257},{"$f":"GETPIVOTDATA(\"Suma de Indica_Exam_PSA_60_69\",TD!$A$39)","v":294},{"$f":"GETPIVOTDATA(\"Suma de Indica_Exam_PSA_70_Mas\",TD!$A$39)","v":148},"indicacion PSA"]
[null,null,null,null,null,"Normal (Negativo)",{"$f":"GETPIVOTDATA(\"Suma de Result_PSA_Normal_ATC\",TD!$A$39)","v":362},354,{"$f":"GETPIVOTDATA(\"Suma de Result_PSA_Normal_18_29\",TD!$A$39)","v":2},{"$f":"GETPIVOTDATA(\"Suma de Result_PSA_Normal_30_39\",TD!$A$39)","v":3},{"$f":"GETPIVOTDATA(\"Suma de Result_PSA_Normal_40_49\",TD!$A$39)","v":20},{"$f":"GETPIVOTDATA(\"Suma de Result_PSA_Normal_50_59\",TD!$A$39)","v":106},{"$f":"GETPIVOTDATA(\"Suma de Result_PSA_Normal_60_69\",TD!$A$39)","v":142},{"$f":"GETPIVOTDATA(\"Suma de Result_PSA_Normal_70_mas\",TD!$A$39)","v":81},"Resultado PSA Normal"]
[null,null,null,null,null,"Anormal (Positivo)",{"$f":"GETPIVOTDATA(\"Suma de Result_PSA_Normal_A_ATC\",TD!$A$39)","v":30},28,{"$f":"GETPIVOTDATA(\"Suma de Result_PSA_Normal_A_18_29\",TD!$A$39)","v":0},{"$f":"GETPIVOTDATA(\"Suma de Result_PSA_Normal_A_30_39\",TD!$A$39)","v":0},{"$f":"GETPIVOTDATA(\"Suma de Result_PSA_Normal_A_40_49\",TD!$A$39)","v":0},{"$f":"GETPIVOTDATA(\"Suma de Result_PSA_Normal_A_50_59\",TD!$A$39)","v":5},{"$f":"GETPIVOTDATA(\"Suma de Result_PSA_Normal_A_60_69\",TD!$A$39)","v":11},{"$f":"GETPIVOTDATA(\"Suma de Result_PSA_Normal_A_70_mas\",TD!$A$39)","v":12},"Resultado PSA ANormal"]
[null,"Tamizaje para detección de Cáncer de Piel"]
[null,"Tamizaje para detección de cáncer de piel",null,null,null,"Normal (Negativo)",{"$f":"GETPIVOTDATA(\"Suma de Tamiz_Piel_Normal_ATC\",TD!$A$39)","v":5071},4986,{"$f":"GETPIVOTDATA(\"Suma de Tamiz_Piel_Normal_18_29\",TD!$A$39)","v":912},{"$f":"GETPIVOTDATA(\"Suma de Tamiz_Piel_Normal_30_39\",TD!$A$39)","v":882},{"$f":"GETPIVOTDATA(\"Suma de Tamiz_Piel_Normal_40_49\",TD!$A$39)","v":899},{"$f":"GETPIVOTDATA(\"Suma de Tamiz_Piel_Normal_50_59\",TD!$A$39)","v":978},{"$f":"GETPIVOTDATA(\"Suma de Tamiz_Piel_Normal_60_69\",TD!$A$39)","v":909},{"$f":"GETPIVOTDATA(\"Suma de Tamiz_Piel_Normal_70_mas\",TD!$A$39)","v":406},"Tamizaje Piel Normal"]
[null,null,null,null,null,"Anormal (Positivo)",{"$f":"GETPIVOTDATA(\"Suma de Tamiz_Piel_A_Normal_ATC\",TD!$A$39)","v":23},23,{"$f":"GETPIVOTDATA(\"Suma de Tamiz_Piel_A_Normal_18_29\",TD!$A$39)","v":6},{"$f":"GETPIVOTDATA(\"Suma de Tamiz_Piel_A_Normal_30_39\",TD!$A$39)","v":2},{"$f":"GETPIVOTDATA(\"Suma de Tamiz_Piel_A_Normal_40_49\",TD!$A$39)","v":1},{"$f":"GETPIVOTDATA(\"Suma de Tamiz_Piel_A_Normal_50_59\",TD!$A$39)","v":5},{"$f":"GETPIVOTDATA(\"Suma de Tamiz_Piel_A_Normal_60_69\",TD!$A$39)","v":5},{"$f":"GETPIVOTDATA(\"Suma de Tamiz_Piel_A_Normal_70_mas\",TD!$A$39)","v":4},"Tamizaje Piel ANormal"]
[]
[null,"PROCEDIMIENTOS PARA EL DIAGNOSTICO DE CANCER"]
[null,"ACTIVIDAD",null,null,null,"RESULTADO","Total de Tamizajes","Total de Personas Tamizadas","18 -24a","25-29a","30-39a","40-49a","50-59a","60-64","65 y más"]
[null,"Atendidos con procedimiento de biopsia de Cuello Uterino",null,null,null,"Indicación ",{"$f":"GETPIVOTDATA(\"Suma de Proc_Bio_Cuell_Uterino_Indi_ATC\",TD!$A$39)","v":2},{"$f":"SUM(I59:O59)","v":2},{"$f":"GETPIVOTDATA(\"Suma de Proc_Bio_Cuell_Uterino_Indi_18_24\",TD!$A$39)","v":0},{"$f":"GETPIVOTDATA(\"Suma de Proc_Bio_Cuell_Uterino_Indi_25_29\",TD!$A$39)","v":1},{"$f":"GETPIVOTDATA(\"Suma de Proc_Bio_Cuell_Uterino_Indi_30_39\",TD!$A$39)","v":0},{"$f":"GETPIVOTDATA(\"Suma de Proc_Bio_Cuell_Uterino_Indi_40_49\",TD!$A$39)","v":1},{"$f":"GETPIVOTDATA(\"Suma de Proc_Bio_Cuell_Uterino_Indi_50_59\",TD!$A$39)","v":0},{"$f":"GETPIVOTDATA(\"Suma de Proc_Bio_Cuell_Uterino_Indi_60_64\",TD!$A$39)","v":0},{"$f":"GETPIVOTDATA(\"Suma de Proc_Bio_Cuell_Uterino_Indi_65\",TD!$A$39)","v":0}]
[null,null,null,null,null,"Negativo",{"$f":"GETPIVOTDATA(\"Suma de Proc_Bio_Cuell_Uterino_Norm_ATC\",TD!$A$39)","v":0},{"$f":"SUM(I60:O60)","v":0},{"$f":"GETPIVOTDATA(\"Suma de Proc_Bio_Cuell_Uterino_Norm_18_24\",TD!$A$39)","v":0},{"$f":"GETPIVOTDATA(\"Suma de Proc_Bio_Cuell_Uterino_Norm_25_29\",TD!$A$39)","v":0},{"$f":"GETPIVOTDATA(\"Suma de Proc_Bio_Cuell_Uterino_Norm_30_39\",TD!$A$39)","v":0},{"$f":"GETPIVOTDATA(\"Suma de Proc_Bio_Cuell_Uterino_Norm_40_49\",TD!$A$39)","v":0},{"$f":"GETPIVOTDATA(\"Suma de Proc_Bio_Cuell_Uterino_Norm_50_59\",TD!$A$39)","v":0},{"$f":"GETPIVOTDATA(\"Suma de Proc_Bio_Cuell_Uterino_Norm_60_64\",TD!$A$39)","v":0},{"$f":"GETPIVOTDATA(\"Suma de Proc_Bio_Cuell_Uterino_Norm_65\",TD!$A$39)","v":0}]
[null,null,null,null,null,"NIC I",{"$f":"GETPIVOTDATA(\"Suma de Proc_Bio_Cuell_Uterino_NIC_I_ATC\",TD!$A$39)","v":0},0,{"$f":"GETPIVOTDATA(\"Suma de Proc_Bio_Cuell_Uterino_NIC_I_18_24\",TD!$A$39)","v":0},{"$f":"GETPIVOTDATA(\"Suma de Proc_Bio_Cuell_Uterino_NIC_I_25_29\",TD!$A$39)","v":0},{"$f":"GETPIVOTDATA(\"Suma de Proc_Bio_Cuell_Uterino_NIC_I_30_39\",TD!$A$39)","v":0},{"$f":"GETPIVOTDATA(\"Suma de Proc_Bio_Cuell_Uterino_NIC_I_40_49\",TD!$A$39)","v":0},{"$f":"GETPIVOTDATA(\"Suma de Proc_Bio_Cuell_Uterino_NIC_I_50_59\",TD!$A$39)","v":0},{"$f":"GETPIVOTDATA(\"Suma de Proc_Bio_Cuell_Uterino_NIC_I_60_64\",TD!$A$39)","v":0},{"$f":"GETPIVOTDATA(\"Suma de Proc_Bio_Cuell_Uterino_NIC_I_65\",TD!$A$39)","v":0}]
[null,null,null,null,null,"NIC II",{"$f":"GETPIVOTDATA(\"Suma de Proc_Bio_Cuell_Uterino_NIC_II_ATC\",TD!$A$39)","v":0},0,{"$f":"GETPIVOTDATA(\"Suma de Proc_Bio_Cuell_Uterino_NIC_II_18_24\",TD!$A$39)","v":0},{"$f":"GETPIVOTDATA(\"Suma de Proc_Bio_Cuell_Uterino_NIC_II_25_29\",TD!$A$39)","v":0},{"$f":"GETPIVOTDATA(\"Suma de Proc_Bio_Cuell_Uterino_NIC_II_30_39\",TD!$A$39)","v":0},{"$f":"GETPIVOTDATA(\"Suma de Proc_Bio_Cuell_Uterino_NIC_II_40_49\",TD!$A$39)","v":0},{"$f":"GETPIVOTDATA(\"Suma de Proc_Bio_Cuell_Uterino_NIC_II_50_59\",TD!$A$39)","v":0},{"$f":"GETPIVOTDATA(\"Suma de Proc_Bio_Cuell_Uterino_NIC_II_60_64\",TD!$A$39)","v":0},{"$f":"GETPIVOTDATA(\"Suma de Proc_Bio_Cuell_Uterino_NIC_II_65\",TD!$A$39)","v":0}]
[null,null,null,null,null,"NIC III/Carcinoma insitu",{"$f":"GETPIVOTDATA(\"Suma de Proc_Bio_Cuell_Uterino_NIC_III_ATC\",TD!$A$39)","v":0},0,{"$f":"GETPIVOTDATA(\"Suma de Proc_Bio_Cuell_Uterino_NIC_III_18_24\",TD!$A$39)","v":0},{"$f":"GETPIVOTDATA(\"Suma de Proc_Bio_Cuell_Uterino_NIC_III_25_29\",TD!$A$39)","v":0},{"$f":"GETPIVOTDATA(\"Suma de Proc_Bio_Cuell_Uterino_NIC_III_30_39\",TD!$A$39)","v":0},{"$f":"GETPIVOTDATA(\"Suma de Proc_Bio_Cuell_Uterino_NIC_III_40_49\",TD!$A$39)","v":0},{"$f":"GETPIVOTDATA(\"Suma de Proc_Bio_Cuell_Uterino_NIC_III_50_59\",TD!$A$39)","v":0},{"$f":"GETPIVOTDATA(\"Suma de Proc_Bio_Cuell_Uterino_NIC_III_60_64\",TD!$A$39)","v":0},{"$f":"GETPIVOTDATA(\"Suma de Proc_Bio_Cuell_Uterino_NIC_III_65\",TD!$A$39)","v":0}]
[null,null,null,null,null,"Positivo",{"$f":"GETPIVOTDATA(\"Suma de Proc_Bio_Cuell_Uterino_Anor_ATC\",TD!$A$39)","v":1},1,{"$f":"GETPIVOTDATA(\"Suma de Proc_Bio_Cuell_Uterino_Anor_18_24\",TD!$A$39)","v":0},{"$f":"GETPIVOTDATA(\"Suma de Proc_Bio_Cuell_Uterino_Anor_25_29\",TD!$A$39)","v":0},{"$f":"GETPIVOTDATA(\"Suma de Proc_Bio_Cuell_Uterino_Anor_30_39\",TD!$A$39)","v":0},{"$f":"GETPIVOTDATA(\"Suma de Proc_Bio_Cuell_Uterino_Anor_40_49\",TD!$A$39)","v":1},{"$f":"GETPIVOTDATA(\"Suma de Proc_Bio_Cuell_Uterino_Anor_50_59\",TD!$A$39)","v":0},{"$f":"GETPIVOTDATA(\"Suma de Proc_Bio_Cuell_Uterino_Anor_60_64\",TD!$A$39)","v":0},{"$f":"GETPIVOTDATA(\"Suma de Proc_Bio_Cuell_Uterino_Anor_65\",TD!$A$39)","v":0}]
[null,"Atendidos con procedimiento de biopsia mamaria",null,null,null,"Indicación",{"$f":"GETPIVOTDATA(\"Suma de Proc_Bio_Mama_Indic_ATC\",TD!$A$39)","v":6},6,{"$f":"GETPIVOTDATA(\"Suma de Proc_Bio_Mama_Indic_18_24\",TD!$A$39)","v":2},{"$f":"GETPIVOTDATA(\"Suma de Proc_Bio_Mama_Indic_25_29\",TD!$A$39)","v":0},{"$f":"GETPIVOTDATA(\"Suma de Proc_Bio_Mama_Indic_30_39\",TD!$A$39)","v":0},{"$f":"GETPIVOTDATA(\"Suma de Proc_Bio_Mama_Indic_40_49\",TD!$A$39)","v":3},{"$f":"GETPIVOTDATA(\"Suma de Proc_Bio_Mama_Indic_50_59\",TD!$A$39)","v":0},{"$f":"GETPIVOTDATA(\"Suma de Proc_Bio_Mama_Indic_60_64\",TD!$A$39)","v":0},{"$f":"GETPIVOTDATA(\"Suma de Proc_Bio_Mama_Indic_65\",TD!$A$39)","v":1}]
[null,null,null,null,null,"Negativo",{"$f":"GETPIVOTDATA(\"Suma de Proc_Bio_Mama_Norm_ATC\",TD!$A$65)","v":0},0,{"$f":"GETPIVOTDATA(\"Suma de Proc_Bio_Mama_Norm_18_24\",TD!$A$65)","v":0},{"$f":"GETPIVOTDATA(\"Suma de Proc_Bio_Mama_Norm_25_29\",TD!$A$65)","v":0},{"$f":"GETPIVOTDATA(\"Suma de Proc_Bio_Mama_Norm_30_39\",TD!$A$65)","v":0},{"$f":"GETPIVOTDATA(\"Suma de Proc_Bio_Mama_Norm_40_49\",TD!$A$65)","v":0},{"$f":"GETPIVOTDATA(\"Suma de Proc_Bio_Mama_Norm_50_59\",TD!$A$65)","v":0},{"$f":"GETPIVOTDATA(\"Suma de Proc_Bio_Mama_Norm_60_64\",TD!$A$65)","v":0},{"$f":"GETPIVOTDATA(\"Suma de Proc_Bio_Mama_Norm_65\",TD!$A$65)","v":0}]
[null,null,null,null,null,"Positivo",{"$f":"GETPIVOTDATA(\"Suma de Proc_Bio_Mama_Anor_ATC\",TD!$A$65)","v":0},0,{"$f":"GETPIVOTDATA(\"Suma de Proc_Bio_Mama_Anor_18_24\",TD!$A$65)","v":0},{"$f":"GETPIVOTDATA(\"Suma de Proc_Bio_Mama_Anor_25_29\",TD!$A$65)","v":0},{"$f":"GETPIVOTDATA(\"Suma de Proc_Bio_Mama_Anor_30_39\",TD!$A$65)","v":0},{"$f":"GETPIVOTDATA(\"Suma de Proc_Bio_Mama_Anor_40_49\",TD!$A$65)","v":0},{"$f":"GETPIVOTDATA(\"Suma de Proc_Bio_Mama_Anor_50_59\",TD!$A$65)","v":0},{"$f":"GETPIVOTDATA(\"Suma de Proc_Bio_Mama_Anor_60_64\",TD!$A$65)","v":0},{"$f":"GETPIVOTDATA(\"Suma de Proc_Bio_Mama_Anor_65\",TD!$A$65)","v":0}]
[null,"Atendidos con procedimiento de biopsia de prostata",null,null,null,"Indicación",{"$f":"GETPIVOTDATA(\"Suma de Proc_Bio_Prost_Indi_ATC\",TD!$A$65)","v":0},0,{"$f":"GETPIVOTDATA(\"Suma de Proc_Bio_Prost_Indi_18_24\",TD!$A$65)","v":0},{"$f":"GETPIVOTDATA(\"Suma de Proc_Bio_Prost_Indi_25_29\",TD!$A$65)","v":0},{"$f":"GETPIVOTDATA(\"Suma de Proc_Bio_Prost_Indi_30_39\",TD!$A$65)","v":0},{"$f":"GETPIVOTDATA(\"Suma de Proc_Bio_Prost_Indi_40_49\",TD!$A$65)","v":0},{"$f":"GETPIVOTDATA(\"Suma de Proc_Bio_Prost_Indi_50_59\",TD!$A$65)","v":0},{"$f":"GETPIVOTDATA(\"Suma de Proc_Bio_Prost_Indi_60_64\",TD!$A$65)","v":0},{"$f":"GETPIVOTDATA(\"Suma de Proc_Bio_Prost_Indi_65\",TD!$A$65)","v":0}]
[null,null,null,null,null,"Negativo",{"$f":"GETPIVOTDATA(\"Suma de Proc_Bio_Prost_Norm_ATC\",TD!$A$65)","v":0},0,{"$f":"GETPIVOTDATA(\"Suma de Proc_Bio_Prost_Norm_18_24\",TD!$A$65)","v":0},{"$f":"GETPIVOTDATA(\"Suma de Proc_Bio_Prost_Norm_25_29\",TD!$A$65)","v":0},{"$f":"GETPIVOTDATA(\"Suma de Proc_Bio_Prost_Norm_30_39\",TD!$A$65)","v":0},{"$f":"GETPIVOTDATA(\"Suma de Proc_Bio_Prost_Norm_40_49\",TD!$A$65)","v":0},{"$f":"GETPIVOTDATA(\"Suma de Proc_Bio_Prost_Norm_50_59\",TD!$A$65)","v":0},{"$f":"GETPIVOTDATA(\"Suma de Proc_Bio_Prost_Norm_60_64\",TD!$A$65)","v":0},{"$f":"GETPIVOTDATA(\"Suma de Proc_Bio_Prost_Norm_65\",TD!$A$65)","v":0}]
[null,null,null,null,null,"Positivo",{"$f":"GETPIVOTDATA(\"Suma de Proc_Bio_Prost_Anor_ATC\",TD!$A$65)","v":0},0,{"$f":"GETPIVOTDATA(\"Suma de Proc_Bio_Prost_Anor_18_24\",TD!$A$65)","v":0},{"$f":"GETPIVOTDATA(\"Suma de Proc_Bio_Prost_Anor_25_29\",TD!$A$65)","v":0},{"$f":"GETPIVOTDATA(\"Suma de Proc_Bio_Prost_Anor_30_39\",TD!$A$65)","v":0},{"$f":"GETPIVOTDATA(\"Suma de Proc_Bio_Prost_Anor_40_49\",TD!$A$65)","v":0},{"$f":"GETPIVOTDATA(\"Suma de Proc_Bio_Prost_Anor_50_59\",TD!$A$65)","v":0},{"$f":"GETPIVOTDATA(\"Suma de Proc_Bio_Prost_Anor_60_64\",TD!$A$65)","v":0},{"$f":"GETPIVOTDATA(\"Suma de Proc_Bio_Prost_Anor_65\",TD!$A$65)","v":0}]
[null,"Atendidos con procedimiento de biopsia de colon recto",null,null,null,"Indicación",{"$f":"GETPIVOTDATA(\"Suma de Proc_Bio_Colon_Recto_Ind_ATC\",TD!$A$65)","v":0},0,{"$f":"GETPIVOTDATA(\"Suma de Proc_Bio_Colon_Recto_Ind_18_24\",TD!$A$65)","v":0},{"$f":"GETPIVOTDATA(\"Suma de Proc_Bio_Colon_Recto_Ind_25_29\",TD!$A$65)","v":0},{"$f":"GETPIVOTDATA(\"Suma de Proc_Bio_Colon_Recto_Ind_30_39\",TD!$A$65)","v":0},{"$f":"GETPIVOTDATA(\"Suma de Proc_Bio_Colon_Recto_Ind_40_49\",TD!$A$65)","v":0},{"$f":"GETPIVOTDATA(\"Suma de Proc_Bio_Colon_Recto_Ind_50_59\",TD!$A$65)","v":0},{"$f":"GETPIVOTDATA(\"Suma de Proc_Bio_Colon_Recto_Ind_60_64\",TD!$A$65)","v":0},{"$f":"GETPIVOTDATA(\"Suma de Proc_Bio_Colon_Recto_Ind_65\",TD!$A$65)","v":0}]
[null,null,null,null,null,"Negativo",{"$f":"GETPIVOTDATA(\"Suma de Proc_Bio_Colon_Recto_Norm_ATC\",TD!$A$65)","v":0},0,{"$f":"GETPIVOTDATA(\"Suma de Proc_Bio_Colon_Recto_Norm_18_24\",TD!$A$65)","v":0},{"$f":"GETPIVOTDATA(\"Suma de Proc_Bio_Colon_Recto_Norm_25_29\",TD!$A$65)","v":0},{"$f":"GETPIVOTDATA(\"Suma de Proc_Bio_Colon_Recto_Norm_30_39\",TD!$A$65)","v":0},{"$f":"GETPIVOTDATA(\"Suma de Proc_Bio_Colon_Recto_Norm_40_49\",TD!$A$65)","v":0},{"$f":"GETPIVOTDATA(\"Suma de Proc_Bio_Colon_Recto_Norm_50_59\",TD!$A$65)","v":0},{"$f":"GETPIVOTDATA(\"Suma de Proc_Bio_Colon_Recto_Norm_60_64\",TD!$A$65)","v":0},{"$f":"GETPIVOTDATA(\"Suma de Proc_Bio_Colon_Recto_Norm_65\",TD!$A$65)","v":0}]
[null,null,null,null,null,"Positivo",{"$f":"GETPIVOTDATA(\"Suma de Proc_Bio_Colon_Recto_Anor_ATC\",TD!$A$65)","v":0},0,{"$f":"GETPIVOTDATA(\"Suma de Proc_Bio_Colon_Recto_Anor_18_24\",TD!$A$65)","v":0},{"$f":"GETPIVOTDATA(\"Suma de Proc_Bio_Colon_Recto_Anor_25_29\",TD!$A$65)","v":0},{"$f":"GETPIVOTDATA(\"Suma de Proc_Bio_Colon_Recto_Anor_30_39\",TD!$A$65)","v":0},{"$f":"GETPIVOTDATA(\"Suma de Proc_Bio_Colon_Recto_Anor_40_49\",TD!$A$65)","v":0},{"$f":"GETPIVOTDATA(\"Suma de Proc_Bio_Colon_Recto_Anor_50_59\",TD!$A$65)","v":0},{"$f":"GETPIVOTDATA(\"Suma de Proc_Bio_Colon_Recto_Anor_60_64\",TD!$A$65)","v":0},{"$f":"GETPIVOTDATA(\"Suma de Proc_Bio_Colon_Recto_Anor_65\",TD!$A$65)","v":0}]
[null,"Atendidos con procedimiento de biopsia de estómago",null,null,null,"Indicación",{"$f":"GETPIVOTDATA(\"Suma de Proc_Bio_Estomago_Ind_ATC\",TD!$A$65)","v":0},0,{"$f":"GETPIVOTDATA(\"Suma de Proc_Bio_Estomago_Ind_18_24\",TD!$A$65)","v":0},{"$f":"GETPIVOTDATA(\"Suma de Proc_Bio_Estomago_Ind_25_29\",TD!$A$65)","v":0},{"$f":"GETPIVOTDATA(\"Suma de Proc_Bio_Estomago_Ind_30_39\",TD!$A$65)","v":0},{"$f":"GETPIVOTDATA(\"Suma de Proc_Bio_Estomago_Ind_40_49\",TD!$A$65)","v":0},{"$f":"GETPIVOTDATA(\"Suma de Proc_Bio_Estomago_Ind_50_59\",TD!$A$65)","v":0},{"$f":"GETPIVOTDATA(\"Suma de Proc_Bio_Estomago_Ind_60_64\",TD!$A$65)","v":0},{"$f":"GETPIVOTDATA(\"Suma de Proc_Bio_Estomago_Ind_65\",TD!$A$65)","v":0}]
[null,null,null,null,null,"Negativo",{"$f":"GETPIVOTDATA(\"Suma de Proc_Bio_Estomago_Norm_ATC\",TD!$A$65)","v":0},0,{"$f":"GETPIVOTDATA(\"Suma de Proc_Bio_Estomago_Norm_18_24\",TD!$A$65)","v":0},{"$f":"GETPIVOTDATA(\"Suma de Proc_Bio_Estomago_Norm_25_29\",TD!$A$65)","v":0},{"$f":"GETPIVOTDATA(\"Suma de Proc_Bio_Estomago_Norm_30_39\",TD!$A$65)","v":0},{"$f":"GETPIVOTDATA(\"Suma de Proc_Bio_Estomago_Norm_40_49\",TD!$A$65)","v":0},{"$f":"GETPIVOTDATA(\"Suma de Proc_Bio_Estomago_Norm_50_59\",TD!$A$65)","v":0},{"$f":"GETPIVOTDATA(\"Suma de Proc_Bio_Estomago_Norm_60_64\",TD!$A$65)","v":0},{"$f":"GETPIVOTDATA(\"Suma de Proc_Bio_Estomago_Norm_65\",TD!$A$65)","v":0}]
[null,null,null,null,null,"Positivo",{"$f":"GETPIVOTDATA(\"Suma de Proc_Bio_Estomago_Anor_ATC\",TD!$A$65)","v":0},0,{"$f":"GETPIVOTDATA(\"Suma de Proc_Bio_Estomago_Anor_18_24\",TD!$A$65)","v":0},{"$f":"GETPIVOTDATA(\"Suma de Proc_Bio_Estomago_Anor_25_29\",TD!$A$65)","v":0},{"$f":"GETPIVOTDATA(\"Suma de Proc_Bio_Estomago_Anor_30_39\",TD!$A$65)","v":0},{"$f":"GETPIVOTDATA(\"Suma de Proc_Bio_Estomago_Anor_40_49\",TD!$A$65)","v":0},{"$f":"GETPIVOTDATA(\"Suma de Proc_Bio_Estomago_Anor_50_59\",TD!$A$65)","v":0},{"$f":"GETPIVOTDATA(\"Suma de Proc_Bio_Estomago_Anor_60_64\",TD!$A$65)","v":0},{"$f":"GETPIVOTDATA(\"Suma de Proc_Bio_Estomago_Anor_65\",TD!$A$65)","v":0}]
[null,"Atendidos con procedimiento de biopsia de piel",null,null,null,"Indicación",{"$f":"GETPIVOTDATA(\"Suma de Proc_Bio_Piel_Ind_ATC\",TD!$A$65)","v":0},0,{"$f":"GETPIVOTDATA(\"Suma de Proc_Bio_Piel_Ind_18_24\",TD!$A$65)","v":0},{"$f":"GETPIVOTDATA(\"Suma de Proc_Bio_Piel_Ind_25_29\",TD!$A$65)","v":0},{"$f":"GETPIVOTDATA(\"Suma de Proc_Bio_Piel_Ind_30_39\",TD!$A$65)","v":0},{"$f":"GETPIVOTDATA(\"Suma de Proc_Bio_Piel_Ind_40_49\",TD!$A$65)","v":0},{"$f":"GETPIVOTDATA(\"Suma de Proc_Bio_Piel_Ind_50_59\",TD!$A$65)","v":0},{"$f":"GETPIVOTDATA(\"Suma de Proc_Bio_Piel_Ind_60_64\",TD!$A$65)","v":0},{"$f":"GETPIVOTDATA(\"Suma de Proc_Bio_Piel_Ind_65\",TD!$A$65)","v":0}]
[null,null,null,null,null,"Negativo",{"$f":"GETPIVOTDATA(\"Suma de Proc_Bio_Piel_Norm_ATC\",TD!$A$65)","v":0},0,{"$f":"GETPIVOTDATA(\"Suma de Proc_Bio_Piel_Norm_18_24\",TD!$A$65)","v":0},{"$f":"GETPIVOTDATA(\"Suma de Proc_Bio_Piel_Norm_25_29\",TD!$A$65)","v":0},{"$f":"GETPIVOTDATA(\"Suma de Proc_Bio_Piel_Norm_30_39\",TD!$A$65)","v":0},{"$f":"GETPIVOTDATA(\"Suma de Proc_Bio_Piel_Norm_40_49\",TD!$A$65)","v":0},{"$f":"GETPIVOTDATA(\"Suma de Proc_Bio_Piel_Norm_50_59\",TD!$A$65)","v":0},{"$f":"GETPIVOTDATA(\"Suma de Proc_Bio_Piel_Norm_60_64\",TD!$A$65)","v":0},{"$f":"GETPIVOTDATA(\"Suma de Proc_Bio_Piel_Norm_65\",TD!$A$65)","v":0}]
[null,null,null,null,null,"Positivo",{"$f":"GETPIVOTDATA(\"Suma de Proc_Bio_Piel_Anor_ATC\",TD!$A$65)","v":0},0,{"$f":"GETPIVOTDATA(\"Suma de Proc_Bio_Piel_Anor_18_24\",TD!$A$65)","v":0},{"$f":"GETPIVOTDATA(\"Suma de Proc_Bio_Piel_Anor_25_29\",TD!$A$65)","v":0},{"$f":"GETPIVOTDATA(\"Suma de Proc_Bio_Piel_Anor_30_39\",TD!$A$65)","v":0},{"$f":"GETPIVOTDATA(\"Suma de Proc_Bio_Piel_Anor_40_49\",TD!$A$65)","v":0},{"$f":"GETPIVOTDATA(\"Suma de Proc_Bio_Piel_Anor_50_59\",TD!$A$65)","v":0},{"$f":"GETPIVOTDATA(\"Suma de Proc_Bio_Piel_Anor_60_64\",TD!$A$65)","v":0},{"$f":"GETPIVOTDATA(\"Suma de Proc_Bio_Piel_Anor_65\",TD!$A$65)","v":0}]
[null,"Atendidos con procedimiento de biopsia pulmonar",null,null,null,"Indicación",{"$f":"GETPIVOTDATA(\"Suma de Proc_Bio_Pulm_Ind_ATC\",TD!$A$65)","v":0},0,{"$f":"GETPIVOTDATA(\"Suma de Proc_Bio_Pulm_Ind_18_24\",TD!$A$65)","v":0},{"$f":"GETPIVOTDATA(\"Suma de Proc_Bio_Pulm_Ind_25_29\",TD!$A$65)","v":0},{"$f":"GETPIVOTDATA(\"Suma de Proc_Bio_Pulm_Ind_30_39\",TD!$A$65)","v":0},{"$f":"GETPIVOTDATA(\"Suma de Proc_Bio_Pulm_Ind_40_49\",TD!$A$65)","v":0},{"$f":"GETPIVOTDATA(\"Suma de Proc_Bio_Pulm_Ind_50_59\",TD!$A$65)","v":0},{"$f":"GETPIVOTDATA(\"Suma de Proc_Bio_Pulm_Ind_60_64\",TD!$A$65)","v":0},{"$f":"GETPIVOTDATA(\"Suma de Proc_Bio_Pulm_Ind_65\",TD!$A$65)","v":0}]
[null,null,null,null,null,"Negativo",{"$f":"GETPIVOTDATA(\"Suma de Proc_Bio_Pulm_Norm_ATC\",TD!$A$65)","v":0},0,{"$f":"GETPIVOTDATA(\"Suma de Proc_Bio_Pulm_Norm_18_24\",TD!$A$65)","v":0},{"$f":"GETPIVOTDATA(\"Suma de Proc_Bio_Pulm_Norm_25_29\",TD!$A$65)","v":0},{"$f":"GETPIVOTDATA(\"Suma de Proc_Bio_Pulm_Norm_30_39\",TD!$A$65)","v":0},{"$f":"GETPIVOTDATA(\"Suma de Proc_Bio_Pulm_Norm_40_49\",TD!$A$65)","v":0},{"$f":"GETPIVOTDATA(\"Suma de Proc_Bio_Pulm_Norm_50_59\",TD!$A$65)","v":0},{"$f":"GETPIVOTDATA(\"Suma de Proc_Bio_Pulm_Norm_60_64\",TD!$A$65)","v":0},{"$f":"GETPIVOTDATA(\"Suma de Proc_Bio_Pulm_Norm_65\",TD!$A$65)","v":0}]
[null,null,null,null,null,"Positivo",{"$f":"GETPIVOTDATA(\"Suma de Proc_Bio_Pulm_Anor_ATC\",TD!$A$65)","v":0},0,{"$f":"GETPIVOTDATA(\"Suma de Proc_Bio_Pulm_Anor_18_24\",TD!$A$65)","v":0},{"$f":"GETPIVOTDATA(\"Suma de Proc_Bio_Pulm_Anor_25_29\",TD!$A$65)","v":0},{"$f":"GETPIVOTDATA(\"Suma de Proc_Bio_Pulm_Anor_30_39\",TD!$A$65)","v":0},{"$f":"GETPIVOTDATA(\"Suma de Proc_Bio_Pulm_Anor_40_49\",TD!$A$65)","v":0},{"$f":"GETPIVOTDATA(\"Suma de Proc_Bio_Pulm_Anor_50_59\",TD!$A$65)","v":0},{"$f":"GETPIVOTDATA(\"Suma de Proc_Bio_Pulm_Anor_60_64\",TD!$A$65)","v":0},{"$f":"GETPIVOTDATA(\"Suma de Proc_Bio_Pulm_Anor_65\",TD!$A$65)","v":0}]
[null,"Atendidos con procedimiento de biopsia de hígado",null,null,null,"Indicación",{"$f":"GETPIVOTDATA(\"Suma de Proc_Bio_Higad_Ind_ATC\",TD!$A$65)","v":0},0,{"$f":"GETPIVOTDATA(\"Suma de Proc_Bio_Higad_Ind_18_24\",TD!$A$65)","v":0},{"$f":"GETPIVOTDATA(\"Suma de Proc_Bio_Higad_Ind_25_29\",TD!$A$65)","v":0},{"$f":"GETPIVOTDATA(\"Suma de Proc_Bio_Higad_Ind_30_39\",TD!$A$65)","v":0},{"$f":"GETPIVOTDATA(\"Suma de Proc_Bio_Higad_Ind_40_49\",TD!$A$65)","v":0},{"$f":"GETPIVOTDATA(\"Suma de Proc_Bio_Higad_Ind_50_59\",TD!$A$65)","v":0},{"$f":"GETPIVOTDATA(\"Suma de Proc_Bio_Higad_Ind_60_64\",TD!$A$65)","v":0},{"$f":"GETPIVOTDATA(\"Suma de Proc_Bio_Higad_Ind_65\",TD!$A$65)","v":0}]
[null,null,null,null,null,"Negativo",{"$f":"GETPIVOTDATA(\"Suma de Proc_Bio_Higad_Norm_ATC\",TD!$A$65)","v":0},0,{"$f":"GETPIVOTDATA(\"Suma de Proc_Bio_Higad_Norm_18_24\",TD!$A$65)","v":0},{"$f":"GETPIVOTDATA(\"Suma de Proc_Bio_Higad_Norm_25_29\",TD!$A$65)","v":0},{"$f":"GETPIVOTDATA(\"Suma de Proc_Bio_Higad_Norm_30_39\",TD!$A$65)","v":0},{"$f":"GETPIVOTDATA(\"Suma de Proc_Bio_Higad_Norm_40_49\",TD!$A$65)","v":0},{"$f":"GETPIVOTDATA(\"Suma de Proc_Bio_Higad_Norm_50_59\",TD!$A$65)","v":0},{"$f":"GETPIVOTDATA(\"Suma de Proc_Bio_Higad_Norm_60_64\",TD!$A$65)","v":0},{"$f":"GETPIVOTDATA(\"Suma de Proc_Bio_Higad_Norm_65\",TD!$A$65)","v":0}]
[null,null,null,null,null,"Positivo",{"$f":"GETPIVOTDATA(\"Suma de Proc_Bio_Higad_Anor_ATC\",TD!$A$65)","v":0},0,{"$f":"GETPIVOTDATA(\"Suma de Proc_Bio_Higad_Anor_18_24\",TD!$A$65)","v":0},{"$f":"GETPIVOTDATA(\"Suma de Proc_Bio_Higad_Anor_25_29\",TD!$A$65)","v":0},{"$f":"GETPIVOTDATA(\"Suma de Proc_Bio_Higad_Anor_30_39\",TD!$A$65)","v":0},{"$f":"GETPIVOTDATA(\"Suma de Proc_Bio_Higad_Anor_40_49\",TD!$A$65)","v":0},{"$f":"GETPIVOTDATA(\"Suma de Proc_Bio_Higad_Anor_50_59\",TD!$A$65)","v":0},{"$f":"GETPIVOTDATA(\"Suma de Proc_Bio_Higad_Anor_60_64\",TD!$A$65)","v":0},{"$f":"GETPIVOTDATA(\"Suma de Proc_Bio_Higad_Anor_65\",TD!$A$65)","v":0}]
[null,"Atendidos con procedimiento de biopsia de ganglios",null,null,null,"Indicación",{"$f":"GETPIVOTDATA(\"Suma de Proc_Bio_Gangli_Ind_ATC\",TD!$A$65)","v":0},0,{"$f":"GETPIVOTDATA(\"Suma de Proc_Bio_Gangli_Ind_18_24\",TD!$A$65)","v":0},{"$f":"GETPIVOTDATA(\"Suma de Proc_Bio_Gangli_Ind_25_29\",TD!$A$65)","v":0},{"$f":"GETPIVOTDATA(\"Suma de Proc_Bio_Gangli_Ind_30_39\",TD!$A$65)","v":0},{"$f":"GETPIVOTDATA(\"Suma de Proc_Bio_Gangli_Ind_40_49\",TD!$A$65)","v":0},{"$f":"GETPIVOTDATA(\"Suma de Proc_Bio_Gangli_Ind_50_59\",TD!$A$65)","v":0},{"$f":"GETPIVOTDATA(\"Suma de Proc_Bio_Gangli_Ind_60_64\",TD!$A$65)","v":0},{"$f":"GETPIVOTDATA(\"Suma de Proc_Bio_Gangli_Ind_65\",TD!$A$65)","v":0}]
[null,null,null,null,null,"Negativo",{"$f":"GETPIVOTDATA(\"Suma de Proc_Bio_Gangli_Norm_ATC\",TD!$A$65)","v":0},0,{"$f":"GETPIVOTDATA(\"Suma de Proc_Bio_Gangli_Norm_18_24\",TD!$A$65)","v":0},{"$f":"GETPIVOTDATA(\"Suma de Proc_Bio_Gangli_Norm_25_29\",TD!$A$65)","v":0},{"$f":"GETPIVOTDATA(\"Suma de Proc_Bio_Gangli_Norm_30_39\",TD!$A$65)","v":0},{"$f":"GETPIVOTDATA(\"Suma de Proc_Bio_Gangli_Norm_40_49\",TD!$A$65)","v":0},{"$f":"GETPIVOTDATA(\"Suma de Proc_Bio_Gangli_Norm_50_59\",TD!$A$65)","v":0},{"$f":"GETPIVOTDATA(\"Suma de Proc_Bio_Gangli_Norm_60_64\",TD!$A$65)","v":0},{"$f":"GETPIVOTDATA(\"Suma de Proc_Bio_Gangli_Norm_65\",TD!$A$65)","v":0}]
[null,null,null,null,null,"Positivo",{"$f":"GETPIVOTDATA(\"Suma de Proc_Bio_Gangli_Anor_ATC\",TD!$A$65)","v":0},0,{"$f":"GETPIVOTDATA(\"Suma de Proc_Bio_Gangli_Anor_18_24\",TD!$A$65)","v":0},{"$f":"GETPIVOTDATA(\"Suma de Proc_Bio_Gangli_Anor_25_29\",TD!$A$65)","v":0},{"$f":"GETPIVOTDATA(\"Suma de Proc_Bio_Gangli_Anor_30_39\",TD!$A$65)","v":0},{"$f":"GETPIVOTDATA(\"Suma de Proc_Bio_Gangli_Anor_40_49\",TD!$A$65)","v":0},{"$f":"GETPIVOTDATA(\"Suma de Proc_Bio_Gangli_Anor_50_59\",TD!$A$65)","v":0},{"$f":"GETPIVOTDATA(\"Suma de Proc_Bio_Gangli_Anor_60_64\",TD!$A$65)","v":0},{"$f":"GETPIVOTDATA(\"Suma de Proc_Bio_Gangli_Anor_65\",TD!$A$65)","v":0}]
[null,"Atendidos con procedimiento de Aspirado de Médula ósea",null,null,null,"Indicación",{"$f":"GETPIVOTDATA(\"Suma de Aspir_Medul_Osea_Ind_ATC\",TD!$A$65)","v":0},0,{"$f":"GETPIVOTDATA(\"Suma de Aspir_Medul_Osea_Ind_18_24\",TD!$A$65)","v":0},{"$f":"GETPIVOTDATA(\"Suma de Aspir_Medul_Osea_Ind_25_29\",TD!$A$65)","v":0},{"$f":"GETPIVOTDATA(\"Suma de Aspir_Medul_Osea_Ind_30_39\",TD!$A$65)","v":0},{"$f":"GETPIVOTDATA(\"Suma de Aspir_Medul_Osea_Ind_40_49\",TD!$A$65)","v":0},{"$f":"GETPIVOTDATA(\"Suma de Aspir_Medul_Osea_Ind_50_59\",TD!$A$65)","v":0},{"$f":"GETPIVOTDATA(\"Suma de Aspir_Medul_Osea_Ind_60_64\",TD!$A$65)","v":0},{"$f":"GETPIVOTDATA(\"Suma de Aspir_Medul_Osea_Ind_65\",TD!$A$65)","v":0}]
[null,null,null,null,null,"Negativo",{"$f":"GETPIVOTDATA(\"Suma de Aspir_Medul_Osea_Norm_ATC\",TD!$A$65)","v":0},0,{"$f":"GETPIVOTDATA(\"Suma de Aspir_Medul_Osea_Norm_18_24\",TD!$A$65)","v":0},{"$f":"GETPIVOTDATA(\"Suma de Aspir_Medul_Osea_Norm_25_29\",TD!$A$65)","v":0},{"$f":"GETPIVOTDATA(\"Suma de Aspir_Medul_Osea_Norm_30_39\",TD!$A$65)","v":0},{"$f":"GETPIVOTDATA(\"Suma de Aspir_Medul_Osea_Norm_40_49\",TD!$A$65)","v":0},{"$f":"GETPIVOTDATA(\"Suma de Aspir_Medul_Osea_Norm_50_59\",TD!$A$65)","v":0},{"$f":"GETPIVOTDATA(\"Suma de Aspir_Medul_Osea_Norm_60_64\",TD!$A$65)","v":0},{"$f":"GETPIVOTDATA(\"Suma de Aspir_Medul_Osea_Norm_65\",TD!$A$65)","v":0}]
[null,null,null,null,null,"Positivo",{"$f":"GETPIVOTDATA(\"Suma de Aspir_Medul_Osea_Anor_ATC\",TD!$A$65)","v":0},0,{"$f":"GETPIVOTDATA(\"Suma de Aspir_Medul_Osea_Anor_18_24\",TD!$A$65)","v":0},{"$f":"GETPIVOTDATA(\"Suma de Aspir_Medul_Osea_Anor_25_29\",TD!$A$65)","v":0},{"$f":"GETPIVOTDATA(\"Suma de Aspir_Medul_Osea_Anor_30_39\",TD!$A$65)","v":0},{"$f":"GETPIVOTDATA(\"Suma de Aspir_Medul_Osea_Anor_40_49\",TD!$A$65)","v":0},{"$f":"GETPIVOTDATA(\"Suma de Aspir_Medul_Osea_Anor_50_59\",TD!$A$65)","v":0},{"$f":"GETPIVOTDATA(\"Suma de Aspir_Medul_Osea_Anor_60_64\",TD!$A$65)","v":0},{"$f":"GETPIVOTDATA(\"Suma de Aspir_Medul_Osea_Anor_65\",TD!$A$65)","v":0}]
[null,"Atendidos con procedimiento de biopsia de médula ósea",null,null,null,"Indicación",{"$f":"GETPIVOTDATA(\"Suma de Biop_Medul_Osea_Ind_ATC\",TD!$A$65)","v":0},0,{"$f":"GETPIVOTDATA(\"Suma de Biop_Medul_Osea_Ind_18_24\",TD!$A$65)","v":0},{"$f":"GETPIVOTDATA(\"Suma de Biop_Medul_Osea_Ind_25_29\",TD!$A$65)","v":0},{"$f":"GETPIVOTDATA(\"Suma de Biop_Medul_Osea_Ind_30_39\",TD!$A$65)","v":0},{"$f":"GETPIVOTDATA(\"Suma de Biop_Medul_Osea_Ind_40_49\",TD!$A$65)","v":0},{"$f":"GETPIVOTDATA(\"Suma de Biop_Medul_Osea_Ind_50_59\",TD!$A$65)","v":0},{"$f":"GETPIVOTDATA(\"Suma de Biop_Medul_Osea_Ind_60_64\",TD!$A$65)","v":0},{"$f":"GETPIVOTDATA(\"Suma de Biop_Medul_Osea_Ind_65\",TD!$A$65)","v":0}]
[null,null,null,null,null,"Negativo",{"$f":"GETPIVOTDATA(\"Suma de Biop_Medul_Osea_Norm_ATC\",TD!$A$65)","v":0},0,{"$f":"GETPIVOTDATA(\"Suma de Biop_Medul_Osea_Norm_18_24\",TD!$A$65)","v":0},{"$f":"GETPIVOTDATA(\"Suma de Biop_Medul_Osea_Norm_25_29\",TD!$A$65)","v":0},{"$f":"GETPIVOTDATA(\"Suma de Biop_Medul_Osea_Norm_30_39\",TD!$A$65)","v":0},{"$f":"GETPIVOTDATA(\"Suma de Biop_Medul_Osea_Norm_40_49\",TD!$A$65)","v":0},{"$f":"GETPIVOTDATA(\"Suma de Biop_Medul_Osea_Norm_50_59\",TD!$A$65)","v":0},{"$f":"GETPIVOTDATA(\"Suma de Biop_Medul_Osea_Norm_60_64\",TD!$A$65)","v":0},{"$f":"GETPIVOTDATA(\"Suma de Biop_Medul_Osea_Norm_65\",TD!$A$65)","v":0}]
[null,null,null,null,null,"Positivo",{"$f":"GETPIVOTDATA(\"Suma de Biop_Medul_Osea_Anor_ATC\",TD!$A$65)","v":0},0,{"$f":"GETPIVOTDATA(\"Suma de Biop_Medul_Osea_Anor_18_24\",TD!$A$65)","v":0},{"$f":"GETPIVOTDATA(\"Suma de Biop_Medul_Osea_Anor_25_29\",TD!$A$65)","v":0},{"$f":"GETPIVOTDATA(\"Suma de Biop_Medul_Osea_Anor_30_39\",TD!$A$65)","v":0},{"$f":"GETPIVOTDATA(\"Suma de Biop_Medul_Osea_Anor_40_49\",TD!$A$65)","v":0},{"$f":"GETPIVOTDATA(\"Suma de Biop_Medul_Osea_Anor_50_59\",TD!$A$65)","v":0},{"$f":"GETPIVOTDATA(\"Suma de Biop_Medul_Osea_Anor_60_64\",TD!$A$65)","v":0},{"$f":"GETPIVOTDATA(\"Suma de Biop_Medul_Osea_Anor_65\",TD!$A$65)","v":0}]
[]
[null,"PERSONA ATENDIDA CON LESIONES PRE MALIGNAS DE CANCER DE CUELLO UTERINO"]
[null,"ACTIVIDAD",null,null,null,"RESULTADO","Total de Tamizajes","Total de Personas Tamizadas","25-29a","30-39a","40-49a","50-59a","60-64a"]
[null,"Mujer Examinada con Triaje Visual para el Tratamiento",null,null,null,"Normal",{"$f":"GETPIVOTDATA(\"Suma de Triaj_Visu_Tratam_Nega_ATC\",TD!$A$92)","v":9},{"$f":"SUM(I98:M98)","v":9},{"$f":"GETPIVOTDATA(\"Suma de Triaj_Visu_Tratam_Nega_25_29\",TD!$A$92)","v":0},{"$f":"GETPIVOTDATA(\"Suma de Triaj_Visu_Tratam_Nega_30_39\",TD!$A$92)","v":8},{"$f":"GETPIVOTDATA(\"Suma de Triaj_Visu_Tratam_Nega_40_49\",TD!$A$92)","v":1},{"$f":"GETPIVOTDATA(\"Suma de Triaj_Visu_Tratam_Nega_50_59\",TD!$A$92)","v":0},{"$f":"GETPIVOTDATA(\"Suma de Triaj_Visu_Tratam_Nega_60_64\",TD!$A$92)","v":0},"Colposcopia Normal"]
[null,null,null,null,null,"Anormal",{"$f":"GETPIVOTDATA(\"Suma de Triaj_Visu_Tratam_Posi_ATC\",TD!$A$92)","v":48},{"$f":"SUM(I99:M99)","v":48},{"$f":"GETPIVOTDATA(\"Suma de Triaj_Visu_Tratam_Posi_25_29\",TD!$A$92)","v":0},{"$f":"GETPIVOTDATA(\"Suma de Triaj_Visu_Tratam_Posi_30_39\",TD!$A$92)","v":26},{"$f":"GETPIVOTDATA(\"Suma de Triaj_Visu_Tratam_Posi_40_49\",TD!$A$92)","v":21},{"$f":"GETPIVOTDATA(\"Suma de Triaj_Visu_Tratam_Posi_50_59\",TD!$A$92)","v":1},{"$f":"GETPIVOTDATA(\"Suma de Triaj_Visu_Tratam_Posi_60_64\",TD!$A$92)","v":0},"Colposcopia ANormal"]
[null,"Mujer examinada con colposcopia",null,null,null,"Colposcopia Sin ICA",{"$f":"GETPIVOTDATA(\"Suma de Colpos_sin_ICA_ATC\",TD!$A$92)","v":1},{"$f":"SUM(I100:M100)","v":1},{"$f":"GETPIVOTDATA(\"Suma de Colpos_sin_ICA_25_29\",TD!$A$92)","v":1},{"$f":"GETPIVOTDATA(\"Suma de Colpos_sin_ICA_30_39\",TD!$A$92)","v":0},{"$f":"GETPIVOTDATA(\"Suma de Colpos_sin_ICA_40_49\",TD!$A$92)","v":0},{"$f":"GETPIVOTDATA(\"Suma de Colpos_sin_ICA_50_59\",TD!$A$92)","v":0},{"$f":"GETPIVOTDATA(\"Suma de Colpos_sin_ICA_60_64\",TD!$A$92)","v":0},"Ablasion"]
[null,null,null,null,null,"Colposcopia Con ICA",{"$f":"GETPIVOTDATA(\"Suma de Colpos_con_ICA_ATC\",TD!$A$92)","v":14},14,{"$f":"GETPIVOTDATA(\"Suma de Colpos_con_ICA_25_29\",TD!$A$92)","v":1},{"$f":"GETPIVOTDATA(\"Suma de Colpos_con_ICA_30_39\",TD!$A$92)","v":7},{"$f":"GETPIVOTDATA(\"Suma de Colpos_con_ICA_40_49\",TD!$A$92)","v":5},{"$f":"GETPIVOTDATA(\"Suma de Colpos_con_ICA_50_59\",TD!$A$92)","v":0},{"$f":"GETPIVOTDATA(\"Suma de Colpos_con_ICA_60_64\",TD!$A$92)","v":1},"escisional"]
[null,null,null,null,null,"Toma de Biopsia Endocervical",null,0]
[null,null,null,null,null,"Toma de Biopsia Exocervical",null,0]
[null,"Atención de pacientes con lesiones premalignas de cuello uterino con ablación",null,null,null,"Termocoagulación ",{"$f":"GETPIVOTDATA(\"Suma de Termocoagulacion_ATC\",TD!$A$92)","v":25},25,{"$f":"GETPIVOTDATA(\"Suma de Termocoagulacion_25_29\",TD!$A$92)","v":0},{"$f":"GETPIVOTDATA(\"Suma de Termocoagulacion_30_39\",TD!$A$92)","v":12},{"$f":"GETPIVOTDATA(\"Suma de Termocoagulacion_40_49\",TD!$A$92)","v":13},{"$f":"GETPIVOTDATA(\"Suma de Termocoagulacion_50_59\",TD!$A$92)","v":0},{"$f":"GETPIVOTDATA(\"Suma de Termocoagulacion_60_64\",TD!$A$92)","v":0}]
[null,null,null,null,null,"Crioterapia",{"$f":"GETPIVOTDATA(\"Suma de Crioterapia_ATC\",TD!$A$92)","v":0},0,{"$f":"GETPIVOTDATA(\"Suma de Crioterapia_25_29\",TD!$A$92)","v":0},{"$f":"GETPIVOTDATA(\"Suma de Crioterapia_30_39\",TD!$A$92)","v":0},{"$f":"GETPIVOTDATA(\"Suma de Crioterapia_40_49\",TD!$A$92)","v":0},{"$f":"GETPIVOTDATA(\"Suma de Crioterapia_50_59\",TD!$A$92)","v":0},{"$f":"GETPIVOTDATA(\"Suma de Crioterapia_60_64\",TD!$A$92)","v":0}]
[null,"Atención de pacientes con lesiones premalignas de cuello uterino con tratamiento escisional",null,null,null,"Cono Leep",{"$f":"GETPIVOTDATA(\"Suma de Trata_escisi_cono_leep_ATC\",TD!$A$92)","v":2},2,{"$f":"GETPIVOTDATA(\"Suma de Trata_escisi_cono_leep_25_29\",TD!$A$92)","v":1},{"$f":"GETPIVOTDATA(\"Suma de Trata_escisi_cono_leep_30_39\",TD!$A$92)","v":1},{"$f":"GETPIVOTDATA(\"Suma de Trata_escisi_cono_leep_40_49\",TD!$A$92)","v":0},{"$f":"GETPIVOTDATA(\"Suma de Trata_escisi_cono_leep_50_59\",TD!$A$92)","v":0},{"$f":"GETPIVOTDATA(\"Suma de Trata_escisi_cono_leep_60_64\",TD!$A$92)","v":0}]
[null,null,null,null,null,"Cono Frio",{"$f":"GETPIVOTDATA(\"Suma de Trata_escisi_cono_frio_ATC\",TD!$A$92)","v":0},0,{"$f":"GETPIVOTDATA(\"Suma de Trata_escisi_cono_frio_25_29\",TD!$A$92)","v":0},{"$f":"GETPIVOTDATA(\"Suma de Trata_escisi_cono_frio_30_39\",TD!$A$92)","v":0},{"$f":"GETPIVOTDATA(\"Suma de Trata_escisi_cono_frio_40_49\",TD!$A$92)","v":0},{"$f":"GETPIVOTDATA(\"Suma de Trata_escisi_cono_frio_50_59\",TD!$A$92)","v":0},{"$f":"GETPIVOTDATA(\"Suma de Trata_escisi_cono_frio_60_64\",TD!$A$92)","v":0}]
[]
[]
[null,null,null,null,null,"ATENCION DE CANCER"]
[null,null,null,null,null,"TIPO DE CANCER","TOTAL ATENCIONES","TOTAL ATENDIDOS","ESTADIO"]
[null,null,null,null,null,null,null,null,1,2,3,4]
[null,null,null,null,null,"Cáncer de cuello uterino",{"$f":"GETPIVOTDATA(\"Suma de atendido_ATC_cacu\",TD!$A$92)","v":13},{"$f":"GETPIVOTDATA(\"Suma de atendido_ATD_cacu\",TD!$A$92)","v":13},{"$f":"GETPIVOTDATA(\"Suma de atendido_1ra_cacu\",TD!$A$92)","v":0},{"$f":"GETPIVOTDATA(\"Suma de atendido_2da_cacu\",TD!$A$92)","v":0},{"$f":"GETPIVOTDATA(\"Suma de atendido_3ra_cacu\",TD!$A$92)","v":0},{"$f":"GETPIVOTDATA(\"Suma de atendido_4ta_cacu\",TD!$A$92)","v":0},null,"CA CU "]
[null,null,null,null,null,"Cáncer de mama",{"$f":"GETPIVOTDATA(\"Suma de atendido_ATC_mama\",TD!$A$92)","v":20},{"$f":"GETPIVOTDATA(\"Suma de atendido_ATD_mama\",TD!$A$92)","v":20},{"$f":"GETPIVOTDATA(\"Suma de atendido_1ra_mama\",TD!$A$92)","v":0},{"$f":"GETPIVOTDATA(\"Suma de atendido_2da_mama\",TD!$A$92)","v":0},{"$f":"GETPIVOTDATA(\"Suma de atendido_3ra_mama\",TD!$A$92)","v":0},{"$f":"GETPIVOTDATA(\"Suma de atendido_4ta_mama\",TD!$A$92)","v":0},null,"CA MAMA"]
[null,null,null,null,null,"Cáncer de estómago",{"$f":"GETPIVOTDATA(\"Suma de atendido_ATC_estomago\",TD!$A$92)","v":1},{"$f":"GETPIVOTDATA(\"Suma de atendido_ATD_estomago\",TD!$A$92)","v":1},{"$f":"GETPIVOTDATA(\"Suma de atendido_1ra_estomago\",TD!$A$92)","v":0},{"$f":"GETPIVOTDATA(\"Suma de atendido_2da_estomago\",TD!$A$92)","v":0},{"$f":"GETPIVOTDATA(\"Suma de atendido_3ra_estomago\",TD!$A$92)","v":0},{"$f":"GETPIVOTDATA(\"Suma de atendido_4ta_estomago\",TD!$A$92)","v":0},null,"CA ESTOMAGO"]
[null,null,null,null,null,"Cáncer de próstata",{"$f":"GETPIVOTDATA(\"Suma de atendido_ATC_prostata\",TD!$A$92)","v":10},{"$f":"GETPIVOTDATA(\"Suma de atendido_ATD_prostata\",TD!$A$92)","v":9},{"$f":"GETPIVOTDATA(\"Suma de atendido_1ra_prostata\",TD!$A$92)","v":0},{"$f":"GETPIVOTDATA(\"Suma de atendido_2da_prostata\",TD!$A$92)","v":0},{"$f":"GETPIVOTDATA(\"Suma de atendido_3ra_prostata\",TD!$A$92)","v":0},{"$f":"GETPIVOTDATA(\"Suma de atendido_4ta_prostata\",TD!$A$92)","v":0},null,"CA PROSTATA"]
[null,null,null,null,null,"Cáncer de pulmón",{"$f":"GETPIVOTDATA(\"Suma de atendido_ATC_pulmon\",TD!$A$92)","v":3},{"$f":"GETPIVOTDATA(\"Suma de atendido_ATD_pulmon\",TD!$A$92)","v":3},{"$f":"GETPIVOTDATA(\"Suma de atendido_1ra_pulmon\",TD!$A$92)","v":0},{"$f":"GETPIVOTDATA(\"Suma de atendido_2da_pulmon\",TD!$A$92)","v":0},{"$f":"GETPIVOTDATA(\"Suma de atendido_3ra_pulmon\",TD!$A$92)","v":0},{"$f":"GETPIVOTDATA(\"Suma de atendido_4ta_pulmon\",TD!$A$92)","v":0},null,"CA PLUMON"]
[null,null,null,null,null,"Cáncer de colon y recto",{"$f":"GETPIVOTDATA(\"Suma de atendido_ATC_colon_recto\",TD!$A$92)","v":6},{"$f":"GETPIVOTDATA(\"Suma de atendido_ATD_colon_recto\",TD!$A$92)","v":6},{"$f":"GETPIVOTDATA(\"Suma de atendido_1ra_colon_recto\",TD!$A$92)","v":0},{"$f":"GETPIVOTDATA(\"Suma de atendido_2da_colon_recto\",TD!$A$92)","v":0},{"$f":"GETPIVOTDATA(\"Suma de atendido_3ra_colon_recto\",TD!$A$92)","v":0},{"$f":"GETPIVOTDATA(\"Suma de atendido_4ta_colon_recto\",TD!$A$92)","v":0},null,"CA C/R"]
[null,null,null,null,null,"Cáncer de hígado",{"$f":"GETPIVOTDATA(\"Suma de atendido_ATC_higado\",TD!$A$92)","v":5},{"$f":"GETPIVOTDATA(\"Suma de atendido_ATD_higado\",TD!$A$92)","v":5},{"$f":"GETPIVOTDATA(\"Suma de atendido_1ra_higado\",TD!$A$92)","v":0},{"$f":"GETPIVOTDATA(\"Suma de atendido_2da_higado\",TD!$A$92)","v":0},{"$f":"GETPIVOTDATA(\"Suma de atendido_3ra_higado\",TD!$A$92)","v":0},{"$f":"GETPIVOTDATA(\"Suma de atendido_4ta_higado\",TD!$A$92)","v":0},null,"CA HIGADO"]
[null,null,null,null,null,"Leucemia",{"$f":"GETPIVOTDATA(\"Suma de atendido_ATC_leucemia\",TD!$A$92)","v":1},{"$f":"GETPIVOTDATA(\"Suma de atendido_ATD_leucemia\",TD!$A$92)","v":1},{"$f":"GETPIVOTDATA(\"Suma de atendido_1ra_leucemia\",TD!$A$92)","v":0},{"$f":"GETPIVOTDATA(\"Suma de atendido_2da_leucemia\",TD!$A$92)","v":0},{"$f":"GETPIVOTDATA(\"Suma de atendido_3ra_leucemia\",TD!$A$92)","v":0},{"$f":"GETPIVOTDATA(\"Suma de atendido_4ta_leucemia\",TD!$A$92)","v":0},null,"LEUCEMIA"]
[null,null,null,null,null,"Linfoma",{"$f":"GETPIVOTDATA(\"Suma de atendido_ATC_linforma\",TD!$A$92)","v":7},{"$f":"GETPIVOTDATA(\"Suma de atendido_ATD_linforma\",TD!$A$92)","v":7},{"$f":"GETPIVOTDATA(\"Suma de atendido_1ra_linforma\",TD!$A$92)","v":0},{"$f":"GETPIVOTDATA(\"Suma de atendido_2da_linforma\",TD!$A$92)","v":0},{"$f":"GETPIVOTDATA(\"Suma de atendido_3ra_linforma\",TD!$A$92)","v":0},{"$f":"GETPIVOTDATA(\"Suma de atendido_4ta_linforma\",TD!$A$92)","v":0},null,"LINFOMA"]
[null,null,null,null,null,"Cáncer de piel",{"$f":"GETPIVOTDATA(\"Suma de atendido_ATC_piel\",TD!$A$92)","v":15},{"$f":"GETPIVOTDATA(\"Suma de atendido_ATD_piel\",TD!$A$92)","v":15},{"$f":"GETPIVOTDATA(\"Suma de atendido_1ra_piel\",TD!$A$92)","v":0},{"$f":"GETPIVOTDATA(\"Suma de atendido_2da_piel\",TD!$A$92)","v":0},{"$f":"GETPIVOTDATA(\"Suma de atendido_3ra_piel\",TD!$A$92)","v":0},{"$f":"GETPIVOTDATA(\"Suma de atendido_4ta_piel\",TD!$A$92)","v":0},null,"CA PIEL"]
[]
[null,"TRATAMIENTO DE CANCER",null,null,null,null,"Total de Tratamientos","Total Personas con Tratamiento"]
[]
[null,"Persona con tratamiento de Cáncer de cuello uterino",null,null,null,"Supervision de Quimioterapia",{"$f":"GETPIVOTDATA(\"Suma de Trata_Supervi_Quimio_CACU_ATC\",TD!$A$92)","v":0},{"$f":"GETPIVOTDATA(\"Suma de Trata_Supervi_Quimio_CACU_ATD\",TD!$A$92)","v":0}]
[null,null,null,null,null,"Pacientes que Inician Quimioterapia",{"$f":"GETPIVOTDATA(\"Suma de Trata_Inici_Quimio_CACU_ATC\",TD!$A$92)","v":0},{"$f":"GETPIVOTDATA(\"Suma de Trata_Inici_Quimio_CACU_ATD\",TD!$A$92)","v":0}]
[null,null,null,null,null,"Sesiones de Quimioterapias por Patologia",{"$f":"GETPIVOTDATA(\"Suma de Trata_Sesio_Quimio_Patol_CACU_ATC\",TD!$A$92)","v":0},{"$f":"GETPIVOTDATA(\"Suma de Trata_Sesio_Quimio_Patol_CACU_ATD\",TD!$A$92)","v":0}]
[null,null,null,null,null,"Sesiones de Tratamiento con Radioterapia y Braquiterapia",{"$f":"GETPIVOTDATA(\"Suma de Trata_Sesio_Radio_Braquite_CACU_ATC\",TD!$A$92)","v":0},{"$f":"GETPIVOTDATA(\"Suma de Trata_Sesio_Radio_Braquite_CACU_ATD\",TD!$A$92)","v":0}]
[null,"Persona con tratamiento de Cáncer de mama",null,null,null,"Supervision de Quimioterapia",{"$f":"GETPIVOTDATA(\"Suma de Trata_Supervi_Quimio_MAMA_ATC\",TD!$A$92)","v":0},{"$f":"GETPIVOTDATA(\"Suma de Trata_Supervi_Quimio_MAMA_ATD\",TD!$A$92)","v":0}]
[null,null,null,null,null,"Pacientes que Inician Quimioterapia",{"$f":"GETPIVOTDATA(\"Suma de Trata_Inici_Quimio_MAMA_ATC\",TD!$A$92)","v":0},{"$f":"GETPIVOTDATA(\"Suma de Trata_Inici_Quimio_MAMA_ATD\",TD!$A$92)","v":0}]
[null,null,null,null,null,"Sesiones de Quimioterapias por Patologia",{"$f":"GETPIVOTDATA(\"Suma de Trata_Sesio_Quimio_Patol_MAMA_ATC\",TD!$A$92)","v":0},{"$f":"GETPIVOTDATA(\"Suma de Trata_Sesio_Quimio_Patol_MAMA_ATD\",TD!$A$92)","v":0}]
[null,null,null,null,null,"Sesiones de Tratamiento con Radioterapia y Braquiterapia",{"$f":"GETPIVOTDATA(\"Suma de Trata_Sesio_Radio_Braquite_MAMA_ATC\",TD!$A$92)","v":0},{"$f":"GETPIVOTDATA(\"Suma de Trata_Sesio_Radio_Braquite_MAMA_ATD\",TD!$A$92)","v":0}]
[null,"Persona con tratamiento de Cáncer de estómago",null,null,null,"Supervision de Quimioterapia",{"$f":"GETPIVOTDATA(\"Suma de Trata_Supervi_Quimio_Estoma_ATC\",TD!$A$92)","v":0},{"$f":"GETPIVOTDATA(\"Suma de Trata_Supervi_Quimio_Estoma_ATD\",TD!$A$92)","v":0}]
[null,null,null,null,null,"Pacientes que Inician Quimioterapia",{"$f":"GETPIVOTDATA(\"Suma de Trata_Inici_Quimio_Estoma_ATC\",TD!$A$92)","v":0},{"$f":"GETPIVOTDATA(\"Suma de Trata_Inici_Quimio_Estoma_ATD\",TD!$A$92)","v":0}]
[null,null,null,null,null,"Sesiones de Quimioterapias por Patologia",{"$f":"GETPIVOTDATA(\"Suma de Trata_Sesio_Quimio_Patol_Estoma_ATC\",TD!$A$92)","v":0},{"$f":"GETPIVOTDATA(\"Suma de Trata_Sesio_Quimio_Patol_Estoma_ATD\",TD!$A$92)","v":0}]
[null,null,null,null,null,"Sesiones de Tratamiento con Radioterapia y Braquiterapia",{"$f":"GETPIVOTDATA(\"Suma de Trata_Sesio_Radio_Braquite_Estoma_ATC\",TD!$A$92)","v":0},{"$f":"GETPIVOTDATA(\"Suma de Trata_Sesio_Radio_Braquite_Estoma_ATD\",TD!$A$92)","v":0}]
[null,"Persona con tratamiento de Cáncer de próstata",null,null,null,"Supervision de Quimioterapia",{"$f":"GETPIVOTDATA(\"Suma de Trata_Supervi_Quimio_Prostata_ATC\",TD!$A$92)","v":0},{"$f":"GETPIVOTDATA(\"Suma de Trata_Supervi_Quimio_Prostata_ATD\",TD!$A$92)","v":0}]
[null,null,null,null,null,"Pacientes que Inician Quimioterapia",{"$f":"GETPIVOTDATA(\"Suma de Trata_Inici_Quimio_Prostata_ATC\",TD!$A$92)","v":0},{"$f":"GETPIVOTDATA(\"Suma de Trata_Inici_Quimio_Prostata_ATD\",TD!$A$92)","v":0}]
[null,null,null,null,null,"Sesiones de Quimioterapias por Patologia",{"$f":"GETPIVOTDATA(\"Suma de Trata_Sesio_Quimio_Patol_Prostata_ATC\",TD!$A$92)","v":0},{"$f":"GETPIVOTDATA(\"Suma de Trata_Sesio_Quimio_Patol_Prostata_ATD\",TD!$A$92)","v":0}]
[null,null,null,null,null,"Sesiones de Tratamiento con Radioterapia y Braquiterapia",{"$f":"GETPIVOTDATA(\"Suma de Trata_Sesio_Radio_Braquite_Prostata_ATC\",TD!$A$92)","v":0},{"$f":"GETPIVOTDATA(\"Suma de Trata_Sesio_Radio_Braquite_Prostata_ATD\",TD!$A$92)","v":0}]
[null,"Persona con tratamiento de Cáncer de pulmón",null,null,null,"Supervision de Quimioterapia",{"$f":"GETPIVOTDATA(\"Suma de Trata_Supervi_Quimio_Pulmon_ATC\",TD!$A$92)","v":0},{"$f":"GETPIVOTDATA(\"Suma de Trata_Supervi_Quimio_Pulmon_ATD\",TD!$A$92)","v":0}]
[null,null,null,null,null,"Pacientes que Inician Quimioterapia",{"$f":"GETPIVOTDATA(\"Suma de Trata_Inici_Quimio_Pulmon_ATC\",TD!$A$92)","v":0},{"$f":"GETPIVOTDATA(\"Suma de Trata_Inici_Quimio_Pulmon_ATD\",TD!$A$92)","v":0}]
[null,null,null,null,null,"Sesiones de Quimioterapias por Patologia",{"$f":"GETPIVOTDATA(\"Suma de Trata_Sesio_Quimio_Patol_Pulmon_ATC\",TD!$A$92)","v":0},{"$f":"GETPIVOTDATA(\"Suma de Trata_Sesio_Quimio_Patol_Pulmon_ATD\",TD!$A$92)","v":0}]
[null,null,null,null,null,"Sesiones de Tratamiento con Radioterapia y Braquiterapia",{"$f":"GETPIVOTDATA(\"Suma de Trata_Sesio_Radio_Braquite_Pulmon_ATC\",TD!$A$92)","v":0},{"$f":"GETPIVOTDATA(\"Suma de Trata_Sesio_Radio_Braquite_Pulmon_ATD\",TD!$A$92)","v":0}]
[null,"Persona con tratamiento de Cáncer de colon y recto",null,null,null,"Supervision de Quimioterapia",{"$f":"GETPIVOTDATA(\"Suma de Trata_Supervi_Quimio_Colon_Recto_ATC\",TD!$A$92)","v":0},{"$f":"GETPIVOTDATA(\"Suma de Trata_Supervi_Quimio_Colon_Recto_ATD\",TD!$A$92)","v":0}]
[null,null,null,null,null,"Pacientes que Inician Quimioterapia",{"$f":"GETPIVOTDATA(\"Suma de Trata_Inici_Quimio_Colon_Recto_ATC\",TD!$A$92)","v":0},{"$f":"GETPIVOTDATA(\"Suma de Trata_Inici_Quimio_Colon_Recto_ATD\",TD!$A$92)","v":0}]
[null,null,null,null,null,"Sesiones de Quimioterapias por Patologia",{"$f":"GETPIVOTDATA(\"Suma de Trata_Sesio_Quimio_Patol_Colon_Recto_ATC\",TD!$A$92)","v":0},{"$f":"GETPIVOTDATA(\"Suma de Trata_Sesio_Quimio_Patol_Colon_Recto_ATD\",TD!$A$92)","v":0}]
[null,null,null,null,null,"Sesiones de Tratamiento con Radioterapia y Braquiterapia",{"$f":"GETPIVOTDATA(\"Suma de Trata_Sesio_Radio_Braquite_Colon_Recto_ATC\",TD!$A$92)","v":0},{"$f":"GETPIVOTDATA(\"Suma de Trata_Sesio_Radio_Braquite_Colon_Recto_ATD\",TD!$A$92)","v":0}]
[null,"Persona con tratamiento de Cáncer de hígado",null,null,null,"Supervision de Quimioterapia",{"$f":"GETPIVOTDATA(\"Suma de Trata_Supervi_Quimio_Higado_ATC\",TD!$A$92)","v":0},{"$f":"GETPIVOTDATA(\"Suma de Trata_Supervi_Quimio_Higado_ATD\",TD!$A$92)","v":0}]
[null,null,null,null,null,"Pacientes que Inician Quimioterapia",{"$f":"GETPIVOTDATA(\"Suma de Trata_Inici_Quimio_Higado_ATC\",TD!$A$92)","v":0},{"$f":"GETPIVOTDATA(\"Suma de Trata_Inici_Quimio_Higado_ATD\",TD!$A$92)","v":0}]
[null,null,null,null,null,"Sesiones de Quimioterapias por Patologia",{"$f":"GETPIVOTDATA(\"Suma de Trata_Sesio_Quimio_Patol_Higado_ATC\",TD!$A$92)","v":0},{"$f":"GETPIVOTDATA(\"Suma de Trata_Sesio_Quimio_Patol_Higado_ATD\",TD!$A$92)","v":0}]
[null,null,null,null,null,"Sesiones de Tratamiento con Radioterapia y Braquiterapia",{"$f":"GETPIVOTDATA(\"Suma de Trata_Sesio_Radio_Braquite_Higado_ATC\",TD!$A$92)","v":0},{"$f":"GETPIVOTDATA(\"Suma de Trata_Sesio_Radio_Braquite_Higado_ATD\",TD!$A$92)","v":0}]
[null,"Persona con tratamiento de Leucemia",null,null,null,"Supervision de Quimioterapia",{"$f":"GETPIVOTDATA(\"Suma de Trata_Supervi_Quimio_Leucemia_ATC\",TD!$A$92)","v":0},{"$f":"GETPIVOTDATA(\"Suma de Trata_Supervi_Quimio_Leucemia_ATD\",TD!$A$92)","v":0}]
[null,null,null,null,null,"Pacientes que Inician Quimioterapia",{"$f":"GETPIVOTDATA(\"Suma de Trata_Inici_Quimio_Leucemia_ATC\",TD!$A$92)","v":0},{"$f":"GETPIVOTDATA(\"Suma de Trata_Inici_Quimio_Leucemia_ATD\",TD!$A$92)","v":0}]
[null,null,null,null,null,"Sesiones de Quimioterapias por Patologia",{"$f":"GETPIVOTDATA(\"Suma de Trata_Sesio_Quimio_Patol_Leucemia_ATC\",TD!$A$92)","v":0},{"$f":"GETPIVOTDATA(\"Suma de Trata_Sesio_Quimio_Patol_Leucemia_ATD\",TD!$A$92)","v":0}]
[null,null,null,null,null,"Sesiones de Tratamiento con Radioterapia y Braquiterapia",{"$f":"GETPIVOTDATA(\"Suma de Trata_Sesio_Radio_Braquite_Leucemia_ATC\",TD!$A$92)","v":0},{"$f":"GETPIVOTDATA(\"Suma de Trata_Sesio_Radio_Braquite_Leucemia_ATD\",TD!$A$92)","v":0}]
[null,"Persona con tratamiento de Linforma",null,null,null,"Supervision de Quimioterapia",{"$f":"GETPIVOTDATA(\"Suma de Trata_Supervi_Quimio_Linforma_ATC\",TD!$A$92)","v":0},{"$f":"GETPIVOTDATA(\"Suma de Trata_Supervi_Quimio_Linforma_ATD\",TD!$A$92)","v":0}]
[null,null,null,null,null,"Pacientes que Inician Quimioterapia",{"$f":"GETPIVOTDATA(\"Suma de Trata_Inici_Quimio_Linforma_ATC\",TD!$A$92)","v":0},{"$f":"GETPIVOTDATA(\"Suma de Trata_Inici_Quimio_Linforma_ATD\",TD!$A$92)","v":0}]
[null,null,null,null,null,"Sesiones de Quimioterapias por Patologia",{"$f":"GETPIVOTDATA(\"Suma de Trata_Sesio_Quimio_Patol_Linforma_ATC\",TD!$A$92)","v":0},{"$f":"GETPIVOTDATA(\"Suma de Trata_Sesio_Quimio_Patol_Linforma_ATD\",TD!$A$92)","v":0}]
[null,null,null,null,null,"Sesiones de Tratamiento con Radioterapia y Braquiterapia",{"$f":"GETPIVOTDATA(\"Suma de Trata_Sesio_Radio_Braquite_Linforma_ATC\",TD!$A$92)","v":0},{"$f":"GETPIVOTDATA(\"Suma de Trata_Sesio_Radio_Braquite_Linforma_ATD\",TD!$A$92)","v":0}]
[null,"Persona con tratamiento de Cáncer de piel",null,null,null,"Supervision de Quimioterapia",{"$f":"GETPIVOTDATA(\"Suma de Trata_Supervi_Quimio_Piel_ATC\",TD!$A$92)","v":0},{"$f":"GETPIVOTDATA(\"Suma de Trata_Supervi_Quimio_Piel_ATD\",TD!$A$92)","v":0}]
[null,null,null,null,null,"Pacientes que Inician Quimioterapia",{"$f":"GETPIVOTDATA(\"Suma de Trata_Inici_Quimio_Piel_ATC\",TD!$A$92)","v":0},{"$f":"GETPIVOTDATA(\"Suma de Trata_Inici_Quimio_Piel_ATC\",TD!$A$92)","v":0}]
[null,null,null,null,null,"Sesiones de Quimioterapias por Patologia",{"$f":"GETPIVOTDATA(\"Suma de Trata_Sesio_Quimio_Patol_Piel_ATC\",TD!$A$92)","v":0},{"$f":"GETPIVOTDATA(\"Suma de Trata_Sesio_Quimio_Patol_Piel_ATD\",TD!$A$92)","v":0}]
[null,null,null,null,null,"Sesiones de Tratamiento con Radioterapia y Braquiterapia",{"$f":"GETPIVOTDATA(\"Suma de Trata_Sesio_Radio_Braquite_Piel_ATC\",TD!$A$92)","v":0},{"$f":"GETPIVOTDATA(\"Suma de Trata_Sesio_Radio_Braquite_Piel_ATD\",TD!$A$92)","v":0}]
[]
[null,"PERSONA CON CONSEJERIA PARA LA PREVENCION Y CONTROL DEL CANCER"]
[null,"ACTIVIDAD",null,null,null,"UNIDAD DE MEDIDA","TOTAL DE CONSEJERIAS","TOTAL DE PERSONAS CON CONSEJERIA","18-29a","30-39a","40-49a","50-59a","60-69a","70 y más"]
[null,"Consejería preventiva en factores de riesgo para el cáncer",null,null,null,"Consultorio Externo, Personas con una consejería",{"$f":"SUM(I169:N169)","v":11606},{"$f":"GETPIVOTDATA(\"Suma de cansej_1ra_ATC\",TD!$A$92)","v":2462},{"$f":"GETPIVOTDATA(\"Suma de cansej_1ra_18_29\",TD!$A$92)","v":2380},{"$f":"GETPIVOTDATA(\"Suma de cansej_1ra_30_39\",TD!$A$92)","v":2849},{"$f":"GETPIVOTDATA(\"Suma de cansej_1ra_40_49\",TD!$A$92)","v":2572},{"$f":"GETPIVOTDATA(\"Suma de cansej_1ra_50_59\",TD!$A$92)","v":1911},{"$f":"GETPIVOTDATA(\"Suma de cansej_1ra_60_69\",TD!$A$92)","v":1502},{"$f":"GETPIVOTDATA(\"Suma de cansej_1ra_70_75\",TD!$A$92)","v":392},"1ra Consejeria F/R"]
[null,null,null,null,null,"Consultorio Externo, Personas con dos consejerías",{"$f":"SUM(I170:N170)","v":3613},{"$f":"SUM(I170:N170)","v":3613},{"$f":"GETPIVOTDATA(\"Suma de cansej_2da_18_29\",TD!$A$92)","v":580},{"$f":"GETPIVOTDATA(\"Suma de cansej_2da_30_39\",TD!$A$92)","v":864},{"$f":"GETPIVOTDATA(\"Suma de cansej_2da_40_49\",TD!$A$92)","v":859},{"$f":"GETPIVOTDATA(\"Suma de cansej_2da_50_59\",TD!$A$92)","v":657},{"$f":"GETPIVOTDATA(\"Suma de cansej_2da_60_69\",TD!$A$92)","v":535},{"$f":"GETPIVOTDATA(\"Suma de cansej_2da_70_75\",TD!$A$92)","v":118},"2da Consejeria F/R"]
[null,null,null,null,null,"TIC, Personas con una consejería",287,{"$f":"GETPIVOTDATA(\"Suma de cansej_tic_1ra_ATC\",TD!$A$92)","v":3},{"$f":"GETPIVOTDATA(\"Suma de cansej_tic_1ra_18_29\",TD!$A$92)","v":3},{"$f":"GETPIVOTDATA(\"Suma de cansej_tic_1ra_30_39\",TD!$A$92)","v":10},{"$f":"GETPIVOTDATA(\"Suma de cansej_tic_1ra_40_49\",TD!$A$92)","v":125},{"$f":"GETPIVOTDATA(\"Suma de cansej_tic_1ra_50_59\",TD!$A$92)","v":81},{"$f":"GETPIVOTDATA(\"Suma de cansej_tic_1ra_60_69\",TD!$A$92)","v":61},{"$f":"GETPIVOTDATA(\"Suma de cansej_tic_1ra_70_75\",TD!$A$92)","v":7}]
[null,null,null,null,null,"TIC, Personas con dos consejerías",104,{"$f":"GETPIVOTDATA(\"Suma de cansej_tic_2da_ATC\",TD!$A$92)","v":2},{"$f":"GETPIVOTDATA(\"Suma de cansej_tic_2da_18_29\",TD!$A$92)","v":2},{"$f":"GETPIVOTDATA(\"Suma de cansej_tic_2da_30_39\",TD!$A$92)","v":40},{"$f":"GETPIVOTDATA(\"Suma de cansej_tic_2da_40_49\",TD!$A$92)","v":53},{"$f":"GETPIVOTDATA(\"Suma de cansej_tic_2da_50_59\",TD!$A$92)","v":7},{"$f":"GETPIVOTDATA(\"Suma de cansej_tic_2da_60_69\",TD!$A$92)","v":2},{"$f":"GETPIVOTDATA(\"Suma de cansej_tic_2da_70_75\",TD!$A$92)","v":0}]
[null,"Consejería para pacientes diagnosticados con cáncer",null,null,null,"Personas con una consejería",0,{"$f":"GETPIVOTDATA(\"Suma de cansej_diag_1ra_ATC\",TD!$A$92)","v":0},{"$f":"GETPIVOTDATA(\"Suma de cansej_diag_1ra_18_29\",TD!$A$92)","v":0},{"$f":"GETPIVOTDATA(\"Suma de cansej_diag_1ra_30_39\",TD!$A$92)","v":0},{"$f":"GETPIVOTDATA(\"Suma de cansej_diag_1ra_40_49\",TD!$A$92)","v":0},{"$f":"GETPIVOTDATA(\"Suma de cansej_diag_1ra_50_59\",TD!$A$92)","v":0},{"$f":"GETPIVOTDATA(\"Suma de cansej_diag_1ra_60_69\",TD!$A$92)","v":0},{"$f":"GETPIVOTDATA(\"Suma de cansej_diag_1ra_70_75\",TD!$A$92)","v":0},"1ra Consejeria DX"]
[null,null,null,null,null,"Personas con dos consejerías",0,{"$f":"GETPIVOTDATA(\"Suma de cansej_diag_2da_ATC\",TD!$A$92)","v":0},{"$f":"GETPIVOTDATA(\"Suma de cansej_diag_2da_18_29\",TD!$A$92)","v":0},{"$f":"GETPIVOTDATA(\"Suma de cansej_diag_2da_30_39\",TD!$A$92)","v":0},{"$f":"GETPIVOTDATA(\"Suma de cansej_diag_2da_40_49\",TD!$A$92)","v":0},{"$f":"GETPIVOTDATA(\"Suma de cansej_diag_2da_50_59\",TD!$A$92)","v":0},{"$f":"GETPIVOTDATA(\"Suma de cansej_diag_2da_60_69\",TD!$A$92)","v":0},{"$f":"GETPIVOTDATA(\"Suma de cansej_diag_2da_70_75\",TD!$A$92)","v":0},"2da Consejeria DX"]
[]
[null,"CUIDADOS PALIATIVOS"]
[null,"ACTIVIDAD",null,null,null,"UNIDAD DE MEDIDA","Total de Atenciones en Cuidados Paliativos","Total de Atendidos en cuidados paliativos  "]
[null,"Atención con cuidados paliativos en el establecimiento de salud",null,null,null,"Atención",{"$f":"GETPIVOTDATA(\"Suma de cansej_cuida_palia_1ra_ATC\",TD!$A$92)","v":0},{"$f":"GETPIVOTDATA(\"Suma de cansej_cuida_palia_1ra_ATD\",TD!$A$92)","v":0},"PALEATIVO EESS"]
[null,"Atención con cuidados paliativos en el domicilio",null,null,null,"Atención",{"$f":"GETPIVOTDATA(\"Suma de cansej_cuida_palia_2da_ATC\",TD!$A$92)","v":0},{"$f":"GETPIVOTDATA(\"Suma de cansej_cuida_palia_2da_ATD\",TD!$A$92)","v":0},"PALEATIVO DOMI"]